Departmental Family,Entity,Date,Expense Type,Expense Area,Supplier,Supplier Type,Expense Type Description,Transaction Number,Amount
Department for Education,DEPARTMENT FOR EDUCATION,01/02/2013,ICT Commodities,Chief Information Officer Group,EDUSERV,Public Sector,IT Services,4000112741,419179.2
Department for Education,DEPARTMENT FOR EDUCATION,01/02/2013,ICT Commodities,Chief Information Officer Group,EDUSERV,Public Sector,IT Services,4000112741,75861
Department for Education,DEPARTMENT FOR EDUCATION,01/02/2013,ICT Commodities,Chief Information Officer Group,CAPGEMINI UK PLC,Commercial,IT Services,4000112742,22588.3
Department for Education,DEPARTMENT FOR EDUCATION,01/02/2013,ICT Commodities,Chief Information Officer Group,CAPGEMINI UK PLC,Commercial,IT Services,4000112742,4271.53
Department for Education,DEPARTMENT FOR EDUCATION,01/02/2013,Professional Services Consultancy and Contingent Labour,Chief Information Officer Group,CAPITA RESOURCING LTD,Commercial,Costs related to temporary workers,4000112799,6741.48
Department for Education,DEPARTMENT FOR EDUCATION,01/02/2013,Professional Services Consultancy and Contingent Labour,Chief Information Officer Group,CAPITA RESOURCING LTD,Commercial,Costs related to temporary workers,4000112799,536.76
Department for Education,DEPARTMENT FOR EDUCATION,04/02/2013,ICT Commodities,Chief Information Officer Group,EDUSERV,Public Sector,IT Services,4000113060,7920
Department for Education,DEPARTMENT FOR EDUCATION,04/02/2013,ICT Commodities,Chief Information Officer Group,EDUSERV,Public Sector,IT Services,4000113060,33073.2
Department for Education,DEPARTMENT FOR EDUCATION,04/02/2013,Advertising and Media,Chief Information Officer Group,NOMENSA LTD,Commercial,Digital media and web production,4000113102,33159
Department for Education,DEPARTMENT FOR EDUCATION,07/02/2013,Professional Services Other,Chief Information Officer Group,DWP,Central Government,Shared corporate payroll services,4000113881,9937
Department for Education,DEPARTMENT FOR EDUCATION,07/02/2013,Professional Services Other,Chief Information Officer Group,DWP,Central Government,Shared corporate purchase / procurement services,4000113881,11911
Department for Education,DEPARTMENT FOR EDUCATION,08/02/2013,ICT Commodities,Chief Information Officer Group,CAPGEMINI UK PLC,Commercial,IT Services,4000114019,33255
Department for Education,DEPARTMENT FOR EDUCATION,08/02/2013,ICT Commodities,Chief Information Officer Group,CAPGEMINI UK PLC,Commercial,Capital licences and intangible work in progress,4000114019,39673
Department for Education,DEPARTMENT FOR EDUCATION,11/02/2013,Learning and Development,Chief Information Officer Group,JP MORGAN COMMERCIAL CARDS,Commercial,Staff training and development including materials and courses,4000114200,9144.23
Department for Education,DEPARTMENT FOR EDUCATION,11/02/2013,Office Solutions,Chief Information Officer Group,JP MORGAN COMMERCIAL CARDS,Commercial,General office expenses,4000114200,3228
Department for Education,DEPARTMENT FOR EDUCATION,11/02/2013,Learning and Development,Chief Information Officer Group,JP MORGAN COMMERCIAL CARDS,Commercial,Staff training and development including materials and courses,4000114200,200.4
Department for Education,DEPARTMENT FOR EDUCATION,12/02/2013,ICT Commodities,Chief Information Officer Group,CAPGEMINI UK PLC,Commercial,Capital licences and intangible work in progress,4000114369,33027.81
Department for Education,DEPARTMENT FOR EDUCATION,13/02/2013,ICT Commodities,Chief Information Officer Group,DELL CORPORATION LTD,Commercial,IT Services,4000114579,65154.72
Department for Education,DEPARTMENT FOR EDUCATION,13/02/2013,ICT Commodities,Chief Information Officer Group,REDWEB,Commercial,IT Services,4000114624,95306.18
Department for Education,DEPARTMENT FOR EDUCATION,14/02/2013,Travel,Chief Information Officer Group,REDFERN TRAVEL LTD,Commercial,"Staff business travel including air, coach, ferry, rail and taxi",4000114781,2857.54
Department for Education,DEPARTMENT FOR EDUCATION,14/02/2013,Travel,Chief Information Officer Group,REDFERN TRAVEL LTD,Commercial,"Staff business travel including air, coach, ferry, rail and taxi",4000114781,2217.58
Department for Education,DEPARTMENT FOR EDUCATION,14/02/2013,Travel,Chief Information Officer Group,REDFERN TRAVEL LTD,Commercial,"Staff business travel including air, coach, ferry, rail and taxi",4000114781,2171.39
Department for Education,DEPARTMENT FOR EDUCATION,14/02/2013,Travel,Chief Information Officer Group,REDFERN TRAVEL LTD,Commercial,"Staff business travel including air, coach, ferry, rail and taxi",4000114781,1518.83
Department for Education,DEPARTMENT FOR EDUCATION,14/02/2013,Travel,Chief Information Officer Group,REDFERN TRAVEL LTD,Commercial,"Staff business travel including air, coach, ferry, rail and taxi",4000114781,795.92
Department for Education,DEPARTMENT FOR EDUCATION,14/02/2013,Travel,Chief Information Officer Group,REDFERN TRAVEL LTD,Commercial,"Staff business travel including air, coach, ferry, rail and taxi",4000114781,3601.16
Department for Education,DEPARTMENT FOR EDUCATION,14/02/2013,Travel,Chief Information Officer Group,REDFERN TRAVEL LTD,Commercial,"Staff business travel including air, coach, ferry, rail and taxi",4000114781,2369.58
Department for Education,DEPARTMENT FOR EDUCATION,14/02/2013,Travel,Chief Information Officer Group,REDFERN TRAVEL LTD,Commercial,"Staff business travel including air, coach, ferry, rail and taxi",4000114781,56.35
Department for Education,DEPARTMENT FOR EDUCATION,14/02/2013,Travel,Chief Information Officer Group,REDFERN TRAVEL LTD,Commercial,"Staff business travel including air, coach, ferry, rail and taxi",4000114781,4646.41
Department for Education,DEPARTMENT FOR EDUCATION,14/02/2013,Travel,Chief Information Officer Group,REDFERN TRAVEL LTD,Commercial,"Staff business travel including air, coach, ferry, rail and taxi",4000114781,2641.9
Department for Education,DEPARTMENT FOR EDUCATION,14/02/2013,Personnel Related,Chief Information Officer Group,REDFERN TRAVEL LTD,Commercial,Subsistence and lodging allowances for official duty,4000114781,0.87
Department for Education,DEPARTMENT FOR EDUCATION,14/02/2013,Travel,Chief Information Officer Group,REDFERN TRAVEL LTD,Commercial,"Staff business travel including air, coach, ferry, rail and taxi",4000114781,1299.71
Department for Education,DEPARTMENT FOR EDUCATION,14/02/2013,Travel,Chief Information Officer Group,REDFERN TRAVEL LTD,Commercial,"Staff business travel including air, coach, ferry, rail and taxi",4000114781,158.07
Department for Education,DEPARTMENT FOR EDUCATION,14/02/2013,Travel,Chief Information Officer Group,REDFERN TRAVEL LTD,Commercial,"Staff business travel including air, coach, ferry, rail and taxi",4000114781,518.79
Department for Education,DEPARTMENT FOR EDUCATION,14/02/2013,Travel,Chief Information Officer Group,REDFERN TRAVEL LTD,Commercial,"Staff business travel including air, coach, ferry, rail and taxi",4000114781,2243.18
Department for Education,DEPARTMENT FOR EDUCATION,14/02/2013,Travel,Chief Information Officer Group,REDFERN TRAVEL LTD,Commercial,"Staff business travel including air, coach, ferry, rail and taxi",4000114781,3223.48
Department for Education,DEPARTMENT FOR EDUCATION,14/02/2013,Travel,Chief Information Officer Group,REDFERN TRAVEL LTD,Commercial,"Staff business travel including air, coach, ferry, rail and taxi",4000114781,2464.42
Department for Education,DEPARTMENT FOR EDUCATION,14/02/2013,Travel,Chief Information Officer Group,REDFERN TRAVEL LTD,Commercial,"Staff business travel including air, coach, ferry, rail and taxi",4000114781,3267.55
Department for Education,DEPARTMENT FOR EDUCATION,14/02/2013,Travel,Chief Information Officer Group,REDFERN TRAVEL LTD,Commercial,"Staff business travel including air, coach, ferry, rail and taxi",4000114781,263.38
Department for Education,DEPARTMENT FOR EDUCATION,14/02/2013,Travel,Chief Information Officer Group,REDFERN TRAVEL LTD,Commercial,"Staff business travel including air, coach, ferry, rail and taxi",4000114781,91.48
Department for Education,DEPARTMENT FOR EDUCATION,14/02/2013,Travel,Chief Information Officer Group,REDFERN TRAVEL LTD,Commercial,"Staff business travel including air, coach, ferry, rail and taxi",4000114781,317.97
Department for Education,DEPARTMENT FOR EDUCATION,15/02/2013,ICT Commodities,Chief Information Officer Group,ATKINS MANTIX LTD,Commercial,IT Services,4000114912,27124.84
Department for Education,DEPARTMENT FOR EDUCATION,15/02/2013,ICT Commodities,Chief Information Officer Group,ATKINS MANTIX LTD,Commercial,IT Services,4000114912,35495.17
Department for Education,DEPARTMENT FOR EDUCATION,15/02/2013,ICT Commodities,Chief Information Officer Group,DELL CORPORATION LTD,Commercial,Hardware maintenance and support of computer networks and systems,4000114926,295000
Department for Education,DEPARTMENT FOR EDUCATION,15/02/2013,ICT Commodities,Chief Information Officer Group,DELL CORPORATION LTD,Commercial,IT Services,4000114926,1226.69
Department for Education,DEPARTMENT FOR EDUCATION,19/02/2013,Advertising and Media,Chief Information Officer Group,PROLOG,Commercial,Digital media and web production,4000115373,19858.2
Department for Education,DEPARTMENT FOR EDUCATION,19/02/2013,Advertising and Media,Chief Information Officer Group,PROLOG,Commercial,Digital media and web production,4000115373,33552.82
Department for Education,DEPARTMENT FOR EDUCATION,19/02/2013,Advertising and Media,Chief Information Officer Group,PROLOG,Commercial,Digital media and web production,4000115373,59415.37
Department for Education,DEPARTMENT FOR EDUCATION,19/02/2013,Advertising and Media,Chief Information Officer Group,PROLOG,Commercial,Digital media and web production,4000115373,40854.9
Department for Education,DEPARTMENT FOR EDUCATION,20/02/2013,ICT Commodities,Chief Information Officer Group,SPECIALIST COMPUTER CENTRES PLC,Commercial,IT Services,4000115506,37453.2
Department for Education,DEPARTMENT FOR EDUCATION,20/02/2013,Professional Services Other,Chief Information Officer Group,DEPARTMENT FOR WORK & PENSIONS,Central Government,Shared corporate accounting services,4000115695,125125.9
Department for Education,DEPARTMENT FOR EDUCATION,20/02/2013,Professional Services Other,Chief Information Officer Group,DEPARTMENT FOR WORK & PENSIONS,Central Government,Shared corporate payroll services,4000115695,194333
Department for Education,DEPARTMENT FOR EDUCATION,20/02/2013,Professional Services Other,Chief Information Officer Group,DEPARTMENT FOR WORK & PENSIONS,Central Government,Shared corporate purchase / procurement services,4000115695,74501.11
Department for Education,DEPARTMENT FOR EDUCATION,22/02/2013,ICT Commodities,Chief Information Officer Group,DELL CORPORATION LTD,Commercial,ICT equipment,4000116079,49990.99
Department for Education,DEPARTMENT FOR EDUCATION,27/02/2013,ICT Commodities,Chief Information Officer Group,DELL CORPORATION LTD,Commercial,ICT equipment,4000116650,84664.75
Department for Education,DEPARTMENT FOR EDUCATION,27/02/2013,ICT Commodities,Chief Information Officer Group,DELL CORPORATION LTD,Commercial,ICT equipment,4000116650,15398.27
Department for Education,DEPARTMENT FOR EDUCATION,28/02/2013,ICT Commodities,Chief Information Officer Group,VODAFONE CORPORATE,Commercial,"Fixed and mobile telecoms including call charges, line rental and equipment for mobile phones and pagers",4000116814,19.2
Department for Education,DEPARTMENT FOR EDUCATION,28/02/2013,ICT Commodities,Chief Information Officer Group,VODAFONE CORPORATE,Commercial,"Fixed and mobile telecoms including call charges, line rental and equipment for mobile phones and pagers",4000116814,49.09
Department for Education,DEPARTMENT FOR EDUCATION,28/02/2013,ICT Commodities,Chief Information Officer Group,VODAFONE CORPORATE,Commercial,"Fixed and mobile telecoms including call charges, line rental and equipment for mobile phones and pagers",4000116814,33.9
Department for Education,DEPARTMENT FOR EDUCATION,28/02/2013,ICT Commodities,Chief Information Officer Group,VODAFONE CORPORATE,Commercial,"Fixed and mobile telecoms including call charges, line rental and equipment for mobile phones and pagers",4000116814,19.2
Department for Education,DEPARTMENT FOR EDUCATION,28/02/2013,ICT Commodities,Chief Information Officer Group,VODAFONE CORPORATE,Commercial,"Fixed and mobile telecoms including call charges, line rental and equipment for mobile phones and pagers",4000116814,39
Department for Education,DEPARTMENT FOR EDUCATION,28/02/2013,ICT Commodities,Chief Information Officer Group,VODAFONE CORPORATE,Commercial,"Fixed and mobile telecoms including call charges, line rental and equipment for mobile phones and pagers",4000116814,19.5
Department for Education,DEPARTMENT FOR EDUCATION,28/02/2013,ICT Commodities,Chief Information Officer Group,VODAFONE CORPORATE,Commercial,"Fixed and mobile telecoms including call charges, line rental and equipment for mobile phones and pagers",4000116814,40.09
Department for Education,DEPARTMENT FOR EDUCATION,28/02/2013,ICT Commodities,Chief Information Officer Group,VODAFONE CORPORATE,Commercial,"Fixed and mobile telecoms including call charges, line rental and equipment for mobile phones and pagers",4000116814,38.4
Department for Education,DEPARTMENT FOR EDUCATION,28/02/2013,ICT Commodities,Chief Information Officer Group,VODAFONE CORPORATE,Commercial,"Fixed and mobile telecoms including call charges, line rental and equipment for mobile phones and pagers",4000116814,38.82
Department for Education,DEPARTMENT FOR EDUCATION,28/02/2013,ICT Commodities,Chief Information Officer Group,VODAFONE CORPORATE,Commercial,"Fixed and mobile telecoms including call charges, line rental and equipment for mobile phones and pagers",4000116814,174.3
Department for Education,DEPARTMENT FOR EDUCATION,28/02/2013,ICT Commodities,Chief Information Officer Group,VODAFONE CORPORATE,Commercial,"Fixed and mobile telecoms including call charges, line rental and equipment for mobile phones and pagers",4000116814,2518.28
Department for Education,DEPARTMENT FOR EDUCATION,28/02/2013,ICT Commodities,Chief Information Officer Group,VODAFONE CORPORATE,Commercial,"Fixed and mobile telecoms including call charges, line rental and equipment for mobile phones and pagers",4000116814,19.2
Department for Education,DEPARTMENT FOR EDUCATION,28/02/2013,ICT Commodities,Chief Information Officer Group,VODAFONE CORPORATE,Commercial,"Fixed and mobile telecoms including call charges, line rental and equipment for mobile phones and pagers",4000116814,385.16
Department for Education,DEPARTMENT FOR EDUCATION,28/02/2013,ICT Commodities,Chief Information Officer Group,BT GLOBAL SERVICES,Commercial,Fixed and mobile telecoms including equipment and call charges,4000116837,157246.75
Department for Education,DEPARTMENT FOR EDUCATION,28/02/2013,ICT Commodities,Chief Information Officer Group,BT GLOBAL SERVICES,Commercial,Maintenance support of video conferencing,4000116837,51777.6
Department for Education,DEPARTMENT FOR EDUCATION,28/02/2013,ICT Commodities,Chief Information Officer Group,BT GLOBAL SERVICES,Commercial,Hardware maintenance and support of computer networks and systems,4000116837,83392
Department for Education,DEPARTMENT FOR EDUCATION,28/02/2013,ICT Commodities,Chief Information Officer Group,BT GLOBAL SERVICES,Commercial,Hardware maintenance and support of computer networks and systems,4000116837,184789
Department for Education,DEPARTMENT FOR EDUCATION,01/02/2013,Programme costs,Families Group,THE FOSTERING NETWORK,VCS,Funding to deliver policies (excluding consultancy) paid to third parties via a service delivery contract,1001004,29577
Department for Education,DEPARTMENT FOR EDUCATION,01/02/2013,Programme costs,Families Group,FAMILY RIGHTS GROUP LTD,VCS,Funding to deliver policies (excluding consultancy) paid to third parties via a service delivery contract,1001007,25444
Department for Education,DEPARTMENT FOR EDUCATION,04/02/2013,Grants,Families Group,CAFCASS,Central Government,Current grant funding to arms length bodies for DfE's contribution to fund activity,2000722,11294378
Department for Education,DEPARTMENT FOR EDUCATION,08/02/2013,Grants,Supporting Delivery Group,OFFICE OF THE CHILDRENS COMMISSIONER,Central Government,Current grant funding to arms length bodies for DfE's contribution to fund activity,2000726,621820.86
Department for Education,DEPARTMENT FOR EDUCATION,01/02/2013,Programme costs,Children's Services and Departmental Strategy Safeguarding Group,NSPCC,VCS,Funding to deliver policies (excluding consultancy) paid to third parties via a service delivery contract,4000112802,750000
Department for Education,DEPARTMENT FOR EDUCATION,01/02/2013,Grants,Supporting Children and Young People Group,TOMORROWS PEOPLE TRUST LTD,VCS,Grants to third sector organisations / not for profit organisations,4000112880,135350
Department for Education,DEPARTMENT FOR EDUCATION,01/02/2013,Grants,Supporting Children and Young People Group,ROYAL PHILANTHROPIC SOCIETY RAINER,VCS,Grants to third sector organisations / not for profit organisations,4000112885,118916.78
Department for Education,DEPARTMENT FOR EDUCATION,01/02/2013,Programme costs,Children's Services and Departmental Strategy Early Years Extended Schools and Special Needs Group,CRIMINAL RECORDS BUREAU,Central Government,Funding to deliver policies (excluding consultancy) paid to third parties via a service delivery contract,4000112892,123024
Department for Education,DEPARTMENT FOR EDUCATION,04/02/2013,Programme costs,Children's Services and Departmental Strategy Early Years Extended Schools and Special Needs Group,NDTI,VCS,Funding to deliver policies (excluding consultancy) paid to third parties via a service delivery contract,4000112977,53392.68
Department for Education,DEPARTMENT FOR EDUCATION,04/02/2013,Grants,Children's Services and Departmental Strategy Early Years Extended Schools and Special Needs Group,THE FAMILY FUND TRUST,VCS,Grants to third sector organisations / not for profit organisations,4000112988,2732000
Department for Education,DEPARTMENT FOR EDUCATION,04/02/2013,Programme costs,Families Group,NETMUMS COM,VCS,Funding to deliver policies (excluding consultancy) paid to third parties via a service delivery contract,4000112990,81496.36
Department for Education,DEPARTMENT FOR EDUCATION,04/02/2013,Programme costs,Families Group,FAMILY LIVES,VCS,Funding to deliver policies (excluding consultancy) paid to third parties via a service delivery contract,4000113082,119925.13
Department for Education,DEPARTMENT FOR EDUCATION,04/02/2013,Personnel Related,People and Change,CIVIL SERVICE RESOURCING,Public Sector,"Personnel costs including staff recruitment, staff restaurant subsidies, family care expenses",4000113113,47500
Department for Education,DEPARTMENT FOR EDUCATION,05/02/2013,Grants,Families Group,RELATE,VCS,Grants to third sector organisations / not for profit organisations,4000113224,532248.81
Department for Education,DEPARTMENT FOR EDUCATION,05/02/2013,Grants,Families Group,FATHERHOOD INSTITUTE,VCS,Grants to third sector organisations / not for profit organisations,4000113243,30660
Department for Education,DEPARTMENT FOR EDUCATION,05/02/2013,Grants,Children's Services and Departmental Strategy Safeguarding Group,THE ANNA FREUD CENTRE,VCS,Grants to third sector organisations / not for profit organisations,4000113332,118283.68
Department for Education,DEPARTMENT FOR EDUCATION,05/02/2013,Grants,Supporting Children and Young People Group,KIDSCAPE,VCS,Grants to third sector organisations / not for profit organisations,4000113440,41256.72
Department for Education,DEPARTMENT FOR EDUCATION,06/02/2013,Grants,Families Group,CONTACT A FAMILY,VCS,Grants to third sector organisations / not for profit organisations,4000113641,45018.42
Department for Education,DEPARTMENT FOR EDUCATION,06/02/2013,Grants,Children's Services and Departmental Strategy Safeguarding Group,THE COLLEGE OF SOCIAL WORK,VCS,Grants to third sector organisations / not for profit organisations,4000113643,66666
Department for Education,DEPARTMENT FOR EDUCATION,06/02/2013,Grants,Children's Services and Departmental Strategy Early Years Extended Schools and Special Needs Group,PRE SCHOOL LEARNING ALLIANCE,VCS,Grants to third sector organisations / not for profit organisations,4000113644,260717.38
Department for Education,DEPARTMENT FOR EDUCATION,06/02/2013,Grants,Families Group,CAFCASS,Central Government,"Grants paid to organisations including agencies, arms length bodies and educational establishments",4000113648,214523.8
Department for Education,DEPARTMENT FOR EDUCATION,06/02/2013,Programme costs,Children's Services and Departmental Strategy Early Years Extended Schools and Special Needs Group,MOTT MACDONALD LTD,Commercial,Funding to deliver policies (excluding consultancy) paid to third parties via a service delivery contract,4000113651,38728.38
Department for Education,DEPARTMENT FOR EDUCATION,06/02/2013,Grants,Children's Services and Departmental Strategy Early Years Extended Schools and Special Needs Group,NATIONAL DEAF CHILDRENS SOCIETY,VCS,Grants to third sector organisations / not for profit organisations,4000113664,38945
Department for Education,DEPARTMENT FOR EDUCATION,06/02/2013,Grants,Children's Services and Departmental Strategy Safeguarding Group,LUCY FAITHFULL FOUNDATION,VCS,Grants to third sector organisations / not for profit organisations,4000113680,62780
Department for Education,DEPARTMENT FOR EDUCATION,06/02/2013,Grants,Supporting Children and Young People Group,ADDACTION,VCS,Grants to third sector organisations / not for profit organisations,4000113707,94369.64
Department for Education,DEPARTMENT FOR EDUCATION,06/02/2013,Grants,Children's Services and Departmental Strategy Early Years Extended Schools and Special Needs Group,DAYCARE TRUST,VCS,Grants to third sector organisations / not for profit organisations,4000113708,38415
Department for Education,DEPARTMENT FOR EDUCATION,06/02/2013,Grants,Children's Services and Departmental Strategy Early Years Extended Schools and Special Needs Group,THE CHILDRENS UNIVERSITY,VCS,Grants to third sector organisations / not for profit organisations,4000113709,96250
Department for Education,DEPARTMENT FOR EDUCATION,06/02/2013,Grants,Children's Services and Departmental Strategy Early Years Extended Schools and Special Needs Group,KENT COUNTY COUNCIL,Public Sector,Grants to third sector organisations / not for profit organisations,4000113720,37500
Department for Education,DEPARTMENT FOR EDUCATION,06/02/2013,Grants,Children's Services and Departmental Strategy Early Years Extended Schools and Special Needs Group,PEN GREEN RESEARCH,Commercial,Grants to third sector organisations / not for profit organisations,4000113721,43313
Department for Education,DEPARTMENT FOR EDUCATION,06/02/2013,Grants,Children's Services and Departmental Strategy Early Years Extended Schools and Special Needs Group,NATIONAL CHILDRENS BUREAU,VCS,Grants to third sector organisations / not for profit organisations,4000113736,127500
Department for Education,DEPARTMENT FOR EDUCATION,06/02/2013,Grants,Supporting Children and Young People Group,KEEPING KIDS COMPANY,VCS,Grants to third sector organisations / not for profit organisations,4000113742,396007
Department for Education,DEPARTMENT FOR EDUCATION,06/02/2013,Grants,Supporting Children and Young People Group,UK YOUTH,VCS,Grants to third sector organisations / not for profit organisations,4000113744,87005.92
Department for Education,DEPARTMENT FOR EDUCATION,06/02/2013,Grants,Families Group,THE SHARE FOUNDATION 3RD PARTY TRUST,Public Sector,Grants to third sector organisations / not for profit organisations,4000113758,363000
Department for Education,DEPARTMENT FOR EDUCATION,07/02/2013,Professional Services Other,People and Change,DWP,Central Government,Shared corporate payroll services,4000113881,2700
Department for Education,DEPARTMENT FOR EDUCATION,07/02/2013,Grants,Families Group,COVENTRY CITY COUNCIL,Public Sector,Grants to local authorities within AEF/AEG (aggregate external funding/aggregate exchequer grant),4000113884,49017.14
Department for Education,DEPARTMENT FOR EDUCATION,08/02/2013,Grants,Supporting Children and Young People Group,UK YOUTH,VCS,Grants to third sector organisations / not for profit organisations,4000113999,97879.75
Department for Education,DEPARTMENT FOR EDUCATION,08/02/2013,Grants,Supporting Children and Young People Group,QED,VCS,Grants to third sector organisations / not for profit organisations,4000114003,27572.91
Department for Education,DEPARTMENT FOR EDUCATION,08/02/2013,Grants,Supporting Children and Young People Group,MEDIA TRUST,VCS,Grants to third sector organisations / not for profit organisations,4000114010,131781.31
Department for Education,DEPARTMENT FOR EDUCATION,08/02/2013,Grants,Families Group,ADDACTION,VCS,Grants to third sector organisations / not for profit organisations,4000114017,64694.49
Department for Education,DEPARTMENT FOR EDUCATION,08/02/2013,Grants,Children's Services and Departmental Strategy Safeguarding Group,THE PLACE2BE,VCS,Grants to third sector organisations / not for profit organisations,4000114025,40885.68
Department for Education,DEPARTMENT FOR EDUCATION,08/02/2013,Programme costs,Children's Services and Departmental Strategy Early Years Extended Schools and Special Needs Group,MOTT MACDONALD LTD,Commercial,Funding to deliver policies (excluding consultancy) paid to third parties via a service delivery contract,4000114026,48333.68
Department for Education,DEPARTMENT FOR EDUCATION,08/02/2013,Programme costs,Supporting Children and Young People Group,BIG LOTTERY FUND,Public Sector,Funding to deliver policies (excluding consultancy) paid to third parties via a service delivery contract,4000114043,352833
Department for Education,DEPARTMENT FOR EDUCATION,08/02/2013,Grants,Children's Services and Departmental Strategy Safeguarding Group,SOCIAL CARE INSTITUTE FOR EXCELLENCE,VCS,Grants to third sector organisations / not for profit organisations,4000114052,140032
Department for Education,DEPARTMENT FOR EDUCATION,08/02/2013,Professional Services Other,Families Group,CSV,VCS,Research and evaluation activities including contracted out data collation / gathering exercises when there is no analysis or recommendation,4000114063,89499.81
Department for Education,DEPARTMENT FOR EDUCATION,08/02/2013,Professional Services Other,"Strategic Analysis, Research and Policy Impact Group",INSTITUTE OF EDUCATION,Public Sector,Research and evaluation activities including contracted out data collation / gathering exercises when there is no analysis or recommendation,4000114077,125000
Department for Education,DEPARTMENT FOR EDUCATION,08/02/2013,Grants,Families Group,CATCH 22,VCS,Grants to third sector organisations / not for profit organisations,4000114081,81464.46
Department for Education,DEPARTMENT FOR EDUCATION,08/02/2013,Grants,Children's Services and Departmental Strategy Safeguarding Group,MISSING PEOPLE,VCS,Grants to third sector organisations / not for profit organisations,4000114085,60972
Department for Education,DEPARTMENT FOR EDUCATION,08/02/2013,Grants,Children's Services and Departmental Strategy Early Years Extended Schools and Special Needs Group,NATIONAL CHILDMINDING ASSOC,VCS,Grants to third sector organisations / not for profit organisations,4000114086,54166
Department for Education,DEPARTMENT FOR EDUCATION,08/02/2013,Professional Services Other,"Strategic Analysis, Research and Policy Impact Group",INSTITUTE OF FISCAL STUDIES,VCS,Research and evaluation activities including contracted out data collation / gathering exercises when there is no analysis or recommendation,4000114099,98782.5
Department for Education,DEPARTMENT FOR EDUCATION,11/02/2013,Programme costs,Children's Services and Departmental Strategy Early Years Extended Schools and Special Needs Group,ACHIEVEMENT FOR ALL 3AS LTD,VCS,Funding to deliver policies (excluding consultancy) paid to third parties via a service delivery contract,4000114179,501144
Department for Education,DEPARTMENT FOR EDUCATION,11/02/2013,Grants,Families Group,ONE PLUS ONE,VCS,Grants to third sector organisations / not for profit organisations,4000114185,40683.66
Department for Education,DEPARTMENT FOR EDUCATION,11/02/2013,Learning and Development,Communications Group,JP MORGAN COMMERCIAL CARDS,Commercial,Staff training and development including materials and courses,4000114200,120
Department for Education,DEPARTMENT FOR EDUCATION,11/02/2013,ICT Commodities,Communications Group,JP MORGAN COMMERCIAL CARDS,Commercial,"Telecommunications including telephone cards, line rental and equipment, cost of maintenance, etc",4000114200,90.04
Department for Education,DEPARTMENT FOR EDUCATION,11/02/2013,Office Solutions,Communications Group,JP MORGAN COMMERCIAL CARDS,Commercial,General office expenses,4000114200,400
Department for Education,DEPARTMENT FOR EDUCATION,11/02/2013,Advertising and Media,Communications Group,JP MORGAN COMMERCIAL CARDS,Commercial,"Publicity, advertising, media advertising campaigns (excluding recruitment adverts)",4000114200,708
Department for Education,DEPARTMENT FOR EDUCATION,11/02/2013,Office Solutions,Communications Group,JP MORGAN COMMERCIAL CARDS,Commercial,General office expenses,4000114200,20
Department for Education,DEPARTMENT FOR EDUCATION,11/02/2013,Office Solutions,Communications Group,JP MORGAN COMMERCIAL CARDS,Commercial,"Stationery, IT/office consumables - including ink, toners, storage media - etc.",4000114200,8.66
Department for Education,DEPARTMENT FOR EDUCATION,11/02/2013,Facilities,Communications Group,JP MORGAN COMMERCIAL CARDS,Commercial,"Purchase of low value furniture, fixtures and fittings",4000114200,377.58
Department for Education,DEPARTMENT FOR EDUCATION,11/02/2013,Personnel Related,Children's Services and Departmental Strategy Early Years Extended Schools and Special Needs Group,THE MEDIA GROUP TMG TV LTD,Commercial,"
DfE subsidy for CRB checks for childcare providers and their employees / volunteers registered with OfSTED ",4000114203,183008.4
Department for Education,DEPARTMENT FOR EDUCATION,12/02/2013,Grants,Families Group,TAVISTOCK CENTRE FOR COUPLE RELATIONSHIPS,VCS,Grants to third sector organisations / not for profit organisations,4000114259,69686
Department for Education,DEPARTMENT FOR EDUCATION,12/02/2013,Grants,Children's Services and Departmental Strategy Supporting Delivery Group,CHILDREN ENGLAND,VCS,Grants to third sector organisations / not for profit organisations,4000114261,59171
Department for Education,DEPARTMENT FOR EDUCATION,12/02/2013,Grants,Families Group,PROJECT FOR ADVOCACY COUNSELLING & EDUCATION,VCS,Grants to third sector organisations / not for profit organisations,4000114262,33908.13
Department for Education,DEPARTMENT FOR EDUCATION,12/02/2013,Grants,Families Group,FAMILIES NEED FATHERS,VCS,Grants to third sector organisations / not for profit organisations,4000114263,37276.87
Department for Education,DEPARTMENT FOR EDUCATION,12/02/2013,Grants,Children's Services and Departmental Strategy Safeguarding Group,BROOK,VCS,Grants to third sector organisations / not for profit organisations,4000114271,26724.45
Department for Education,DEPARTMENT FOR EDUCATION,12/02/2013,Grants,Families Group,GINGERBREAD,VCS,Grants to third sector organisations / not for profit organisations,4000114299,43091.86
Department for Education,DEPARTMENT FOR EDUCATION,12/02/2013,Grants,Families Group,SCHOOL HOME SUPPORT SERVICES UK,VCS,Grants to third sector organisations / not for profit organisations,4000114305,44983.73
Department for Education,DEPARTMENT FOR EDUCATION,12/02/2013,Grants,Families Group,ACTION FOR CHILDREN,VCS,Grants to third sector organisations / not for profit organisations,4000114342,169686.03
Department for Education,DEPARTMENT FOR EDUCATION,12/02/2013,Grants,Families Group,BOOK TRUST,VCS,Grants to third sector organisations / not for profit organisations,4000114343,568237
Department for Education,DEPARTMENT FOR EDUCATION,12/02/2013,Grants,Children's Services and Departmental Strategy Early Years Extended Schools and Special Needs Group,NASEN,VCS,Grants to third sector organisations / not for profit organisations,4000114350,100762.08
Department for Education,DEPARTMENT FOR EDUCATION,12/02/2013,Grants,Children's Services and Departmental Strategy Early Years Extended Schools and Special Needs Group,4CHILDREN,VCS,Grants to third sector organisations / not for profit organisations,4000114357,125023
Department for Education,DEPARTMENT FOR EDUCATION,12/02/2013,Professional Services Other,Children's Services and Departmental Strategy Early Years Extended Schools and Special Needs Group,SQW LTD,Commercial,"Research, survey data analysis that will inform policy decision making",4000114405,27148
Department for Education,DEPARTMENT FOR EDUCATION,12/02/2013,Professional Services Other,Children's Services and Departmental Strategy Early Years Extended Schools and Special Needs Group,SQW LTD,Commercial,Research and evaluation activities including contracted out data collation / gathering exercises when there is no analysis or recommendation,4000114405,141000
Department for Education,DEPARTMENT FOR EDUCATION,12/02/2013,Grants,Supporting Children and Young People Group,BRITISH YOUTH COUNCIL,VCS,Grants to third sector organisations / not for profit organisations,4000114414,43256
Department for Education,DEPARTMENT FOR EDUCATION,12/02/2013,Personnel Related,Children's Services and Departmental Strategy Early Years Extended Schools and Special Needs Group,ATLANTIC DATA LTD,Commercial,"
DfE subsidy for CRB checks for childcare providers and their employees / volunteers registered with OfSTED ",4000114450,38735.56
Department for Education,DEPARTMENT FOR EDUCATION,13/02/2013,Programme costs,Families Group,BRITISH ASSOCIATION FOR ADOPTION & FOSTERING,VCS,Funding to deliver policies (excluding consultancy) paid to third parties via a service delivery contract,4000114587,71550.6
Department for Education,DEPARTMENT FOR EDUCATION,14/02/2013,Grants,Children's Services and Departmental Strategy Supporting Delivery Group,LOCAL GOVERNMENT IMPROVEMENT & DEVELOPMENT,Public Sector,Grants to local authorities within AEF/AEG (aggregate external funding/aggregate exchequer grant),4000114632,769199
Department for Education,DEPARTMENT FOR EDUCATION,14/02/2013,Grants,Families Group,YMCA,VCS,Grants to third sector organisations / not for profit organisations,4000114668,42307
Department for Education,DEPARTMENT FOR EDUCATION,14/02/2013,Personnel Related,People and Change,EDENRED,Commercial,Childcare services provided for staff including the management fee and subsidy costs,4000114686,86266.88
Department for Education,DEPARTMENT FOR EDUCATION,14/02/2013,Grants,Families Group,TIME FOR FAMILIES,VCS,Grants to third sector organisations / not for profit organisations,4000114762,37704.66
Department for Education,DEPARTMENT FOR EDUCATION,14/02/2013,Grants,Children's Services and Departmental Strategy Supporting Delivery Group,VIRTUAL STAFF COLLEGE,Commercial,Grants to third sector organisations / not for profit organisations,4000114765,508638.55
Department for Education,DEPARTMENT FOR EDUCATION,14/02/2013,Grants,Supporting Children and Young People Group,V THE NATIONAL YOUNG VOLUNTEERS SERVICE,VCS,Grants to third sector organisations / not for profit organisations,4000114770,346489
Department for Education,DEPARTMENT FOR EDUCATION,14/02/2013,Travel,Children's Services and Departmental Strategy Directorate Support Group,REDFERN TRAVEL LTD,Commercial,"Staff business travel including air, coach, ferry, rail and taxi",4000114781,572.01
Department for Education,DEPARTMENT FOR EDUCATION,14/02/2013,Travel,Families Group,REDFERN TRAVEL LTD,Commercial,"Staff business travel including air, coach, ferry, rail and taxi",4000114781,88.54
Department for Education,DEPARTMENT FOR EDUCATION,14/02/2013,Travel,Families Group,REDFERN TRAVEL LTD,Commercial,"Staff business travel including air, coach, ferry, rail and taxi",4000114781,252.79
Department for Education,DEPARTMENT FOR EDUCATION,14/02/2013,Travel,Families Group,REDFERN TRAVEL LTD,Commercial,"Staff business travel including air, coach, ferry, rail and taxi",4000114781,409.39
Department for Education,DEPARTMENT FOR EDUCATION,14/02/2013,Travel,Families Group,REDFERN TRAVEL LTD,Commercial,"Staff business travel including air, coach, ferry, rail and taxi",4000114781,1799.43
Department for Education,DEPARTMENT FOR EDUCATION,14/02/2013,Travel,Families Group,REDFERN TRAVEL LTD,Commercial,"Staff business travel including air, coach, ferry, rail and taxi",4000114781,7987.29
Department for Education,DEPARTMENT FOR EDUCATION,14/02/2013,Travel,Children's Services and Departmental Strategy Supporting Delivery Group,REDFERN TRAVEL LTD,Commercial,"Staff business travel including air, coach, ferry, rail and taxi",4000114781,769.58
Department for Education,DEPARTMENT FOR EDUCATION,14/02/2013,Travel,Children's Services and Departmental Strategy Supporting Delivery Group,REDFERN TRAVEL LTD,Commercial,"Staff business travel including air, coach, ferry, rail and taxi",4000114781,4514.08
Department for Education,DEPARTMENT FOR EDUCATION,14/02/2013,Travel,Children's Services and Departmental Strategy Supporting Delivery Group,REDFERN TRAVEL LTD,Commercial,"Staff business travel including air, coach, ferry, rail and taxi",4000114781,4011.55
Department for Education,DEPARTMENT FOR EDUCATION,14/02/2013,Travel,Children's Services and Departmental Strategy Supporting Delivery Group,REDFERN TRAVEL LTD,Commercial,"Staff business travel including air, coach, ferry, rail and taxi",4000114781,51.14
Department for Education,DEPARTMENT FOR EDUCATION,14/02/2013,Travel,Children's Services and Departmental Strategy Supporting Delivery Group,REDFERN TRAVEL LTD,Commercial,"Staff business travel including air, coach, ferry, rail and taxi",4000114781,578.63
Department for Education,DEPARTMENT FOR EDUCATION,14/02/2013,Travel,Children's Services and Departmental Strategy Supporting Delivery Group,REDFERN TRAVEL LTD,Commercial,"Staff business travel including air, coach, ferry, rail and taxi",4000114781,169.22
Department for Education,DEPARTMENT FOR EDUCATION,14/02/2013,Travel,Families Group,REDFERN TRAVEL LTD,Commercial,"Staff business travel including air, coach, ferry, rail and taxi",4000114781,2587.12
Department for Education,DEPARTMENT FOR EDUCATION,14/02/2013,Travel,Supporting Children and Young People Group,REDFERN TRAVEL LTD,Commercial,"Staff business travel including air, coach, ferry, rail and taxi",4000114781,1749.92
Department for Education,DEPARTMENT FOR EDUCATION,14/02/2013,Travel,Children's Services and Departmental Strategy Safeguarding Group,REDFERN TRAVEL LTD,Commercial,"Staff business travel including air, coach, ferry, rail and taxi",4000114781,317.89
Department for Education,DEPARTMENT FOR EDUCATION,14/02/2013,Travel,Children's Services and Departmental Strategy Safeguarding Group,REDFERN TRAVEL LTD,Commercial,"Staff business travel including air, coach, ferry, rail and taxi",4000114781,14257.37
Department for Education,DEPARTMENT FOR EDUCATION,14/02/2013,Travel,Children's Services and Departmental Strategy Early Years Extended Schools and Special Needs Group,REDFERN TRAVEL LTD,Commercial,"Staff business travel including air, coach, ferry, rail and taxi",4000114781,2612.68
Department for Education,DEPARTMENT FOR EDUCATION,14/02/2013,Travel,Children's Services and Departmental Strategy Early Years Extended Schools and Special Needs Group,REDFERN TRAVEL LTD,Commercial,"Staff business travel including air, coach, ferry, rail and taxi",4000114781,809.77
Department for Education,DEPARTMENT FOR EDUCATION,14/02/2013,Travel,Children's Services and Departmental Strategy Early Years Extended Schools and Special Needs Group,REDFERN TRAVEL LTD,Commercial,"Staff business travel including air, coach, ferry, rail and taxi",4000114781,946.98
Department for Education,DEPARTMENT FOR EDUCATION,14/02/2013,Travel,Children's Services and Departmental Strategy Early Years Extended Schools and Special Needs Group,REDFERN TRAVEL LTD,Commercial,"Staff business travel including air, coach, ferry, rail and taxi",4000114781,1475.49
Department for Education,DEPARTMENT FOR EDUCATION,14/02/2013,Professional Services Consultancy and Contingent Labour,Children's Services and Departmental Strategy Early Years Extended Schools and Special Needs Group,REDFERN TRAVEL LTD,Commercial,"Fees / expenses of professionals from the private sector such as auditors, accountants, lawyers, etc. engaged to provide advice or opinion on how to affect something",4000114781,0.41
Department for Education,DEPARTMENT FOR EDUCATION,14/02/2013,Travel,Children's Services and Departmental Strategy Early Years Extended Schools and Special Needs Group,REDFERN TRAVEL LTD,Commercial,"Staff business travel including air, coach, ferry, rail and taxi",4000114781,4152.4
Department for Education,DEPARTMENT FOR EDUCATION,14/02/2013,Travel,Children's Services and Departmental Strategy Early Years Extended Schools and Special Needs Group,REDFERN TRAVEL LTD,Commercial,"Staff business travel including air, coach, ferry, rail and taxi",4000114781,220.66
Department for Education,DEPARTMENT FOR EDUCATION,14/02/2013,Travel,Children's Services and Departmental Strategy Directorate Support Group,REDFERN TRAVEL LTD,Commercial,"Staff business travel including air, coach, ferry, rail and taxi",4000114781,1.57
Department for Education,DEPARTMENT FOR EDUCATION,14/02/2013,Travel,"Strategic Analysis, Research and Policy Impact Group",REDFERN TRAVEL LTD,Commercial,"Staff business travel including air, coach, ferry, rail and taxi",4000114781,258.59
Department for Education,DEPARTMENT FOR EDUCATION,14/02/2013,Travel,"Strategic Analysis, Research and Policy Impact Group",REDFERN TRAVEL LTD,Commercial,"Staff business travel including air, coach, ferry, rail and taxi",4000114781,5951.21
Department for Education,DEPARTMENT FOR EDUCATION,14/02/2013,Travel,People and Change,REDFERN TRAVEL LTD,Commercial,"Staff business travel including air, coach, ferry, rail and taxi",4000114781,16439.04
Department for Education,DEPARTMENT FOR EDUCATION,14/02/2013,Personnel Related,People and Change,REDFERN TRAVEL LTD,Commercial,Subsistence and lodging allowances for official duty,4000114781,5.32
Department for Education,DEPARTMENT FOR EDUCATION,14/02/2013,Travel,People and Change,REDFERN TRAVEL LTD,Commercial,"Staff business travel including air, coach, ferry, rail and taxi",4000114781,133.93
Department for Education,DEPARTMENT FOR EDUCATION,14/02/2013,Travel,People and Change,REDFERN TRAVEL LTD,Commercial,"Staff business travel including air, coach, ferry, rail and taxi",4000114781,84.1
Department for Education,DEPARTMENT FOR EDUCATION,14/02/2013,Travel,People and Change,REDFERN TRAVEL LTD,Commercial,"Staff business travel including air, coach, ferry, rail and taxi",4000114781,143.69
Department for Education,DEPARTMENT FOR EDUCATION,14/02/2013,Travel,People and Change,REDFERN TRAVEL LTD,Commercial,"Staff business travel including air, coach, ferry, rail and taxi",4000114781,141.25
Department for Education,DEPARTMENT FOR EDUCATION,14/02/2013,Travel,People and Change,REDFERN TRAVEL LTD,Commercial,"Staff business travel including air, coach, ferry, rail and taxi",4000114781,139.32
Department for Education,DEPARTMENT FOR EDUCATION,14/02/2013,Travel,ALB Reform Group,REDFERN TRAVEL LTD,Commercial,"Staff business travel including air, coach, ferry, rail and taxi",4000114781,3577.58
Department for Education,DEPARTMENT FOR EDUCATION,14/02/2013,Personnel Related,ALB Reform Group,REDFERN TRAVEL LTD,Commercial,Subsistence and lodging allowances for official duty,4000114781,2.74
Department for Education,DEPARTMENT FOR EDUCATION,14/02/2013,Travel,Communications Group,REDFERN TRAVEL LTD,Commercial,"Staff business travel including air, coach, ferry, rail and taxi",4000114781,5096.4
Department for Education,DEPARTMENT FOR EDUCATION,14/02/2013,Travel,Communications Group,REDFERN TRAVEL LTD,Commercial,"Staff business travel including air, coach, ferry, rail and taxi",4000114781,5485.69
Department for Education,DEPARTMENT FOR EDUCATION,14/02/2013,Personnel Related,Communications Group,REDFERN TRAVEL LTD,Commercial,Subsistence and lodging allowances for official duty,4000114781,0.49
Department for Education,DEPARTMENT FOR EDUCATION,14/02/2013,Travel,Communications Group,REDFERN TRAVEL LTD,Commercial,"Staff business travel including air, coach, ferry, rail and taxi",4000114781,445.72
Department for Education,DEPARTMENT FOR EDUCATION,15/02/2013,Grants,Families Group,ONE PLUS ONE,VCS,Grants to third sector organisations / not for profit organisations,4000114913,67140.54
Department for Education,DEPARTMENT FOR EDUCATION,15/02/2013,Grants,Children's Services and Departmental Strategy Supporting Delivery Group,CHILDREN ENGLAND,VCS,Grants to third sector organisations / not for profit organisations,4000114920,112274
Department for Education,DEPARTMENT FOR EDUCATION,15/02/2013,Grants,Children's Services and Departmental Strategy Early Years Extended Schools and Special Needs Group,THE ACE CENTRE NORTH,VCS,Grants to third sector organisations / not for profit organisations,4000114923,48019.95
Department for Education,DEPARTMENT FOR EDUCATION,18/02/2013,Grants,Children's Services and Departmental Strategy Safeguarding Group,SALFORD CITY COUNCIL,Public Sector,Grants to local authorities within AEF/AEG (aggregate external funding/aggregate exchequer grant),4000114958,125499.95
Department for Education,DEPARTMENT FOR EDUCATION,18/02/2013,Grants,Supporting Children and Young People Group,N C V Y S,VCS,Grants to third sector organisations / not for profit organisations,4000114971,114037.15
Department for Education,DEPARTMENT FOR EDUCATION,18/02/2013,Grants,Children's Services and Departmental Strategy Safeguarding Group,MANCHESTER CITY COUNCIL,Public Sector,Grants to local authorities within AEF/AEG (aggregate external funding/aggregate exchequer grant),4000114972,32000
Department for Education,DEPARTMENT FOR EDUCATION,18/02/2013,Grants,Children's Services and Departmental Strategy Safeguarding Group,ESSEX COUNTY COUNCIL,Public Sector,Grants to local authorities within AEF/AEG (aggregate external funding/aggregate exchequer grant),4000114975,37000
Department for Education,DEPARTMENT FOR EDUCATION,18/02/2013,Grants,Children's Services and Departmental Strategy Safeguarding Group,CAMBRIDGESHIRE COUNTY COUNCIL,Public Sector,Grants to local authorities within AEF/AEG (aggregate external funding/aggregate exchequer grant),4000114993,39750
Department for Education,DEPARTMENT FOR EDUCATION,18/02/2013,Grants,Children's Services and Departmental Strategy Safeguarding Group,LONDON BOROUGH OF HILLINGDON  COUNCIL,Public Sector,Grants to local authorities within AEF/AEG (aggregate external funding/aggregate exchequer grant),4000115002,31000
Department for Education,DEPARTMENT FOR EDUCATION,18/02/2013,Grants,Children's Services and Departmental Strategy Safeguarding Group,STOKE ON TRENT CITY COUNCIL,Public Sector,Grants to local authorities within AEF/AEG (aggregate external funding/aggregate exchequer grant),4000115007,197499.92
Department for Education,DEPARTMENT FOR EDUCATION,18/02/2013,Grants,Children's Services and Departmental Strategy Safeguarding Group,LEICESTER CITY COUNCIL,Public Sector,Grants to local authorities within AEF/AEG (aggregate external funding/aggregate exchequer grant),4000115009,249499.89
Department for Education,DEPARTMENT FOR EDUCATION,18/02/2013,Grants,Children's Services and Departmental Strategy Safeguarding Group,LONDON BOROUGH OF BROMLEY COUNCIL,Public Sector,Grants to local authorities within AEF/AEG (aggregate external funding/aggregate exchequer grant),4000115019,130833.29
Department for Education,DEPARTMENT FOR EDUCATION,18/02/2013,Grants,Children's Services and Departmental Strategy Safeguarding Group,LEICESTERSHIRE COUNTY COUNCIL,Public Sector,Grants to local authorities within AEF/AEG (aggregate external funding/aggregate exchequer grant),4000115024,30750
Department for Education,DEPARTMENT FOR EDUCATION,18/02/2013,Grants,Children's Services and Departmental Strategy Safeguarding Group,SHEFFIELD CITY COUNCIL,Public Sector,Grants to local authorities within AEF/AEG (aggregate external funding/aggregate exchequer grant),4000115035,262833.23
Department for Education,DEPARTMENT FOR EDUCATION,18/02/2013,Grants,Children's Services and Departmental Strategy Safeguarding Group,METROPOLITAN BOROUGH OF WIRRAL,Public Sector,Grants to local authorities within AEF/AEG (aggregate external funding/aggregate exchequer grant),4000115047,197249.92
Department for Education,DEPARTMENT FOR EDUCATION,18/02/2013,Grants,Children's Services and Departmental Strategy Safeguarding Group,LONDON BOROUGH OF GREENWICH,Public Sector,Grants to local authorities within AEF/AEG (aggregate external funding/aggregate exchequer grant),4000115068,34000
Department for Education,DEPARTMENT FOR EDUCATION,18/02/2013,Grants,Children's Services and Departmental Strategy Safeguarding Group,BUCKINGHAMSHIRE COUNTY COUNCIL,Public Sector,Grants to local authorities within AEF/AEG (aggregate external funding/aggregate exchequer grant),4000115071,136833.28
Department for Education,DEPARTMENT FOR EDUCATION,18/02/2013,Grants,Children's Services and Departmental Strategy Safeguarding Group,LONDON BOROUGH OF HAMMERSMITH & FULHAM COUNCIL,Public Sector,Grants to local authorities within AEF/AEG (aggregate external funding/aggregate exchequer grant),4000115086,198166.58
Department for Education,DEPARTMENT FOR EDUCATION,18/02/2013,Grants,Children's Services and Departmental Strategy Safeguarding Group,NORFOLK COUNTY COUNCIL,Public Sector,Grants to local authorities within AEF/AEG (aggregate external funding/aggregate exchequer grant),4000115170,150833.27
Department for Education,DEPARTMENT FOR EDUCATION,18/02/2013,Grants,Children's Services and Departmental Strategy Safeguarding Group,SOLIHULL MBC,Public Sector,Grants to local authorities within AEF/AEG (aggregate external funding/aggregate exchequer grant),4000115171,40250
Department for Education,DEPARTMENT FOR EDUCATION,18/02/2013,Grants,Children's Services and Departmental Strategy Safeguarding Group,NORTHUMBERLAND COUNTY COUNCIL,Public Sector,Grants to local authorities within AEF/AEG (aggregate external funding/aggregate exchequer grant),4000115173,29750
Department for Education,DEPARTMENT FOR EDUCATION,18/02/2013,Grants,Children's Services and Departmental Strategy Safeguarding Group,NORTH TYNESIDE,Public Sector,Grants to local authorities within AEF/AEG (aggregate external funding/aggregate exchequer grant),4000115182,38000
Department for Education,DEPARTMENT FOR EDUCATION,18/02/2013,Grants,Children's Services and Departmental Strategy Safeguarding Group,WAKEFIELD MDC,Public Sector,Grants to local authorities within AEF/AEG (aggregate external funding/aggregate exchequer grant),4000115184,28000
Department for Education,DEPARTMENT FOR EDUCATION,18/02/2013,Grants,Children's Services and Departmental Strategy Safeguarding Group,HERTFORDSHIRE,Public Sector,Grants to local authorities within AEF/AEG (aggregate external funding/aggregate exchequer grant),4000115186,132166.61
Department for Education,DEPARTMENT FOR EDUCATION,18/02/2013,Grants,Children's Services and Departmental Strategy Safeguarding Group,GLOUCESTERSHIRE COUNTY COUNCIL,Public Sector,Grants to local authorities within AEF/AEG (aggregate external funding/aggregate exchequer grant),4000115187,30000
Department for Education,DEPARTMENT FOR EDUCATION,18/02/2013,Grants,Children's Services and Departmental Strategy Safeguarding Group,ROTHERHAM MBC,Public Sector,Grants to local authorities within AEF/AEG (aggregate external funding/aggregate exchequer grant),4000115199,51250
Department for Education,DEPARTMENT FOR EDUCATION,18/02/2013,Grants,Children's Services and Departmental Strategy Safeguarding Group,NOTTINGHAMSHIRE COUNTY COUNCIL,Public Sector,Grants to local authorities within AEF/AEG (aggregate external funding/aggregate exchequer grant),4000115204,27000
Department for Education,DEPARTMENT FOR EDUCATION,18/02/2013,Grants,Children's Services and Departmental Strategy Safeguarding Group,DEVON COUNTY COUNCIL,Public Sector,Grants to local authorities within AEF/AEG (aggregate external funding/aggregate exchequer grant),4000115207,47000
Department for Education,DEPARTMENT FOR EDUCATION,19/02/2013,Programme costs,Families Group,YOUNG MINDS,VCS,Funding to deliver policies (excluding consultancy) paid to third parties via a service delivery contract,4000115229,32925
Department for Education,DEPARTMENT FOR EDUCATION,19/02/2013,Grants,Families Group,THE SHARE FOUNDATION 3RD PARTY TRUST,Public Sector,Grants to third sector organisations / not for profit organisations,4000115262,865800
Department for Education,DEPARTMENT FOR EDUCATION,19/02/2013,Grants,Families Group,FAMILY LIVES,VCS,Grants to third sector organisations / not for profit organisations,4000115270,142800.51
Department for Education,DEPARTMENT FOR EDUCATION,19/02/2013,Advertising and Media,Supporting Children and Young People Group,PROLOG,Commercial,Publications and related services,4000115373,270.22
Department for Education,DEPARTMENT FOR EDUCATION,19/02/2013,Advertising and Media,Children's Services and Departmental Strategy Early Years Extended Schools and Special Needs Group,PROLOG,Commercial,Publications and related services,4000115373,8429.93
Department for Education,DEPARTMENT FOR EDUCATION,19/02/2013,Advertising and Media,Families Group,PROLOG,Commercial,Publications and related services,4000115373,370.47
Department for Education,DEPARTMENT FOR EDUCATION,19/02/2013,Advertising and Media,Families Group,PROLOG,Commercial,Publications and related services,4000115373,319.5
Department for Education,DEPARTMENT FOR EDUCATION,19/02/2013,Advertising and Media,Families Group,PROLOG,Commercial,Publications and related services,4000115373,100.84
Department for Education,DEPARTMENT FOR EDUCATION,19/02/2013,Advertising and Media,Families Group,PROLOG,Commercial,Publications and related services,4000115373,1233.08
Department for Education,DEPARTMENT FOR EDUCATION,19/02/2013,Advertising and Media,Families Group,PROLOG,Commercial,Publications and related services,4000115373,203.94
Department for Education,DEPARTMENT FOR EDUCATION,19/02/2013,Advertising and Media,Children's Services and Departmental Strategy Safeguarding Group,PROLOG,Commercial,Publications and related services,4000115373,5592.02
Department for Education,DEPARTMENT FOR EDUCATION,19/02/2013,Office Solutions,Children's Services and Departmental Strategy Early Years Extended Schools and Special Needs Group,PROLOG,Commercial,Storing records off DfE sites,4000115373,497.6
Department for Education,DEPARTMENT FOR EDUCATION,19/02/2013,Advertising and Media,"Strategic Analysis, Research and Policy Impact Group",PROLOG,Commercial,Publications and related services,4000115373,181.12
Department for Education,DEPARTMENT FOR EDUCATION,19/02/2013,Advertising and Media,Communications Group,PROLOG,Commercial,Publications and related services,4000115373,16129.93
Department for Education,DEPARTMENT FOR EDUCATION,20/02/2013,Programme costs,Families Group,FAMILY RIGHTS GROUP LTD,VCS,Funding to deliver policies (excluding consultancy) paid to third parties via a service delivery contract,4000115505,34901
Department for Education,DEPARTMENT FOR EDUCATION,20/02/2013,Programme costs,Families Group,CHILDRENS LEGAL CENTRE,VCS,Funding to deliver policies (excluding consultancy) paid to third parties via a service delivery contract,4000115632,38362.57
Department for Education,DEPARTMENT FOR EDUCATION,20/02/2013,Professional Services Other,People and Change,HM REVENUE AND CUSTOMS,Central Government,"Fees / expenses of professionals from the private sector, for example to implement advice or changes",4000115684,66000
Department for Education,DEPARTMENT FOR EDUCATION,20/02/2013,Grants,Supporting Children and Young People Group,ROYAL PHILANTHROPIC SOCIETY RAINER,VCS,Grants to third sector organisations / not for profit organisations,4000115701,118491.72
Department for Education,DEPARTMENT FOR EDUCATION,20/02/2013,Personnel Related,Children's Services and Departmental Strategy Early Years Extended Schools and Special Needs Group,CAPITA EDUCATION RESOURCING,Commercial,"
DfE subsidy for CRB checks for childcare providers and their employees / volunteers registered with OfSTED ",4000115717,134066.6
Department for Education,DEPARTMENT FOR EDUCATION,21/02/2013,Grants,Children's Services and Departmental Strategy Directorate Support Group,TAMESIDE MBC,Public Sector,Grants to local authorities outside AEF/AEG (aggregate external funding/aggregate exchequer grant),4000115738,3052169
Department for Education,DEPARTMENT FOR EDUCATION,21/02/2013,Grants,Children's Services and Departmental Strategy Directorate Support Group,STOCKPORT MBC,Public Sector,Grants to local authorities outside AEF/AEG (aggregate external funding/aggregate exchequer grant),4000115739,2803779
Department for Education,DEPARTMENT FOR EDUCATION,21/02/2013,Grants,Children's Services and Departmental Strategy Directorate Support Group,SALFORD CITY COUNCIL,Public Sector,Grants to local authorities outside AEF/AEG (aggregate external funding/aggregate exchequer grant),4000115740,3418093
Department for Education,DEPARTMENT FOR EDUCATION,21/02/2013,Grants,Children's Services and Departmental Strategy Early Years Extended Schools and Special Needs Group,ROCHDALE MBC,Public Sector,Grants to local authorities within AEF/AEG (aggregate external funding/aggregate exchequer grant),4000115741,37500
Department for Education,DEPARTMENT FOR EDUCATION,21/02/2013,Grants,Children's Services and Departmental Strategy Directorate Support Group,ROCHDALE MBC,Public Sector,Grants to local authorities outside AEF/AEG (aggregate external funding/aggregate exchequer grant),4000115741,3379782
Department for Education,DEPARTMENT FOR EDUCATION,21/02/2013,Grants,Children's Services and Departmental Strategy Early Years Extended Schools and Special Needs Group,OLDHAM MBC,Public Sector,Grants to local authorities within AEF/AEG (aggregate external funding/aggregate exchequer grant),4000115742,37500
Department for Education,DEPARTMENT FOR EDUCATION,21/02/2013,Grants,Children's Services and Departmental Strategy Early Years Extended Schools and Special Needs Group,OLDHAM MBC,Public Sector,Grants to local authorities outside AEF/AEG (aggregate external funding/aggregate exchequer grant),4000115742,47500
Department for Education,DEPARTMENT FOR EDUCATION,21/02/2013,Grants,Children's Services and Departmental Strategy Directorate Support Group,OLDHAM MBC,Public Sector,Grants to local authorities outside AEF/AEG (aggregate external funding/aggregate exchequer grant),4000115742,3719631
Department for Education,DEPARTMENT FOR EDUCATION,21/02/2013,Grants,Children's Services and Departmental Strategy Early Years Extended Schools and Special Needs Group,NOTTINGHAMSHIRE COUNTY COUNCIL,Public Sector,Grants to local authorities within AEF/AEG (aggregate external funding/aggregate exchequer grant),4000115743,37500
Department for Education,DEPARTMENT FOR EDUCATION,21/02/2013,Grants,Children's Services and Departmental Strategy Directorate Support Group,NOTTINGHAMSHIRE COUNTY COUNCIL,Public Sector,Grants to local authorities outside AEF/AEG (aggregate external funding/aggregate exchequer grant),4000115743,7777599
Department for Education,DEPARTMENT FOR EDUCATION,21/02/2013,Grants,Children's Services and Departmental Strategy Early Years Extended Schools and Special Needs Group,BLACKPOOL BOROUGH COUNCIL,Public Sector,Grants to local authorities outside AEF/AEG (aggregate external funding/aggregate exchequer grant),4000115744,32600
Department for Education,DEPARTMENT FOR EDUCATION,21/02/2013,Grants,Children's Services and Departmental Strategy Directorate Support Group,BLACKPOOL BOROUGH COUNCIL,Public Sector,Grants to local authorities outside AEF/AEG (aggregate external funding/aggregate exchequer grant),4000115744,2190292
Department for Education,DEPARTMENT FOR EDUCATION,21/02/2013,Grants,Children's Services and Departmental Strategy Directorate Support Group,BLACKBURN WITH DARWEN BOROUGH COUNCIL,Public Sector,Grants to local authorities outside AEF/AEG (aggregate external funding/aggregate exchequer grant),4000115745,3038287
Department for Education,DEPARTMENT FOR EDUCATION,21/02/2013,Grants,Children's Services and Departmental Strategy Directorate Support Group,LANCASHIRE COUNTY COUNCIL,Public Sector,Grants to local authorities outside AEF/AEG (aggregate external funding/aggregate exchequer grant),4000115746,12396454
Department for Education,DEPARTMENT FOR EDUCATION,21/02/2013,Grants,Children's Services and Departmental Strategy Early Years Extended Schools and Special Needs Group,MANCHESTER CITY COUNCIL,Public Sector,Grants to local authorities within AEF/AEG (aggregate external funding/aggregate exchequer grant),4000115747,41250
Department for Education,DEPARTMENT FOR EDUCATION,21/02/2013,Grants,Children's Services and Departmental Strategy Directorate Support Group,MANCHESTER CITY COUNCIL,Public Sector,Grants to local authorities outside AEF/AEG (aggregate external funding/aggregate exchequer grant),4000115747,7798788
Department for Education,DEPARTMENT FOR EDUCATION,21/02/2013,Grants,Children's Services and Departmental Strategy Directorate Support Group,BURY MBC,Public Sector,Grants to local authorities outside AEF/AEG (aggregate external funding/aggregate exchequer grant),4000115748,2096657
Department for Education,DEPARTMENT FOR EDUCATION,21/02/2013,Grants,Children's Services and Departmental Strategy Directorate Support Group,SEFTON COUNCIL,Public Sector,Grants to local authorities outside AEF/AEG (aggregate external funding/aggregate exchequer grant),4000115749,2953041
Department for Education,DEPARTMENT FOR EDUCATION,21/02/2013,Grants,Children's Services and Departmental Strategy Directorate Support Group,ST HELENS MBC,Public Sector,Grants to local authorities outside AEF/AEG (aggregate external funding/aggregate exchequer grant),4000115750,2592778
Department for Education,DEPARTMENT FOR EDUCATION,21/02/2013,Grants,Children's Services and Departmental Strategy Early Years Extended Schools and Special Needs Group,LIVERPOOL CITY COUNCIL,Public Sector,Grants to local authorities outside AEF/AEG (aggregate external funding/aggregate exchequer grant),4000115751,28181
Department for Education,DEPARTMENT FOR EDUCATION,21/02/2013,Grants,Children's Services and Departmental Strategy Directorate Support Group,LIVERPOOL CITY COUNCIL,Public Sector,Grants to local authorities outside AEF/AEG (aggregate external funding/aggregate exchequer grant),4000115751,7029848
Department for Education,DEPARTMENT FOR EDUCATION,21/02/2013,Grants,Children's Services and Departmental Strategy Early Years Extended Schools and Special Needs Group,MEDWAY COUNCIL,Public Sector,Grants to local authorities within AEF/AEG (aggregate external funding/aggregate exchequer grant),4000115752,41250
Department for Education,DEPARTMENT FOR EDUCATION,21/02/2013,Grants,Children's Services and Departmental Strategy Directorate Support Group,MEDWAY COUNCIL,Public Sector,Grants to local authorities outside AEF/AEG (aggregate external funding/aggregate exchequer grant),4000115752,2802025
Department for Education,DEPARTMENT FOR EDUCATION,21/02/2013,Grants,Children's Services and Departmental Strategy Early Years Extended Schools and Special Needs Group,KENT COUNTY COUNCIL,Public Sector,Grants to local authorities within AEF/AEG (aggregate external funding/aggregate exchequer grant),4000115753,41250
Department for Education,DEPARTMENT FOR EDUCATION,21/02/2013,Grants,Children's Services and Departmental Strategy Directorate Support Group,KENT COUNTY COUNCIL,Public Sector,Grants to local authorities outside AEF/AEG (aggregate external funding/aggregate exchequer grant),4000115753,13743392
Department for Education,DEPARTMENT FOR EDUCATION,21/02/2013,Grants,Children's Services and Departmental Strategy Directorate Support Group,WORCESTERSHIRE COUNTY COUNCIL,Public Sector,Grants to local authorities outside AEF/AEG (aggregate external funding/aggregate exchequer grant),4000115754,5125130
Department for Education,DEPARTMENT FOR EDUCATION,21/02/2013,Grants,Children's Services and Departmental Strategy Directorate Support Group,HEREFORDSHIRE COUNCIL,Public Sector,Grants to local authorities outside AEF/AEG (aggregate external funding/aggregate exchequer grant),4000115755,1778933
Department for Education,DEPARTMENT FOR EDUCATION,21/02/2013,Grants,Children's Services and Departmental Strategy Directorate Support Group,THURROCK COUNCIL,Public Sector,Grants to local authorities outside AEF/AEG (aggregate external funding/aggregate exchequer grant),4000115756,2017364
Department for Education,DEPARTMENT FOR EDUCATION,21/02/2013,Grants,Children's Services and Departmental Strategy Early Years Extended Schools and Special Needs Group,KNOWSLEY MBC,Public Sector,Grants to local authorities outside AEF/AEG (aggregate external funding/aggregate exchequer grant),4000115757,30750
Department for Education,DEPARTMENT FOR EDUCATION,21/02/2013,Grants,Children's Services and Departmental Strategy Directorate Support Group,KNOWSLEY MBC,Public Sector,Grants to local authorities outside AEF/AEG (aggregate external funding/aggregate exchequer grant),4000115757,2866120
Department for Education,DEPARTMENT FOR EDUCATION,21/02/2013,Grants,Children's Services and Departmental Strategy Directorate Support Group,SANDWELL MBC,Public Sector,Grants to local authorities outside AEF/AEG (aggregate external funding/aggregate exchequer grant),4000115758,4722736
Department for Education,DEPARTMENT FOR EDUCATION,21/02/2013,Grants,Children's Services and Departmental Strategy Directorate Support Group,DUDLEY MBC,Public Sector,Grants to local authorities outside AEF/AEG (aggregate external funding/aggregate exchequer grant),4000115759,3296532
Department for Education,DEPARTMENT FOR EDUCATION,21/02/2013,Grants,Children's Services and Departmental Strategy Directorate Support Group,BIRMINGHAM CITY COUNCIL,Public Sector,Grants to local authorities outside AEF/AEG (aggregate external funding/aggregate exchequer grant),4000115760,16207056
Department for Education,DEPARTMENT FOR EDUCATION,21/02/2013,Grants,Children's Services and Departmental Strategy Directorate Support Group,LONDON BOROUGH OF WALTHAM FOREST COUNCIL,Public Sector,Grants to local authorities outside AEF/AEG (aggregate external funding/aggregate exchequer grant),4000115761,3781636
Department for Education,DEPARTMENT FOR EDUCATION,21/02/2013,Grants,Children's Services and Departmental Strategy Directorate Support Group,SOUTHEND ON SEA BOROUGH COUNCIL,Public Sector,Grants to local authorities outside AEF/AEG (aggregate external funding/aggregate exchequer grant),4000115762,2016375
Department for Education,DEPARTMENT FOR EDUCATION,21/02/2013,Grants,Children's Services and Departmental Strategy Early Years Extended Schools and Special Needs Group,ESSEX COUNTY COUNCIL,Public Sector,Grants to local authorities within AEF/AEG (aggregate external funding/aggregate exchequer grant),4000115763,33333
Department for Education,DEPARTMENT FOR EDUCATION,21/02/2013,Grants,Children's Services and Departmental Strategy Directorate Support Group,ESSEX COUNTY COUNCIL,Public Sector,Grants to local authorities outside AEF/AEG (aggregate external funding/aggregate exchequer grant),4000115763,12254446
Department for Education,DEPARTMENT FOR EDUCATION,21/02/2013,Grants,Children's Services and Departmental Strategy Directorate Support Group,TORBAY COUNCIL,Public Sector,Grants to local authorities outside AEF/AEG (aggregate external funding/aggregate exchequer grant),4000115764,1567470
Department for Education,DEPARTMENT FOR EDUCATION,21/02/2013,Grants,Children's Services and Departmental Strategy Early Years Extended Schools and Special Needs Group,PLYMOUTH CITY COUNCIL,Public Sector,Grants to local authorities outside AEF/AEG (aggregate external funding/aggregate exchequer grant),4000115765,24390
Department for Education,DEPARTMENT FOR EDUCATION,21/02/2013,Grants,Children's Services and Departmental Strategy Directorate Support Group,PLYMOUTH CITY COUNCIL,Public Sector,Grants to local authorities outside AEF/AEG (aggregate external funding/aggregate exchequer grant),4000115765,3007901
Department for Education,DEPARTMENT FOR EDUCATION,21/02/2013,Grants,Children's Services and Departmental Strategy Early Years Extended Schools and Special Needs Group,DEVON COUNTY COUNCIL,Public Sector,Grants to local authorities within AEF/AEG (aggregate external funding/aggregate exchequer grant),4000115766,41250
Department for Education,DEPARTMENT FOR EDUCATION,21/02/2013,Grants,Children's Services and Departmental Strategy Early Years Extended Schools and Special Needs Group,DEVON COUNTY COUNCIL,Public Sector,Grants to local authorities outside AEF/AEG (aggregate external funding/aggregate exchequer grant),4000115766,26600
Department for Education,DEPARTMENT FOR EDUCATION,21/02/2013,Grants,Children's Services and Departmental Strategy Directorate Support Group,DEVON COUNTY COUNCIL,Public Sector,Grants to local authorities outside AEF/AEG (aggregate external funding/aggregate exchequer grant),4000115766,6345114
Department for Education,DEPARTMENT FOR EDUCATION,21/02/2013,Grants,Children's Services and Departmental Strategy Directorate Support Group,LONDON BOROUGH OF RICHMOND UPON THAMES,Public Sector,Grants to local authorities outside AEF/AEG (aggregate external funding/aggregate exchequer grant),4000115767,1643634
Department for Education,DEPARTMENT FOR EDUCATION,21/02/2013,Grants,Children's Services and Departmental Strategy Directorate Support Group,LONDON BOROUGH OF REDBRIDGE,Public Sector,Grants to local authorities outside AEF/AEG (aggregate external funding/aggregate exchequer grant),4000115768,2760395
Department for Education,DEPARTMENT FOR EDUCATION,21/02/2013,Grants,Children's Services and Departmental Strategy Directorate Support Group,LONDON BOROUGH OF NEWHAM,Public Sector,Grants to local authorities outside AEF/AEG (aggregate external funding/aggregate exchequer grant),4000115769,5853252
Department for Education,DEPARTMENT FOR EDUCATION,21/02/2013,Grants,Children's Services and Departmental Strategy Directorate Support Group,LONDON BOROUGH OF MERTON COUNCIL,Public Sector,Grants to local authorities outside AEF/AEG (aggregate external funding/aggregate exchequer grant),4000115770,2098816
Department for Education,DEPARTMENT FOR EDUCATION,21/02/2013,Grants,Children's Services and Departmental Strategy Directorate Support Group,WARRINGTON BOROUGH COUNCIL,Public Sector,Grants to local authorities outside AEF/AEG (aggregate external funding/aggregate exchequer grant),4000115771,2174394
Department for Education,DEPARTMENT FOR EDUCATION,21/02/2013,Grants,Children's Services and Departmental Strategy Directorate Support Group,WOLVERHAMPTON CITY COUNCIL,Public Sector,Grants to local authorities outside AEF/AEG (aggregate external funding/aggregate exchequer grant),4000115772,3442368
Department for Education,DEPARTMENT FOR EDUCATION,21/02/2013,Grants,Children's Services and Departmental Strategy Directorate Support Group,HALTON BOROUGH COUNCIL,Public Sector,Grants to local authorities outside AEF/AEG (aggregate external funding/aggregate exchequer grant),4000115773,2300406
Department for Education,DEPARTMENT FOR EDUCATION,21/02/2013,Grants,Children's Services and Departmental Strategy Directorate Support Group,PETERBOROUGH CITY COUNCIL,Public Sector,Grants to local authorities outside AEF/AEG (aggregate external funding/aggregate exchequer grant),4000115774,2580770
Department for Education,DEPARTMENT FOR EDUCATION,21/02/2013,Grants,Children's Services and Departmental Strategy Directorate Support Group,CAMBRIDGESHIRE COUNTY COUNCIL,Public Sector,Grants to local authorities outside AEF/AEG (aggregate external funding/aggregate exchequer grant),4000115775,5286605
Department for Education,DEPARTMENT FOR EDUCATION,21/02/2013,Grants,Children's Services and Departmental Strategy Directorate Support Group,ROYAL BOROUGH OF KINGSTON UPON THAMES COUNCIL,Public Sector,Grants to local authorities outside AEF/AEG (aggregate external funding/aggregate exchequer grant),4000115776,1403478
Department for Education,DEPARTMENT FOR EDUCATION,21/02/2013,Grants,Children's Services and Departmental Strategy Directorate Support Group,LONDON BOROUGH OF HOUNSLOW COUNCIL,Public Sector,Grants to local authorities outside AEF/AEG (aggregate external funding/aggregate exchequer grant),4000115777,3160177
Department for Education,DEPARTMENT FOR EDUCATION,21/02/2013,Grants,Children's Services and Departmental Strategy Directorate Support Group,SUFFOLK COUNTY COUNCIL,Public Sector,Grants to local authorities outside AEF/AEG (aggregate external funding/aggregate exchequer grant),4000115778,6529740
Department for Education,DEPARTMENT FOR EDUCATION,21/02/2013,Grants,Children's Services and Departmental Strategy Directorate Support Group,LONDON BOROUGH OF HILLINGDON  COUNCIL,Public Sector,Grants to local authorities outside AEF/AEG (aggregate external funding/aggregate exchequer grant),4000115779,2986711
Department for Education,DEPARTMENT FOR EDUCATION,21/02/2013,Grants,Children's Services and Departmental Strategy Directorate Support Group,WOKINGHAM BOROUGH COUNCIL,Public Sector,Grants to local authorities outside AEF/AEG (aggregate external funding/aggregate exchequer grant),4000115780,1329367
Department for Education,DEPARTMENT FOR EDUCATION,21/02/2013,Grants,Children's Services and Departmental Strategy Directorate Support Group,SLOUGH BOROUGH COUNCIL,Public Sector,Grants to local authorities outside AEF/AEG (aggregate external funding/aggregate exchequer grant),4000115781,1957946
Department for Education,DEPARTMENT FOR EDUCATION,21/02/2013,Grants,Children's Services and Departmental Strategy Directorate Support Group,READING BOROUGH COUNCIL,Public Sector,Grants to local authorities outside AEF/AEG (aggregate external funding/aggregate exchequer grant),4000115782,1864180
Department for Education,DEPARTMENT FOR EDUCATION,21/02/2013,Grants,Children's Services and Departmental Strategy Directorate Support Group,WEST BERKSHIRE COUNCIL,Public Sector,Grants to local authorities outside AEF/AEG (aggregate external funding/aggregate exchequer grant),4000115783,1498128
Department for Education,DEPARTMENT FOR EDUCATION,21/02/2013,Grants,Children's Services and Departmental Strategy Directorate Support Group,LONDON BOROUGH OF HAVERING COUNCIL,Public Sector,Grants to local authorities outside AEF/AEG (aggregate external funding/aggregate exchequer grant),4000115784,2237005
Department for Education,DEPARTMENT FOR EDUCATION,21/02/2013,Grants,Children's Services and Departmental Strategy Directorate Support Group,LONDON BOROUGH OF HARROW COUNCIL,Public Sector,Grants to local authorities outside AEF/AEG (aggregate external funding/aggregate exchequer grant),4000115785,2138168
Department for Education,DEPARTMENT FOR EDUCATION,21/02/2013,Grants,Children's Services and Departmental Strategy Directorate Support Group,LONDON BOROUGH OF HARINGEY,Public Sector,Grants to local authorities outside AEF/AEG (aggregate external funding/aggregate exchequer grant),4000115786,4114636
Department for Education,DEPARTMENT FOR EDUCATION,21/02/2013,Grants,Children's Services and Departmental Strategy Directorate Support Group,LONDON BOROUGH OF ENFIELD COUNCIL,Public Sector,Grants to local authorities outside AEF/AEG (aggregate external funding/aggregate exchequer grant),4000115787,3962574
Department for Education,DEPARTMENT FOR EDUCATION,21/02/2013,Grants,Children's Services and Departmental Strategy Directorate Support Group,THE ROYAL BOROUGH OF WINDSOR & MAIDENHEAD,Public Sector,Grants to local authorities outside AEF/AEG (aggregate external funding/aggregate exchequer grant),4000115788,1332694
Department for Education,DEPARTMENT FOR EDUCATION,21/02/2013,Grants,Children's Services and Departmental Strategy Directorate Support Group,BRACKNELL FOREST BOROUGH COUNCIL,Public Sector,Grants to local authorities outside AEF/AEG (aggregate external funding/aggregate exchequer grant),4000115789,1175848
Department for Education,DEPARTMENT FOR EDUCATION,21/02/2013,Grants,Children's Services and Departmental Strategy Early Years Extended Schools and Special Needs Group,SWINDON BOROUGH COUNCIL,Public Sector,Grants to local authorities outside AEF/AEG (aggregate external funding/aggregate exchequer grant),4000115790,26864
Department for Education,DEPARTMENT FOR EDUCATION,21/02/2013,Grants,Children's Services and Departmental Strategy Directorate Support Group,SWINDON BOROUGH COUNCIL,Public Sector,Grants to local authorities outside AEF/AEG (aggregate external funding/aggregate exchequer grant),4000115790,2142104
Department for Education,DEPARTMENT FOR EDUCATION,21/02/2013,Grants,Children's Services and Departmental Strategy Early Years Extended Schools and Special Needs Group,WILTSHIRE COUNCIL,Public Sector,Grants to local authorities within AEF/AEG (aggregate external funding/aggregate exchequer grant),4000115791,37500
Department for Education,DEPARTMENT FOR EDUCATION,21/02/2013,Grants,Children's Services and Departmental Strategy Directorate Support Group,WILTSHIRE COUNCIL,Public Sector,Grants to local authorities outside AEF/AEG (aggregate external funding/aggregate exchequer grant),4000115791,4027989
Department for Education,DEPARTMENT FOR EDUCATION,21/02/2013,Grants,Children's Services and Departmental Strategy Directorate Support Group,LONDON BOROUGH OF EALING COUNCIL,Public Sector,Grants to local authorities outside AEF/AEG (aggregate external funding/aggregate exchequer grant),4000115792,4236028
Department for Education,DEPARTMENT FOR EDUCATION,21/02/2013,Grants,Children's Services and Departmental Strategy Early Years Extended Schools and Special Needs Group,LONDON BOROUGH OF CROYDON COUNCIL,Public Sector,Grants to local authorities outside AEF/AEG (aggregate external funding/aggregate exchequer grant),4000115793,36881
Department for Education,DEPARTMENT FOR EDUCATION,21/02/2013,Grants,Children's Services and Departmental Strategy Directorate Support Group,LONDON BOROUGH OF CROYDON COUNCIL,Public Sector,Grants to local authorities outside AEF/AEG (aggregate external funding/aggregate exchequer grant),4000115793,4287228
Department for Education,DEPARTMENT FOR EDUCATION,21/02/2013,Grants,Children's Services and Departmental Strategy Early Years Extended Schools and Special Needs Group,LONDON BOROUGH OF BROMLEY COUNCIL,Public Sector,Grants to local authorities within AEF/AEG (aggregate external funding/aggregate exchequer grant),4000115794,41250
Department for Education,DEPARTMENT FOR EDUCATION,21/02/2013,Grants,Children's Services and Departmental Strategy Directorate Support Group,LONDON BOROUGH OF BROMLEY COUNCIL,Public Sector,Grants to local authorities outside AEF/AEG (aggregate external funding/aggregate exchequer grant),4000115794,3006510
Department for Education,DEPARTMENT FOR EDUCATION,21/02/2013,Grants,Children's Services and Departmental Strategy Early Years Extended Schools and Special Needs Group,LONDON BOROUGH OF BRENT,Public Sector,Grants to local authorities outside AEF/AEG (aggregate external funding/aggregate exchequer grant),4000115795,30875
Department for Education,DEPARTMENT FOR EDUCATION,21/02/2013,Grants,Children's Services and Departmental Strategy Directorate Support Group,LONDON BOROUGH OF BRENT,Public Sector,Grants to local authorities outside AEF/AEG (aggregate external funding/aggregate exchequer grant),4000115795,3782032
Department for Education,DEPARTMENT FOR EDUCATION,21/02/2013,Grants,Children's Services and Departmental Strategy Directorate Support Group,STOKE ON TRENT CITY COUNCIL,Public Sector,Grants to local authorities outside AEF/AEG (aggregate external funding/aggregate exchequer grant),4000115796,3602074
Department for Education,DEPARTMENT FOR EDUCATION,21/02/2013,Grants,Children's Services and Departmental Strategy Directorate Support Group,STAFFORDSHIRE COUNCIL,Public Sector,Grants to local authorities outside AEF/AEG (aggregate external funding/aggregate exchequer grant),4000115797,7498675
Department for Education,DEPARTMENT FOR EDUCATION,21/02/2013,Grants,Children's Services and Departmental Strategy Directorate Support Group,RUTLAND COUNTY COUNCIL,Public Sector,Grants to local authorities outside AEF/AEG (aggregate external funding/aggregate exchequer grant),4000115798,467059
Department for Education,DEPARTMENT FOR EDUCATION,21/02/2013,Grants,Children's Services and Departmental Strategy Early Years Extended Schools and Special Needs Group,LEICESTER CITY COUNCIL,Public Sector,Grants to local authorities within AEF/AEG (aggregate external funding/aggregate exchequer grant),4000115799,41250
Department for Education,DEPARTMENT FOR EDUCATION,21/02/2013,Grants,Children's Services and Departmental Strategy Early Years Extended Schools and Special Needs Group,LEICESTER CITY COUNCIL,Public Sector,Capital grants paid to local authorities,4000115799,-4949
Department for Education,DEPARTMENT FOR EDUCATION,21/02/2013,Grants,Children's Services and Departmental Strategy Directorate Support Group,LEICESTER CITY COUNCIL,Public Sector,Grants to local authorities outside AEF/AEG (aggregate external funding/aggregate exchequer grant),4000115799,4845262
Department for Education,DEPARTMENT FOR EDUCATION,21/02/2013,Grants,Children's Services and Departmental Strategy Directorate Support Group,CHESHIRE EAST COUNCIL,Public Sector,Grants to local authorities outside AEF/AEG (aggregate external funding/aggregate exchequer grant),4000115800,3234499
Department for Education,DEPARTMENT FOR EDUCATION,21/02/2013,Grants,Children's Services and Departmental Strategy Early Years Extended Schools and Special Needs Group,LONDON BOROUGH OF BEXLEY COUNCIL,Public Sector,Grants to local authorities within AEF/AEG (aggregate external funding/aggregate exchequer grant),4000115801,37500
Department for Education,DEPARTMENT FOR EDUCATION,21/02/2013,Grants,Children's Services and Departmental Strategy Directorate Support Group,LONDON BOROUGH OF BEXLEY COUNCIL,Public Sector,Grants to local authorities outside AEF/AEG (aggregate external funding/aggregate exchequer grant),4000115801,2418239
Department for Education,DEPARTMENT FOR EDUCATION,21/02/2013,Grants,Children's Services and Departmental Strategy Directorate Support Group,LONDON BOROUGH OF BARNET COUNCIL,Public Sector,Grants to local authorities outside AEF/AEG (aggregate external funding/aggregate exchequer grant),4000115802,3630430
Department for Education,DEPARTMENT FOR EDUCATION,21/02/2013,Grants,Children's Services and Departmental Strategy Early Years Extended Schools and Special Needs Group,LONDON BOROUGH OF BARKING & DAGENHAM COUNCIL,Public Sector,Grants to local authorities outside AEF/AEG (aggregate external funding/aggregate exchequer grant),4000115803,42250
Department for Education,DEPARTMENT FOR EDUCATION,21/02/2013,Grants,Children's Services and Departmental Strategy Directorate Support Group,LONDON BOROUGH OF BARKING & DAGENHAM COUNCIL,Public Sector,Grants to local authorities outside AEF/AEG (aggregate external funding/aggregate exchequer grant),4000115803,3485216
Department for Education,DEPARTMENT FOR EDUCATION,21/02/2013,Grants,Children's Services and Departmental Strategy Directorate Support Group,CITY OF WESTMINSTER,Public Sector,Grants to local authorities outside AEF/AEG (aggregate external funding/aggregate exchequer grant),4000115804,2762924
Department for Education,DEPARTMENT FOR EDUCATION,21/02/2013,Grants,Children's Services and Departmental Strategy Directorate Support Group,CHESHIRE WEST & CHESTER COUNCIL,Public Sector,Grants to local authorities outside AEF/AEG (aggregate external funding/aggregate exchequer grant),4000115805,3246636
Department for Education,DEPARTMENT FOR EDUCATION,21/02/2013,Grants,Children's Services and Departmental Strategy Directorate Support Group,LONDON BOROUGH OF SUTTON,Public Sector,Grants to local authorities outside AEF/AEG (aggregate external funding/aggregate exchequer grant),4000115806,2160575
Department for Education,DEPARTMENT FOR EDUCATION,21/02/2013,Grants,Children's Services and Departmental Strategy Directorate Support Group,LEICESTERSHIRE COUNTY COUNCIL,Public Sector,Grants to local authorities outside AEF/AEG (aggregate external funding/aggregate exchequer grant),4000115807,5005403
Department for Education,DEPARTMENT FOR EDUCATION,21/02/2013,Grants,Children's Services and Departmental Strategy Early Years Extended Schools and Special Needs Group,SOUTHAMPTON CITY COUNCIL,Public Sector,Grants to local authorities within AEF/AEG (aggregate external funding/aggregate exchequer grant),4000115808,41250
Department for Education,DEPARTMENT FOR EDUCATION,21/02/2013,Grants,Children's Services and Departmental Strategy Early Years Extended Schools and Special Needs Group,SOUTHAMPTON CITY COUNCIL,Public Sector,Grants to local authorities outside AEF/AEG (aggregate external funding/aggregate exchequer grant),4000115808,43500
Department for Education,DEPARTMENT FOR EDUCATION,21/02/2013,Grants,Children's Services and Departmental Strategy Directorate Support Group,SOUTHAMPTON CITY COUNCIL,Public Sector,Grants to local authorities outside AEF/AEG (aggregate external funding/aggregate exchequer grant),4000115808,2747066
Department for Education,DEPARTMENT FOR EDUCATION,21/02/2013,Grants,Children's Services and Departmental Strategy Early Years Extended Schools and Special Needs Group,PORTSMOUTH CITY COUNCIL,Public Sector,Grants to local authorities outside AEF/AEG (aggregate external funding/aggregate exchequer grant),4000115809,32250
Department for Education,DEPARTMENT FOR EDUCATION,21/02/2013,Grants,Children's Services and Departmental Strategy Directorate Support Group,PORTSMOUTH CITY COUNCIL,Public Sector,Grants to local authorities outside AEF/AEG (aggregate external funding/aggregate exchequer grant),4000115809,2473905
Department for Education,DEPARTMENT FOR EDUCATION,21/02/2013,Grants,Children's Services and Departmental Strategy Directorate Support Group,SHEFFIELD CITY COUNCIL,Public Sector,Grants to local authorities outside AEF/AEG (aggregate external funding/aggregate exchequer grant),4000115810,6304437
Department for Education,DEPARTMENT FOR EDUCATION,21/02/2013,Grants,Children's Services and Departmental Strategy Directorate Support Group,SUNDERLAND CITY COUNCIL,Public Sector,Grants to local authorities outside AEF/AEG (aggregate external funding/aggregate exchequer grant),4000115811,4070747
Department for Education,DEPARTMENT FOR EDUCATION,21/02/2013,Grants,Children's Services and Departmental Strategy Directorate Support Group,DONCASTER MBC,Public Sector,Grants to local authorities outside AEF/AEG (aggregate external funding/aggregate exchequer grant),4000115812,3913940
Department for Education,DEPARTMENT FOR EDUCATION,21/02/2013,Grants,Children's Services and Departmental Strategy Early Years Extended Schools and Special Needs Group,METROPOLITAN BOROUGH OF WIRRAL,Public Sector,Grants to local authorities outside AEF/AEG (aggregate external funding/aggregate exchequer grant),4000115813,13200
Department for Education,DEPARTMENT FOR EDUCATION,21/02/2013,Grants,Children's Services and Departmental Strategy Directorate Support Group,METROPOLITAN BOROUGH OF WIRRAL,Public Sector,Grants to local authorities outside AEF/AEG (aggregate external funding/aggregate exchequer grant),4000115813,3931136
Department for Education,DEPARTMENT FOR EDUCATION,21/02/2013,Grants,Children's Services and Departmental Strategy Early Years Extended Schools and Special Needs Group,LONDON BOROUGH OF LEWISHAM,Public Sector,Grants to local authorities within AEF/AEG (aggregate external funding/aggregate exchequer grant),4000115814,41250
Department for Education,DEPARTMENT FOR EDUCATION,21/02/2013,Grants,Children's Services and Departmental Strategy Early Years Extended Schools and Special Needs Group,LONDON BOROUGH OF LEWISHAM,Public Sector,Grants to local authorities outside AEF/AEG (aggregate external funding/aggregate exchequer grant),4000115814,17475
Department for Education,DEPARTMENT FOR EDUCATION,21/02/2013,Grants,Children's Services and Departmental Strategy Directorate Support Group,LONDON BOROUGH OF LEWISHAM,Public Sector,Grants to local authorities outside AEF/AEG (aggregate external funding/aggregate exchequer grant),4000115814,4629301
Department for Education,DEPARTMENT FOR EDUCATION,21/02/2013,Grants,Children's Services and Departmental Strategy Early Years Extended Schools and Special Needs Group,HAMPSHIRE COUNTY COUNCIL,Public Sector,Grants to local authorities within AEF/AEG (aggregate external funding/aggregate exchequer grant),4000115815,41250
Department for Education,DEPARTMENT FOR EDUCATION,21/02/2013,Grants,Children's Services and Departmental Strategy Directorate Support Group,HAMPSHIRE COUNTY COUNCIL,Public Sector,Grants to local authorities outside AEF/AEG (aggregate external funding/aggregate exchequer grant),4000115815,10508813
Department for Education,DEPARTMENT FOR EDUCATION,21/02/2013,Grants,Children's Services and Departmental Strategy Early Years Extended Schools and Special Needs Group,BRIGHTON & HOVE CITY COUNCIL,Public Sector,Grants to local authorities within AEF/AEG (aggregate external funding/aggregate exchequer grant),4000115816,41250
Department for Education,DEPARTMENT FOR EDUCATION,21/02/2013,Grants,Children's Services and Departmental Strategy Directorate Support Group,BRIGHTON & HOVE CITY COUNCIL,Public Sector,Grants to local authorities outside AEF/AEG (aggregate external funding/aggregate exchequer grant),4000115816,2785335
Department for Education,DEPARTMENT FOR EDUCATION,21/02/2013,Grants,Children's Services and Departmental Strategy Early Years Extended Schools and Special Needs Group,EAST SUSSEX COUNTY COUNCIL,Public Sector,Grants to local authorities within AEF/AEG (aggregate external funding/aggregate exchequer grant),4000115817,41250
Department for Education,DEPARTMENT FOR EDUCATION,21/02/2013,Grants,Children's Services and Departmental Strategy Directorate Support Group,EAST SUSSEX COUNTY COUNCIL,Public Sector,Grants to local authorities outside AEF/AEG (aggregate external funding/aggregate exchequer grant),4000115817,4834786
Department for Education,DEPARTMENT FOR EDUCATION,21/02/2013,Grants,Children's Services and Departmental Strategy Early Years Extended Schools and Special Needs Group,DARLINGTON BOROUGH COUNCIL,Public Sector,Grants to local authorities within AEF/AEG (aggregate external funding/aggregate exchequer grant),4000115818,37500
Department for Education,DEPARTMENT FOR EDUCATION,21/02/2013,Grants,Children's Services and Departmental Strategy Early Years Extended Schools and Special Needs Group,DARLINGTON BOROUGH COUNCIL,Public Sector,Grants to local authorities outside AEF/AEG (aggregate external funding/aggregate exchequer grant),4000115818,15354
Department for Education,DEPARTMENT FOR EDUCATION,21/02/2013,Grants,Children's Services and Departmental Strategy Directorate Support Group,DARLINGTON BOROUGH COUNCIL,Public Sector,Grants to local authorities outside AEF/AEG (aggregate external funding/aggregate exchequer grant),4000115818,1444375
Department for Education,DEPARTMENT FOR EDUCATION,21/02/2013,Grants,Children's Services and Departmental Strategy Directorate Support Group,LEEDS CITY COUNCIL,Public Sector,Grants to local authorities outside AEF/AEG (aggregate external funding/aggregate exchequer grant),4000115819,8188649
Department for Education,DEPARTMENT FOR EDUCATION,21/02/2013,Grants,Children's Services and Departmental Strategy Directorate Support Group,WALSALL MBC,Public Sector,Grants to local authorities outside AEF/AEG (aggregate external funding/aggregate exchequer grant),4000115820,3851719
Department for Education,DEPARTMENT FOR EDUCATION,21/02/2013,Grants,Children's Services and Departmental Strategy Directorate Support Group,CORPORATION OF LONDON,Public Sector,Grants to local authorities outside AEF/AEG (aggregate external funding/aggregate exchequer grant),4000115821,282429
Department for Education,DEPARTMENT FOR EDUCATION,21/02/2013,Grants,Children's Services and Departmental Strategy Directorate Support Group,LONDON BOROUGH OF TOWER HAMLETS COUNCIL,Public Sector,Grants to local authorities outside AEF/AEG (aggregate external funding/aggregate exchequer grant),4000115822,5325916
Department for Education,DEPARTMENT FOR EDUCATION,21/02/2013,Grants,Children's Services and Departmental Strategy Directorate Support Group,LONDON BOROUGH OF ISLINGTON COUNCIL,Public Sector,Grants to local authorities outside AEF/AEG (aggregate external funding/aggregate exchequer grant),4000115823,3640646
Department for Education,DEPARTMENT FOR EDUCATION,21/02/2013,Grants,Children's Services and Departmental Strategy Directorate Support Group,DURHAM COUNTY COUNCIL,Public Sector,Grants to local authorities outside AEF/AEG (aggregate external funding/aggregate exchequer grant),4000115824,6207267
Department for Education,DEPARTMENT FOR EDUCATION,21/02/2013,Grants,Children's Services and Departmental Strategy Directorate Support Group,BOURNEMOUTH BOROUGH COUNCIL,Public Sector,Grants to local authorities outside AEF/AEG (aggregate external funding/aggregate exchequer grant),4000115825,1759984
Department for Education,DEPARTMENT FOR EDUCATION,21/02/2013,Grants,Children's Services and Departmental Strategy Directorate Support Group,POOLE BOROUGH COUNCIL,Public Sector,Grants to local authorities outside AEF/AEG (aggregate external funding/aggregate exchequer grant),4000115826,1276056
Department for Education,DEPARTMENT FOR EDUCATION,21/02/2013,Grants,Children's Services and Departmental Strategy Directorate Support Group,DORSET COUNTY COUNCIL,Public Sector,Grants to local authorities outside AEF/AEG (aggregate external funding/aggregate exchequer grant),4000115827,3099937
Department for Education,DEPARTMENT FOR EDUCATION,21/02/2013,Grants,Children's Services and Departmental Strategy Directorate Support Group,DERBY CITY COUNCIL,Public Sector,Grants to local authorities outside AEF/AEG (aggregate external funding/aggregate exchequer grant),4000115828,3073893
Department for Education,DEPARTMENT FOR EDUCATION,21/02/2013,Grants,Children's Services and Departmental Strategy Directorate Support Group,LONDON BOROUGH OF CAMDEN,Public Sector,Grants to local authorities outside AEF/AEG (aggregate external funding/aggregate exchequer grant),4000115829,3393245
Department for Education,DEPARTMENT FOR EDUCATION,21/02/2013,Grants,Children's Services and Departmental Strategy Directorate Support Group,LONDON BOROUGH OF WANDSWORTH COUNCIL,Public Sector,Grants to local authorities outside AEF/AEG (aggregate external funding/aggregate exchequer grant),4000115830,3548636
Department for Education,DEPARTMENT FOR EDUCATION,21/02/2013,Grants,Children's Services and Departmental Strategy Early Years Extended Schools and Special Needs Group,LONDON BOROUGH OF GREENWICH,Public Sector,Grants to local authorities within AEF/AEG (aggregate external funding/aggregate exchequer grant),4000115831,41250
Department for Education,DEPARTMENT FOR EDUCATION,21/02/2013,Grants,Children's Services and Departmental Strategy Directorate Support Group,LONDON BOROUGH OF GREENWICH,Public Sector,Grants to local authorities outside AEF/AEG (aggregate external funding/aggregate exchequer grant),4000115831,4347879
Department for Education,DEPARTMENT FOR EDUCATION,21/02/2013,Grants,Children's Services and Departmental Strategy Directorate Support Group,LONDON BOROUGH OF HAMMERSMITH & FULHAM COUNCIL,Public Sector,Grants to local authorities outside AEF/AEG (aggregate external funding/aggregate exchequer grant),4000115832,2471288
Department for Education,DEPARTMENT FOR EDUCATION,21/02/2013,Grants,Children's Services and Departmental Strategy Early Years Extended Schools and Special Needs Group,DERBYSHIRE COUNTY COUNCIL,Public Sector,Grants to local authorities within AEF/AEG (aggregate external funding/aggregate exchequer grant),4000115833,33333
Department for Education,DEPARTMENT FOR EDUCATION,21/02/2013,Grants,Children's Services and Departmental Strategy Directorate Support Group,DERBYSHIRE COUNTY COUNCIL,Public Sector,Grants to local authorities outside AEF/AEG (aggregate external funding/aggregate exchequer grant),4000115833,7409399
Department for Education,DEPARTMENT FOR EDUCATION,21/02/2013,Grants,Children's Services and Departmental Strategy Directorate Support Group,MILTON KEYNES COUNCIL,Public Sector,Grants to local authorities outside AEF/AEG (aggregate external funding/aggregate exchequer grant),4000115834,2792954
Department for Education,DEPARTMENT FOR EDUCATION,21/02/2013,Grants,Children's Services and Departmental Strategy Early Years Extended Schools and Special Needs Group,BUCKINGHAMSHIRE COUNTY COUNCIL,Public Sector,Grants to local authorities outside AEF/AEG (aggregate external funding/aggregate exchequer grant),4000115835,32075
Department for Education,DEPARTMENT FOR EDUCATION,21/02/2013,Grants,Children's Services and Departmental Strategy Directorate Support Group,BUCKINGHAMSHIRE COUNTY COUNCIL,Public Sector,Grants to local authorities outside AEF/AEG (aggregate external funding/aggregate exchequer grant),4000115835,4428549
Department for Education,DEPARTMENT FOR EDUCATION,21/02/2013,Grants,Children's Services and Departmental Strategy Directorate Support Group,LUTON BOROUGH COUNCIL,Public Sector,Grants to local authorities outside AEF/AEG (aggregate external funding/aggregate exchequer grant),4000115836,2980805
Department for Education,DEPARTMENT FOR EDUCATION,21/02/2013,Grants,Children's Services and Departmental Strategy Directorate Support Group,LONDON BOROUGH OF SOUTHWARK COUNCIL,Public Sector,Grants to local authorities outside AEF/AEG (aggregate external funding/aggregate exchequer grant),4000115837,5120904
Department for Education,DEPARTMENT FOR EDUCATION,21/02/2013,Grants,Children's Services and Departmental Strategy Directorate Support Group,THE LONDON BOROUGH OF HACKNEY,Public Sector,Grants to local authorities outside AEF/AEG (aggregate external funding/aggregate exchequer grant),4000115838,5242114
Department for Education,DEPARTMENT FOR EDUCATION,21/02/2013,Grants,Children's Services and Departmental Strategy Directorate Support Group,THE ROYAL BOROUGH OF KENSINGTON & CHELSEA COUNCIL,Public Sector,Grants to local authorities outside AEF/AEG (aggregate external funding/aggregate exchequer grant),4000115839,1849960
Department for Education,DEPARTMENT FOR EDUCATION,21/02/2013,Grants,Children's Services and Departmental Strategy Early Years Extended Schools and Special Needs Group,LONDON BOROUGH OF LAMBETH COUNCIL,Public Sector,Grants to local authorities outside AEF/AEG (aggregate external funding/aggregate exchequer grant),4000115840,35875
Department for Education,DEPARTMENT FOR EDUCATION,21/02/2013,Grants,Children's Services and Departmental Strategy Directorate Support Group,LONDON BOROUGH OF LAMBETH COUNCIL,Public Sector,Grants to local authorities outside AEF/AEG (aggregate external funding/aggregate exchequer grant),4000115840,5139045
Department for Education,DEPARTMENT FOR EDUCATION,21/02/2013,Grants,Children's Services and Departmental Strategy Directorate Support Group,BEDFORD BOROUGH COUNCIL,Public Sector,Grants to local authorities outside AEF/AEG (aggregate external funding/aggregate exchequer grant),4000115841,1750974
Department for Education,DEPARTMENT FOR EDUCATION,21/02/2013,Grants,Children's Services and Departmental Strategy Directorate Support Group,YORK CITY COUNCIL,Public Sector,Grants to local authorities outside AEF/AEG (aggregate external funding/aggregate exchequer grant),4000115842,1685299
Department for Education,DEPARTMENT FOR EDUCATION,21/02/2013,Grants,Children's Services and Departmental Strategy Early Years Extended Schools and Special Needs Group,NORTH YORKSHIRE COUNTY COUNCIL,Public Sector,Grants to local authorities within AEF/AEG (aggregate external funding/aggregate exchequer grant),4000115843,37500
Department for Education,DEPARTMENT FOR EDUCATION,21/02/2013,Grants,Children's Services and Departmental Strategy Directorate Support Group,NORTH YORKSHIRE COUNTY COUNCIL,Public Sector,Grants to local authorities outside AEF/AEG (aggregate external funding/aggregate exchequer grant),4000115843,5132900
Department for Education,DEPARTMENT FOR EDUCATION,21/02/2013,Grants,Children's Services and Departmental Strategy Directorate Support Group,NORTH LINCOLNSHIRE COUNCIL,Public Sector,Grants to local authorities outside AEF/AEG (aggregate external funding/aggregate exchequer grant),4000115844,1900964
Department for Education,DEPARTMENT FOR EDUCATION,21/02/2013,Grants,Children's Services and Departmental Strategy Directorate Support Group,NORTH EAST LINCOLNSHIRE COUNCIL,Public Sector,Grants to local authorities outside AEF/AEG (aggregate external funding/aggregate exchequer grant),4000115845,2451950
Department for Education,DEPARTMENT FOR EDUCATION,21/02/2013,Grants,Children's Services and Departmental Strategy Early Years Extended Schools and Special Needs Group,WEST SUSSEX COUNTY COUNCIL,Public Sector,Grants to local authorities within AEF/AEG (aggregate external funding/aggregate exchequer grant),4000115846,41250
Department for Education,DEPARTMENT FOR EDUCATION,21/02/2013,Grants,Children's Services and Departmental Strategy Directorate Support Group,WEST SUSSEX COUNTY COUNCIL,Public Sector,Grants to local authorities outside AEF/AEG (aggregate external funding/aggregate exchequer grant),4000115846,6300424
Department for Education,DEPARTMENT FOR EDUCATION,21/02/2013,Grants,Children's Services and Departmental Strategy Directorate Support Group,WARWICKSHIRE COUNTY COUNCIL,Public Sector,Grants to local authorities outside AEF/AEG (aggregate external funding/aggregate exchequer grant),4000115847,4766176
Department for Education,DEPARTMENT FOR EDUCATION,21/02/2013,Grants,Children's Services and Departmental Strategy Early Years Extended Schools and Special Needs Group,SURREY COUNTY COUNCIL,Public Sector,Grants to local authorities within AEF/AEG (aggregate external funding/aggregate exchequer grant),4000115848,41250
Department for Education,DEPARTMENT FOR EDUCATION,21/02/2013,Grants,Children's Services and Departmental Strategy Directorate Support Group,SURREY COUNTY COUNCIL,Public Sector,Grants to local authorities outside AEF/AEG (aggregate external funding/aggregate exchequer grant),4000115848,8380914
Department for Education,DEPARTMENT FOR EDUCATION,21/02/2013,Grants,Children's Services and Departmental Strategy Early Years Extended Schools and Special Needs Group,BOLTON MBC,Public Sector,Grants to local authorities outside AEF/AEG (aggregate external funding/aggregate exchequer grant),4000115849,34361
Department for Education,DEPARTMENT FOR EDUCATION,21/02/2013,Grants,Children's Services and Departmental Strategy Directorate Support Group,BOLTON MBC,Public Sector,Grants to local authorities outside AEF/AEG (aggregate external funding/aggregate exchequer grant),4000115849,3874743
Department for Education,DEPARTMENT FOR EDUCATION,21/02/2013,Grants,Children's Services and Departmental Strategy Directorate Support Group,NORFOLK COUNTY COUNCIL,Public Sector,Grants to local authorities outside AEF/AEG (aggregate external funding/aggregate exchequer grant),4000115850,8061982
Department for Education,DEPARTMENT FOR EDUCATION,21/02/2013,Grants,Children's Services and Departmental Strategy Early Years Extended Schools and Special Needs Group,EAST RIDING OF YORKSHIRE,Public Sector,Grants to local authorities outside AEF/AEG (aggregate external funding/aggregate exchequer grant),4000115851,34661
Department for Education,DEPARTMENT FOR EDUCATION,21/02/2013,Grants,Children's Services and Departmental Strategy Directorate Support Group,EAST RIDING OF YORKSHIRE,Public Sector,Grants to local authorities outside AEF/AEG (aggregate external funding/aggregate exchequer grant),4000115851,2803021
Department for Education,DEPARTMENT FOR EDUCATION,21/02/2013,Grants,Children's Services and Departmental Strategy Directorate Support Group,KINGSTON UPON HULL COUNCIL,Public Sector,Grants to local authorities outside AEF/AEG (aggregate external funding/aggregate exchequer grant),4000115852,3773600
Department for Education,DEPARTMENT FOR EDUCATION,21/02/2013,Grants,Children's Services and Departmental Strategy Directorate Support Group,STOCKTON ON TEES,Public Sector,Grants to local authorities outside AEF/AEG (aggregate external funding/aggregate exchequer grant),4000115853,2442015
Department for Education,DEPARTMENT FOR EDUCATION,21/02/2013,Grants,Children's Services and Departmental Strategy Directorate Support Group,REDCAR & CLEVELAND BOROUGH COUNCIL,Public Sector,Grants to local authorities outside AEF/AEG (aggregate external funding/aggregate exchequer grant),4000115854,2227411
Department for Education,DEPARTMENT FOR EDUCATION,21/02/2013,Grants,Children's Services and Departmental Strategy Directorate Support Group,NORTH TYNESIDE,Public Sector,Grants to local authorities outside AEF/AEG (aggregate external funding/aggregate exchequer grant),4000115855,2266069
Department for Education,DEPARTMENT FOR EDUCATION,21/02/2013,Grants,Children's Services and Departmental Strategy Early Years Extended Schools and Special Needs Group,SOLIHULL MBC,Public Sector,Grants to local authorities within AEF/AEG (aggregate external funding/aggregate exchequer grant),4000115856,37500
Department for Education,DEPARTMENT FOR EDUCATION,21/02/2013,Grants,Children's Services and Departmental Strategy Directorate Support Group,SOLIHULL MBC,Public Sector,Grants to local authorities outside AEF/AEG (aggregate external funding/aggregate exchequer grant),4000115856,2286861
Department for Education,DEPARTMENT FOR EDUCATION,21/02/2013,Grants,Children's Services and Departmental Strategy Directorate Support Group,SOMERSET COUNTY COUNCIL,Public Sector,Grants to local authorities outside AEF/AEG (aggregate external funding/aggregate exchequer grant),4000115857,4884146
Department for Education,DEPARTMENT FOR EDUCATION,21/02/2013,Grants,Children's Services and Departmental Strategy Early Years Extended Schools and Special Needs Group,OXFORDSHIRE COUNTY COUNCIL,Public Sector,Grants to local authorities outside AEF/AEG (aggregate external funding/aggregate exchequer grant),4000115858,33847
Department for Education,DEPARTMENT FOR EDUCATION,21/02/2013,Grants,Children's Services and Departmental Strategy Directorate Support Group,OXFORDSHIRE COUNTY COUNCIL,Public Sector,Grants to local authorities outside AEF/AEG (aggregate external funding/aggregate exchequer grant),4000115858,5873366
Department for Education,DEPARTMENT FOR EDUCATION,21/02/2013,Grants,Children's Services and Departmental Strategy Directorate Support Group,NORTHUMBERLAND COUNTY COUNCIL,Public Sector,Grants to local authorities outside AEF/AEG (aggregate external funding/aggregate exchequer grant),4000115859,3241702
Department for Education,DEPARTMENT FOR EDUCATION,21/02/2013,Grants,Children's Services and Departmental Strategy Early Years Extended Schools and Special Needs Group,NORTHAMPTONSHIRE COUNTY COUNCIL,Public Sector,Grants to local authorities within AEF/AEG (aggregate external funding/aggregate exchequer grant),4000115860,41250
Department for Education,DEPARTMENT FOR EDUCATION,21/02/2013,Grants,Children's Services and Departmental Strategy Directorate Support Group,NORTHAMPTONSHIRE COUNTY COUNCIL,Public Sector,Grants to local authorities outside AEF/AEG (aggregate external funding/aggregate exchequer grant),4000115860,7137558
Department for Education,DEPARTMENT FOR EDUCATION,21/02/2013,Grants,Children's Services and Departmental Strategy Directorate Support Group,MIDDLESBROUGH COUNCIL,Public Sector,Grants to local authorities outside AEF/AEG (aggregate external funding/aggregate exchequer grant),4000115861,2674355
Department for Education,DEPARTMENT FOR EDUCATION,21/02/2013,Grants,Children's Services and Departmental Strategy Early Years Extended Schools and Special Needs Group,HARTLEPOOL BOROUGH COUNCIL,Public Sector,Grants to local authorities within AEF/AEG (aggregate external funding/aggregate exchequer grant),4000115862,37500
Department for Education,DEPARTMENT FOR EDUCATION,21/02/2013,Grants,Children's Services and Departmental Strategy Directorate Support Group,HARTLEPOOL BOROUGH COUNCIL,Public Sector,Grants to local authorities outside AEF/AEG (aggregate external funding/aggregate exchequer grant),4000115862,1798668
Department for Education,DEPARTMENT FOR EDUCATION,21/02/2013,Grants,Children's Services and Departmental Strategy Directorate Support Group,SOUTH GLOUCEST,Public Sector,Grants to local authorities outside AEF/AEG (aggregate external funding/aggregate exchequer grant),4000115863,2211835
Department for Education,DEPARTMENT FOR EDUCATION,21/02/2013,Grants,Children's Services and Departmental Strategy Directorate Support Group,NORTH SOMERSET COUNCIL,Public Sector,Grants to local authorities outside AEF/AEG (aggregate external funding/aggregate exchequer grant),4000115864,1861003
Department for Education,DEPARTMENT FOR EDUCATION,21/02/2013,Grants,Children's Services and Departmental Strategy Directorate Support Group,BRISTOL CITY COUNCIL,Public Sector,Grants to local authorities outside AEF/AEG (aggregate external funding/aggregate exchequer grant),4000115865,4948074
Department for Education,DEPARTMENT FOR EDUCATION,21/02/2013,Grants,Children's Services and Departmental Strategy Early Years Extended Schools and Special Needs Group,NEWCASTLE CITY COUNCIL,Public Sector,Grants to local authorities within AEF/AEG (aggregate external funding/aggregate exchequer grant),4000115866,33333
Department for Education,DEPARTMENT FOR EDUCATION,21/02/2013,Grants,Children's Services and Departmental Strategy Directorate Support Group,NEWCASTLE CITY COUNCIL,Public Sector,Grants to local authorities outside AEF/AEG (aggregate external funding/aggregate exchequer grant),4000115866,3744486
Department for Education,DEPARTMENT FOR EDUCATION,21/02/2013,Grants,Children's Services and Departmental Strategy Early Years Extended Schools and Special Needs Group,GATESHEAD MBC,Public Sector,Grants to local authorities within AEF/AEG (aggregate external funding/aggregate exchequer grant),4000115867,37500
Department for Education,DEPARTMENT FOR EDUCATION,21/02/2013,Grants,Children's Services and Departmental Strategy Directorate Support Group,GATESHEAD MBC,Public Sector,Grants to local authorities outside AEF/AEG (aggregate external funding/aggregate exchequer grant),4000115867,2632031
Department for Education,DEPARTMENT FOR EDUCATION,21/02/2013,Grants,Children's Services and Departmental Strategy Directorate Support Group,WAKEFIELD MDC,Public Sector,Grants to local authorities outside AEF/AEG (aggregate external funding/aggregate exchequer grant),4000115868,3813050
Department for Education,DEPARTMENT FOR EDUCATION,21/02/2013,Grants,Children's Services and Departmental Strategy Directorate Support Group,KIRKLEES COUNCIL,Public Sector,Grants to local authorities outside AEF/AEG (aggregate external funding/aggregate exchequer grant),4000115869,5355260
Department for Education,DEPARTMENT FOR EDUCATION,21/02/2013,Grants,Children's Services and Departmental Strategy Early Years Extended Schools and Special Needs Group,CALDERDALE MBC,Public Sector,Grants to local authorities within AEF/AEG (aggregate external funding/aggregate exchequer grant),4000115870,41250
Department for Education,DEPARTMENT FOR EDUCATION,21/02/2013,Grants,Children's Services and Departmental Strategy Early Years Extended Schools and Special Needs Group,CALDERDALE MBC,Public Sector,Grants to local authorities outside AEF/AEG (aggregate external funding/aggregate exchequer grant),4000115870,34164
Department for Education,DEPARTMENT FOR EDUCATION,21/02/2013,Grants,Children's Services and Departmental Strategy Directorate Support Group,CALDERDALE MBC,Public Sector,Grants to local authorities outside AEF/AEG (aggregate external funding/aggregate exchequer grant),4000115870,2688943
Department for Education,DEPARTMENT FOR EDUCATION,21/02/2013,Grants,Children's Services and Departmental Strategy Early Years Extended Schools and Special Needs Group,LINCOLNSHIRE COUNTY COUNCIL,Public Sector,Grants to local authorities outside AEF/AEG (aggregate external funding/aggregate exchequer grant),4000115871,14950
Department for Education,DEPARTMENT FOR EDUCATION,21/02/2013,Grants,Children's Services and Departmental Strategy Directorate Support Group,LINCOLNSHIRE COUNTY COUNCIL,Public Sector,Grants to local authorities outside AEF/AEG (aggregate external funding/aggregate exchequer grant),4000115871,6610866
Department for Education,DEPARTMENT FOR EDUCATION,21/02/2013,Grants,Children's Services and Departmental Strategy Directorate Support Group,ISLE OF WIGHT COUNCIL,Public Sector,Grants to local authorities outside AEF/AEG (aggregate external funding/aggregate exchequer grant),4000115872,1405221
Department for Education,DEPARTMENT FOR EDUCATION,21/02/2013,Grants,Children's Services and Departmental Strategy Early Years Extended Schools and Special Needs Group,HERTFORDSHIRE,Public Sector,Grants to local authorities within AEF/AEG (aggregate external funding/aggregate exchequer grant),4000115873,37500
Department for Education,DEPARTMENT FOR EDUCATION,21/02/2013,Grants,Children's Services and Departmental Strategy Early Years Extended Schools and Special Needs Group,HERTFORDSHIRE,Public Sector,Grants to local authorities outside AEF/AEG (aggregate external funding/aggregate exchequer grant),4000115873,42750
Department for Education,DEPARTMENT FOR EDUCATION,21/02/2013,Grants,Children's Services and Departmental Strategy Directorate Support Group,HERTFORDSHIRE,Public Sector,Grants to local authorities outside AEF/AEG (aggregate external funding/aggregate exchequer grant),4000115873,9251637
Department for Education,DEPARTMENT FOR EDUCATION,21/02/2013,Grants,Children's Services and Departmental Strategy Early Years Extended Schools and Special Needs Group,GLOUCESTERSHIRE COUNTY COUNCIL,Public Sector,Grants to local authorities within AEF/AEG (aggregate external funding/aggregate exchequer grant),4000115874,33333
Department for Education,DEPARTMENT FOR EDUCATION,21/02/2013,Grants,Children's Services and Departmental Strategy Early Years Extended Schools and Special Needs Group,GLOUCESTERSHIRE COUNTY COUNCIL,Public Sector,Grants to local authorities outside AEF/AEG (aggregate external funding/aggregate exchequer grant),4000115874,26833
Department for Education,DEPARTMENT FOR EDUCATION,21/02/2013,Grants,Children's Services and Departmental Strategy Directorate Support Group,GLOUCESTERSHIRE COUNTY COUNCIL,Public Sector,Grants to local authorities outside AEF/AEG (aggregate external funding/aggregate exchequer grant),4000115874,5268454
Department for Education,DEPARTMENT FOR EDUCATION,21/02/2013,Grants,Children's Services and Departmental Strategy Directorate Support Group,CUMBRIA COUNTY COUNCIL,Public Sector,Grants to local authorities outside AEF/AEG (aggregate external funding/aggregate exchequer grant),4000115875,5020417
Department for Education,DEPARTMENT FOR EDUCATION,21/02/2013,Grants,Children's Services and Departmental Strategy Directorate Support Group,BATH & NORTH EAST SOMERSET COUNCIL,Public Sector,Grants to local authorities outside AEF/AEG (aggregate external funding/aggregate exchequer grant),4000115876,1578137
Department for Education,DEPARTMENT FOR EDUCATION,21/02/2013,Grants,Children's Services and Departmental Strategy Early Years Extended Schools and Special Needs Group,COUNCIL OF THE ISLES OF SCILLY,Public Sector,Grants to local authorities within AEF/AEG (aggregate external funding/aggregate exchequer grant),4000115877,9375
Department for Education,DEPARTMENT FOR EDUCATION,21/02/2013,Grants,Children's Services and Departmental Strategy Directorate Support Group,COUNCIL OF THE ISLES OF SCILLY,Public Sector,Grants to local authorities outside AEF/AEG (aggregate external funding/aggregate exchequer grant),4000115877,165763
Department for Education,DEPARTMENT FOR EDUCATION,21/02/2013,Grants,Children's Services and Departmental Strategy Directorate Support Group,SOUTH TYNESIDE,Public Sector,Grants to local authorities outside AEF/AEG (aggregate external funding/aggregate exchequer grant),4000115878,2468645
Department for Education,DEPARTMENT FOR EDUCATION,21/02/2013,Grants,Children's Services and Departmental Strategy Directorate Support Group,CENTRAL BEDFORDSHIRE COUNCIL,Public Sector,Grants to local authorities outside AEF/AEG (aggregate external funding/aggregate exchequer grant),4000115879,2445473
Department for Education,DEPARTMENT FOR EDUCATION,21/02/2013,Grants,Children's Services and Departmental Strategy Directorate Support Group,CITY OF BRADFORD METROPOLITAN DISTRICT COUNCIL,Public Sector,Grants to local authorities outside AEF/AEG (aggregate external funding/aggregate exchequer grant),4000115880,7751641
Department for Education,DEPARTMENT FOR EDUCATION,21/02/2013,Grants,Children's Services and Departmental Strategy Directorate Support Group,ROTHERHAM MBC,Public Sector,Grants to local authorities outside AEF/AEG (aggregate external funding/aggregate exchequer grant),4000115881,3222079
Department for Education,DEPARTMENT FOR EDUCATION,21/02/2013,Grants,Children's Services and Departmental Strategy Early Years Extended Schools and Special Needs Group,BARNSLEY MBC,Public Sector,Grants to local authorities outside AEF/AEG (aggregate external funding/aggregate exchequer grant),4000115882,28090
Department for Education,DEPARTMENT FOR EDUCATION,21/02/2013,Grants,Children's Services and Departmental Strategy Directorate Support Group,BARNSLEY MBC,Public Sector,Grants to local authorities outside AEF/AEG (aggregate external funding/aggregate exchequer grant),4000115882,2966483
Department for Education,DEPARTMENT FOR EDUCATION,21/02/2013,Grants,Children's Services and Departmental Strategy Early Years Extended Schools and Special Needs Group,WIGAN MBC,Public Sector,Grants to local authorities within AEF/AEG (aggregate external funding/aggregate exchequer grant),4000115883,37500
Department for Education,DEPARTMENT FOR EDUCATION,21/02/2013,Grants,Children's Services and Departmental Strategy Directorate Support Group,WIGAN MBC,Public Sector,Grants to local authorities outside AEF/AEG (aggregate external funding/aggregate exchequer grant),4000115883,3641457
Department for Education,DEPARTMENT FOR EDUCATION,21/02/2013,Grants,Children's Services and Departmental Strategy Early Years Extended Schools and Special Needs Group,TRAFFORD MB COUNCIL,Public Sector,Grants to local authorities within AEF/AEG (aggregate external funding/aggregate exchequer grant),4000115884,41250
Department for Education,DEPARTMENT FOR EDUCATION,21/02/2013,Grants,Children's Services and Departmental Strategy Directorate Support Group,TRAFFORD MB COUNCIL,Public Sector,Grants to local authorities outside AEF/AEG (aggregate external funding/aggregate exchequer grant),4000115884,2325161
Department for Education,DEPARTMENT FOR EDUCATION,21/02/2013,Grants,Children's Services and Departmental Strategy Early Years Extended Schools and Special Needs Group,CORNWALL COUNCIL,Public Sector,Grants to local authorities within AEF/AEG (aggregate external funding/aggregate exchequer grant),4000115885,41250
Department for Education,DEPARTMENT FOR EDUCATION,21/02/2013,Grants,Children's Services and Departmental Strategy Directorate Support Group,CORNWALL COUNCIL,Public Sector,Grants to local authorities outside AEF/AEG (aggregate external funding/aggregate exchequer grant),4000115885,5343134
Department for Education,DEPARTMENT FOR EDUCATION,21/02/2013,Grants,Children's Services and Departmental Strategy Directorate Support Group,TELFORD & WREKIN COUNCIL,Public Sector,Grants to local authorities outside AEF/AEG (aggregate external funding/aggregate exchequer grant),4000115886,2076540
Department for Education,DEPARTMENT FOR EDUCATION,21/02/2013,Grants,Children's Services and Departmental Strategy Early Years Extended Schools and Special Needs Group,SHROPSHIRE COUNCIL,Public Sector,Grants to local authorities outside AEF/AEG (aggregate external funding/aggregate exchequer grant),4000115887,35462
Department for Education,DEPARTMENT FOR EDUCATION,21/02/2013,Grants,Children's Services and Departmental Strategy Directorate Support Group,SHROPSHIRE COUNCIL,Public Sector,Grants to local authorities outside AEF/AEG (aggregate external funding/aggregate exchequer grant),4000115887,2711545
Department for Education,DEPARTMENT FOR EDUCATION,21/02/2013,Grants,Children's Services and Departmental Strategy Early Years Extended Schools and Special Needs Group,COVENTRY CITY COUNCIL,Public Sector,Grants to local authorities within AEF/AEG (aggregate external funding/aggregate exchequer grant),4000115888,33333
Department for Education,DEPARTMENT FOR EDUCATION,21/02/2013,Grants,Children's Services and Departmental Strategy Directorate Support Group,COVENTRY CITY COUNCIL,Public Sector,Grants to local authorities outside AEF/AEG (aggregate external funding/aggregate exchequer grant),4000115888,3922206
Department for Education,DEPARTMENT FOR EDUCATION,21/02/2013,Grants,Children's Services and Departmental Strategy Directorate Support Group,NOTTINGHAM CITY COUNCIL,Public Sector,Grants to local authorities outside AEF/AEG (aggregate external funding/aggregate exchequer grant),4000115889,4452931
Department for Education,DEPARTMENT FOR EDUCATION,21/02/2013,Grants,Families Group,PARTNERS OF PRISONERS & FAMILIES SUPPORT,VCS,Grants to third sector organisations / not for profit organisations,4000115906,44411.73
Department for Education,DEPARTMENT FOR EDUCATION,21/02/2013,Grants,Families Group,ADFAM,VCS,Grants to third sector organisations / not for profit organisations,4000115907,26611.37
Department for Education,DEPARTMENT FOR EDUCATION,21/02/2013,Programme costs,Families Group,THE SHARE FOUNDATION,VCS,Funding to deliver policies (excluding consultancy) paid to third parties via a service delivery contract,4000115930,45840
Department for Education,DEPARTMENT FOR EDUCATION,21/02/2013,Grants,Families Group,PRISON ADVICE & CARE TRUST,VCS,Grants to third sector organisations / not for profit organisations,4000115932,28333.21
Department for Education,DEPARTMENT FOR EDUCATION,21/02/2013,Programme costs,Families Group,CONTACT A FAMILY,VCS,Funding to deliver policies (excluding consultancy) paid to third parties via a service delivery contract,4000115940,49501.41
Department for Education,DEPARTMENT FOR EDUCATION,21/02/2013,Grants,Supporting Children and Young People Group,BOLTON LADS & GIRLS CLUB,VCS,Grants to third sector organisations / not for profit organisations,4000115961,25305.26
Department for Education,DEPARTMENT FOR EDUCATION,21/02/2013,Grants,Families Group,THE PLACE2BE,VCS,Grants to third sector organisations / not for profit organisations,4000115974,65016.9
Department for Education,DEPARTMENT FOR EDUCATION,21/02/2013,Grants,Families Group,THE CHILDRENS SOCIETY,VCS,Grants to third sector organisations / not for profit organisations,4000115976,62688.72
Department for Education,DEPARTMENT FOR EDUCATION,21/02/2013,Grants,Families Group,ONE PLUS ONE,VCS,Grants to third sector organisations / not for profit organisations,4000115991,38883.66
Department for Education,DEPARTMENT FOR EDUCATION,21/02/2013,Programme costs,Children's Services and Departmental Strategy Early Years Extended Schools and Special Needs Group,COUNCIL FOR DISABLED,VCS,Funding to deliver policies (excluding consultancy) paid to third parties via a service delivery contract,4000116005,95581
Department for Education,DEPARTMENT FOR EDUCATION,21/02/2013,Grants,Supporting Children and Young People Group,TERRENCE HIGGINS TRUST,VCS,Grants to third sector organisations / not for profit organisations,4000116022,56271.63
Department for Education,DEPARTMENT FOR EDUCATION,21/02/2013,Grants,Families Group,SPURGEONS,VCS,Grants to third sector organisations / not for profit organisations,4000116054,33013.99
Department for Education,DEPARTMENT FOR EDUCATION,22/02/2013,Grants,Children's Services and Departmental Strategy Safeguarding Group,LEICESTER CITY COUNCIL,Public Sector,Grants to local authorities within AEF/AEG (aggregate external funding/aggregate exchequer grant),4000116082,249499.89
Department for Education,DEPARTMENT FOR EDUCATION,22/02/2013,Programme costs,Children's Services and Departmental Strategy Early Years Extended Schools and Special Needs Group,CRIMINAL RECORDS BUREAU,Central Government,Funding to deliver policies (excluding consultancy) paid to third parties via a service delivery contract,4000116135,149688
Department for Education,DEPARTMENT FOR EDUCATION,22/02/2013,Grants,Children's Services and Departmental Strategy Safeguarding Group,LEEDS CITY COUNCIL,Public Sector,Grants to local authorities within AEF/AEG (aggregate external funding/aggregate exchequer grant),4000116176,56000
Department for Education,DEPARTMENT FOR EDUCATION,22/02/2013,Programme costs,Children's Services and Departmental Strategy Early Years Extended Schools and Special Needs Group,YOUNG MINDS,VCS,Funding to deliver policies (excluding consultancy) paid to third parties via a service delivery contract,4000116214,162723.18
Department for Education,DEPARTMENT FOR EDUCATION,22/02/2013,Grants,Children's Services and Departmental Strategy Safeguarding Group,SURREY COUNTY COUNCIL,Public Sector,Grants to local authorities within AEF/AEG (aggregate external funding/aggregate exchequer grant),4000116215,26000
Department for Education,DEPARTMENT FOR EDUCATION,25/02/2013,Grants,Families Group,KENT COUNTY COUNCIL,Public Sector,Grants to local authorities within AEF/AEG (aggregate external funding/aggregate exchequer grant),4000116286,65698
Department for Education,DEPARTMENT FOR EDUCATION,25/02/2013,Grants,Families Group,THE SHARE FOUNDATION 3RD PARTY TRUST,Public Sector,Grants to third sector organisations / not for profit organisations,4000116305,360000
Department for Education,DEPARTMENT FOR EDUCATION,25/02/2013,Grants,Families Group,CAFCASS,Central Government,"Grants paid to organisations including agencies, arms length bodies and educational establishments",4000116330,300000
Department for Education,DEPARTMENT FOR EDUCATION,25/02/2013,Grants,Families Group,LONDON BOROUGH OF EALING,Public Sector,Grants to local authorities within AEF/AEG (aggregate external funding/aggregate exchequer grant),4000116367,59542.32
Department for Education,DEPARTMENT FOR EDUCATION,25/02/2013,Grants,Families Group,BLACKBURN WITH DARWEN BOROUGH COUNCIL,Public Sector,Grants to local authorities within AEF/AEG (aggregate external funding/aggregate exchequer grant),4000116372,53181.75
Department for Education,DEPARTMENT FOR EDUCATION,25/02/2013,Programme costs,Families Group,GINGERBREAD,VCS,Funding to deliver policies (excluding consultancy) paid to third parties via a service delivery contract,4000116377,27426
Department for Education,DEPARTMENT FOR EDUCATION,27/02/2013,Grants,Families Group,NATIONAL ASSOCIATION OF CHILD CONTACT CENTRES,VCS,Grants to third sector organisations / not for profit organisations,4000116570,42664.58
Department for Education,DEPARTMENT FOR EDUCATION,27/02/2013,Grants,Children's Services and Departmental Strategy Early Years Extended Schools and Special Needs Group,THE ACE CENTRE NORTH,VCS,Grants to third sector organisations / not for profit organisations,4000116579,110344.58
Department for Education,DEPARTMENT FOR EDUCATION,27/02/2013,Grants,Families Group,BOOK TRUST,VCS,Grants to third sector organisations / not for profit organisations,4000116580,716387
Department for Education,DEPARTMENT FOR EDUCATION,27/02/2013,Grants,Children's Services and Departmental Strategy Early Years Extended Schools and Special Needs Group,NATIONAL DAY NURSERIES ASSOCIATION,VCS,Grants to third sector organisations / not for profit organisations,4000116583,45833.3
Department for Education,DEPARTMENT FOR EDUCATION,27/02/2013,Grants,Families Group,BARNARDOS,VCS,Grants to third sector organisations / not for profit organisations,4000116585,78580
Department for Education,DEPARTMENT FOR EDUCATION,27/02/2013,Grants,Children's Services and Departmental Strategy Early Years Extended Schools and Special Needs Group,SCOPE,VCS,Grants to third sector organisations / not for profit organisations,4000116731,26487
Department for Education,DEPARTMENT FOR EDUCATION,27/02/2013,Grants,Families Group,THE SHARE FOUNDATION 3RD PARTY TRUST,Public Sector,Grants to third sector organisations / not for profit organisations,4000116743,441600
Department for Education,DEPARTMENT FOR EDUCATION,28/02/2013,ICT Commodities,Children's Services and Departmental Strategy Directorate Support Group,VODAFONE CORPORATE,Commercial,"Fixed and mobile telecoms including call charges, line rental and equipment for mobile phones and pagers",4000116814,155.7
Department for Education,DEPARTMENT FOR EDUCATION,28/02/2013,ICT Commodities,Families Group,VODAFONE CORPORATE,Commercial,"Fixed and mobile telecoms including call charges, line rental and equipment for mobile phones and pagers",4000116814,39
Department for Education,DEPARTMENT FOR EDUCATION,28/02/2013,ICT Commodities,Families Group,VODAFONE CORPORATE,Commercial,"Fixed and mobile telecoms including call charges, line rental and equipment for mobile phones and pagers",4000116814,72.02
Department for Education,DEPARTMENT FOR EDUCATION,28/02/2013,ICT Commodities,Families Group,VODAFONE CORPORATE,Commercial,"Fixed and mobile telecoms including call charges, line rental and equipment for mobile phones and pagers",4000116814,78.18
Department for Education,DEPARTMENT FOR EDUCATION,28/02/2013,ICT Commodities,Families Group,VODAFONE CORPORATE,Commercial,"Fixed and mobile telecoms including call charges, line rental and equipment for mobile phones and pagers",4000116814,19.5
Department for Education,DEPARTMENT FOR EDUCATION,28/02/2013,ICT Commodities,Families Group,VODAFONE CORPORATE,Commercial,"Fixed and mobile telecoms including call charges, line rental and equipment for mobile phones and pagers",4000116814,189.39
Department for Education,DEPARTMENT FOR EDUCATION,28/02/2013,ICT Commodities,Families Group,VODAFONE CORPORATE,Commercial,"Fixed and mobile telecoms including call charges, line rental and equipment for mobile phones and pagers",4000116814,224.7
Department for Education,DEPARTMENT FOR EDUCATION,28/02/2013,ICT Commodities,Children's Services and Departmental Strategy Safeguarding Group,VODAFONE CORPORATE,Commercial,"Fixed and mobile telecoms including call charges, line rental and equipment for mobile phones and pagers",4000116814,38.4
Department for Education,DEPARTMENT FOR EDUCATION,28/02/2013,ICT Commodities,Children's Services and Departmental Strategy Supporting Delivery Group,VODAFONE CORPORATE,Commercial,"Fixed and mobile telecoms including call charges, line rental and equipment for mobile phones and pagers",4000116814,25.8
Department for Education,DEPARTMENT FOR EDUCATION,28/02/2013,ICT Commodities,Children's Services and Departmental Strategy Supporting Delivery Group,VODAFONE CORPORATE,Commercial,"Fixed and mobile telecoms including call charges, line rental and equipment for mobile phones and pagers",4000116814,136
Department for Education,DEPARTMENT FOR EDUCATION,28/02/2013,ICT Commodities,Children's Services and Departmental Strategy Supporting Delivery Group,VODAFONE CORPORATE,Commercial,"Fixed and mobile telecoms including call charges, line rental and equipment for mobile phones and pagers",4000116814,65.08
Department for Education,DEPARTMENT FOR EDUCATION,28/02/2013,ICT Commodities,Children's Services and Departmental Strategy Supporting Delivery Group,VODAFONE CORPORATE,Commercial,"Fixed and mobile telecoms including call charges, line rental and equipment for mobile phones and pagers",4000116814,19.5
Department for Education,DEPARTMENT FOR EDUCATION,28/02/2013,ICT Commodities,Children's Services and Departmental Strategy Supporting Delivery Group,VODAFONE CORPORATE,Commercial,"Fixed and mobile telecoms including call charges, line rental and equipment for mobile phones and pagers",4000116814,275.92
Department for Education,DEPARTMENT FOR EDUCATION,28/02/2013,ICT Commodities,Families Group,VODAFONE CORPORATE,Commercial,"Fixed and mobile telecoms including call charges, line rental and equipment for mobile phones and pagers",4000116814,136.79
Department for Education,DEPARTMENT FOR EDUCATION,28/02/2013,ICT Commodities,Supporting Children and Young People Group,VODAFONE CORPORATE,Commercial,"Fixed and mobile telecoms including call charges, line rental and equipment for mobile phones and pagers",4000116814,19.5
Department for Education,DEPARTMENT FOR EDUCATION,28/02/2013,ICT Commodities,Supporting Children and Young People Group,VODAFONE CORPORATE,Commercial,"Fixed and mobile telecoms including call charges, line rental and equipment for mobile phones and pagers",4000116814,167.18
Department for Education,DEPARTMENT FOR EDUCATION,28/02/2013,ICT Commodities,Children's Services and Departmental Strategy Safeguarding Group,VODAFONE CORPORATE,Commercial,"Fixed and mobile telecoms including call charges, line rental and equipment for mobile phones and pagers",4000116814,19.5
Department for Education,DEPARTMENT FOR EDUCATION,28/02/2013,ICT Commodities,Children's Services and Departmental Strategy Safeguarding Group,VODAFONE CORPORATE,Commercial,"Fixed and mobile telecoms including call charges, line rental and equipment for mobile phones and pagers",4000116814,402.16
Department for Education,DEPARTMENT FOR EDUCATION,28/02/2013,ICT Commodities,Children's Services and Departmental Strategy Safeguarding Group,VODAFONE CORPORATE,Commercial,"Fixed and mobile telecoms including call charges, line rental and equipment for mobile phones and pagers",4000116814,72.45
Department for Education,DEPARTMENT FOR EDUCATION,28/02/2013,ICT Commodities,Children's Services and Departmental Strategy Safeguarding Group,VODAFONE CORPORATE,Commercial,"Fixed and mobile telecoms including call charges, line rental and equipment for mobile phones and pagers",4000116814,38.7
Department for Education,DEPARTMENT FOR EDUCATION,28/02/2013,ICT Commodities,Children's Services and Departmental Strategy Early Years Extended Schools and Special Needs Group,VODAFONE CORPORATE,Commercial,"Fixed and mobile telecoms including call charges, line rental and equipment for mobile phones and pagers",4000116814,180.32
Department for Education,DEPARTMENT FOR EDUCATION,28/02/2013,ICT Commodities,Children's Services and Departmental Strategy Early Years Extended Schools and Special Needs Group,VODAFONE CORPORATE,Commercial,"Fixed and mobile telecoms including call charges, line rental and equipment for mobile phones and pagers",4000116814,36.73
Department for Education,DEPARTMENT FOR EDUCATION,28/02/2013,ICT Commodities,Children's Services and Departmental Strategy Early Years Extended Schools and Special Needs Group,VODAFONE CORPORATE,Commercial,"Fixed and mobile telecoms including call charges, line rental and equipment for mobile phones and pagers",4000116814,156.7
Department for Education,DEPARTMENT FOR EDUCATION,28/02/2013,ICT Commodities,Children's Services and Departmental Strategy Early Years Extended Schools and Special Needs Group,VODAFONE CORPORATE,Commercial,"Fixed and mobile telecoms including call charges, line rental and equipment for mobile phones and pagers",4000116814,149.8
Department for Education,DEPARTMENT FOR EDUCATION,28/02/2013,ICT Commodities,Children's Services and Departmental Strategy Early Years Extended Schools and Special Needs Group,VODAFONE CORPORATE,Commercial,"Fixed and mobile telecoms including call charges, line rental and equipment for mobile phones and pagers",4000116814,194.7
Department for Education,DEPARTMENT FOR EDUCATION,28/02/2013,ICT Commodities,Children's Services and Departmental Strategy Early Years Extended Schools and Special Needs Group,VODAFONE CORPORATE,Commercial,"Fixed and mobile telecoms including call charges, line rental and equipment for mobile phones and pagers",4000116814,39
Department for Education,DEPARTMENT FOR EDUCATION,28/02/2013,ICT Commodities,Families Group,VODAFONE CORPORATE,Commercial,"Fixed and mobile telecoms including call charges, line rental and equipment for mobile phones and pagers",4000116814,79.32
Department for Education,DEPARTMENT FOR EDUCATION,28/02/2013,ICT Commodities,"Strategic Analysis, Research and Policy Impact Group",VODAFONE CORPORATE,Commercial,"Fixed and mobile telecoms including call charges, line rental and equipment for mobile phones and pagers",4000116814,169.2
Department for Education,DEPARTMENT FOR EDUCATION,28/02/2013,ICT Commodities,"Strategic Analysis, Research and Policy Impact Group",VODAFONE CORPORATE,Commercial,"Fixed and mobile telecoms including call charges, line rental and equipment for mobile phones and pagers",4000116814,19.51
Department for Education,DEPARTMENT FOR EDUCATION,28/02/2013,ICT Commodities,"Strategic Analysis, Research and Policy Impact Group",VODAFONE CORPORATE,Commercial,"Fixed and mobile telecoms including call charges, line rental and equipment for mobile phones and pagers",4000116814,225.78
Department for Education,DEPARTMENT FOR EDUCATION,28/02/2013,ICT Commodities,People and Change,VODAFONE CORPORATE,Commercial,"Fixed and mobile telecoms including call charges, line rental and equipment for mobile phones and pagers",4000116814,26.4
Department for Education,DEPARTMENT FOR EDUCATION,28/02/2013,ICT Commodities,People and Change,VODAFONE CORPORATE,Commercial,"Fixed and mobile telecoms including call charges, line rental and equipment for mobile phones and pagers",4000116814,19.5
Department for Education,DEPARTMENT FOR EDUCATION,28/02/2013,ICT Commodities,People and Change,VODAFONE CORPORATE,Commercial,"Fixed and mobile telecoms including call charges, line rental and equipment for mobile phones and pagers",4000116814,26.4
Department for Education,DEPARTMENT FOR EDUCATION,28/02/2013,ICT Commodities,People and Change,VODAFONE CORPORATE,Commercial,"Fixed and mobile telecoms including call charges, line rental and equipment for mobile phones and pagers",4000116814,19.5
Department for Education,DEPARTMENT FOR EDUCATION,28/02/2013,ICT Commodities,People and Change,VODAFONE CORPORATE,Commercial,"Fixed and mobile telecoms including call charges, line rental and equipment for mobile phones and pagers",4000116814,790.19
Department for Education,DEPARTMENT FOR EDUCATION,28/02/2013,ICT Commodities,People and Change,VODAFONE CORPORATE,Commercial,"Fixed and mobile telecoms including call charges, line rental and equipment for mobile phones and pagers",4000116814,19.2
Department for Education,DEPARTMENT FOR EDUCATION,28/02/2013,ICT Commodities,People and Change,VODAFONE CORPORATE,Commercial,"Fixed and mobile telecoms including call charges, line rental and equipment for mobile phones and pagers",4000116814,8.72
Department for Education,DEPARTMENT FOR EDUCATION,28/02/2013,ICT Commodities,ALB Reform Group,VODAFONE CORPORATE,Commercial,"Fixed and mobile telecoms including call charges, line rental and equipment for mobile phones and pagers",4000116814,140.4
Department for Education,DEPARTMENT FOR EDUCATION,28/02/2013,ICT Commodities,Communications Group,VODAFONE CORPORATE,Commercial,"Fixed and mobile telecoms including call charges, line rental and equipment for mobile phones and pagers",4000116814,291.46
Department for Education,DEPARTMENT FOR EDUCATION,28/02/2013,ICT Commodities,Communications Group,VODAFONE CORPORATE,Commercial,"Fixed and mobile telecoms including call charges, line rental and equipment for mobile phones and pagers",4000116814,209.02
Department for Education,DEPARTMENT FOR EDUCATION,28/02/2013,ICT Commodities,Communications Group,VODAFONE CORPORATE,Commercial,"Fixed and mobile telecoms including call charges, line rental and equipment for mobile phones and pagers",4000116814,347.27
Department for Education,DEPARTMENT FOR EDUCATION,28/02/2013,ICT Commodities,Communications Group,VODAFONE CORPORATE,Commercial,"Fixed and mobile telecoms including call charges, line rental and equipment for mobile phones and pagers",4000116814,20.99
Department for Education,DEPARTMENT FOR EDUCATION,28/02/2013,Grants,Families Group,SCHOOL HOME SUPPORT SERVICES UK,VCS,Grants to third sector organisations / not for profit organisations,4000116890,37602.53
Department for Education,DEPARTMENT FOR EDUCATION,28/02/2013,Programme costs,Families Group,NETMUMS COM,VCS,Funding to deliver policies (excluding consultancy) paid to third parties via a service delivery contract,4000116891,85731
Department for Education,DEPARTMENT FOR EDUCATION,28/02/2013,Grants,Families Group,INSTITUTE OF WELLBEING LTD,Commercial,Grants to third sector organisations / not for profit organisations,4000116899,33500
Department for Education,DEPARTMENT FOR EDUCATION,01/02/2013,Professional Services Other,Participation and Vocational Education Group,COOPER GIBSON LTD,Commercial,Research and evaluation activities including contracted out data collation / gathering exercises when there is no analysis or recommendation,1001033,30000
Department for Education,DEPARTMENT FOR EDUCATION,01/02/2013,Programme costs,School Standards Group,BRITISH COUNCIL,VCS,Funding to deliver policies (excluding consultancy) paid to third parties via a service delivery contract,1001039,185000
Department for Education,TEACHERS PENSION SCHEME,04/02/2013,Funding to Pay Teachers' Pensions,Workforce Group,CAPITA TP HSBC,Commercial,Funding to pay Teachers' Pensions,1001426,283952.2
Department for Education,TEACHERS PENSION SCHEME,05/02/2013,Funding to Pay Teachers' Pensions,Workforce Group,CAPITA TP NATWEST,Commercial,Funding to pay Teachers' Pensions,1001429,19505991.38
Department for Education,TEACHERS PENSION SCHEME,06/02/2013,Funding to Pay Teachers' Pensions,Workforce Group,CAPITA TP HSBC,Commercial,Funding to pay Teachers' Pensions,1001430,139478.2
Department for Education,TEACHERS PENSION SCHEME,06/02/2013,Funding to Pay Teachers' Pensions,Workforce Group,CAPITA TP NATWEST,Commercial,Funding to pay Teachers' Pensions,1001431,18210703.18
Department for Education,TEACHERS PENSION SCHEME,08/02/2013,Funding to Pay Teachers' Pensions,Workforce Group,CAPITA TP HSBC,Commercial,Funding to pay Teachers' Pensions,1001432,152862.6
Department for Education,TEACHERS PENSION SCHEME,08/02/2013,Funding to Pay Teachers' Pensions,Workforce Group,CAPITA TP NATWEST,Commercial,Funding to pay Teachers' Pensions,1001433,18150266.01
Department for Education,TEACHERS PENSION SCHEME,08/02/2013,Funding to Pay Teachers' Pensions,Workforce Group,CAPITA TP HSBC,Commercial,Funding to pay Teachers' Pensions,1001434,632123.99
Department for Education,TEACHERS PENSION SCHEME,08/02/2013,Funding to Pay Teachers' Pensions,Workforce Group,CAPITA TP NATWEST,Commercial,Funding to pay Teachers' Pensions,1001435,17867154.15
Department for Education,TEACHERS PENSION SCHEME,11/02/2013,Funding to Pay Teachers' Pensions,Workforce Group,CAPITA TP HSBC,Commercial,Funding to pay Teachers' Pensions,1001436,71567.18
Department for Education,TEACHERS PENSION SCHEME,11/02/2013,Funding to Pay Teachers' Pensions,Workforce Group,CAPITA TP NATWEST,Commercial,Funding to pay Teachers' Pensions,1001437,51505548.55
Department for Education,TEACHERS PENSION SCHEME,12/02/2013,Funding to Pay Teachers' Pensions,Workforce Group,CAPITA TP NATWEST,Commercial,Funding to pay Teachers' Pensions,1001439,19134736.15
Department for Education,TEACHERS PENSION SCHEME,13/02/2013,Funding to Pay Teachers' Pensions,Workforce Group,CAPITA TP HSBC,Commercial,Funding to pay Teachers' Pensions,1001440,300918.87
Department for Education,TEACHERS PENSION SCHEME,13/02/2013,Funding to Pay Teachers' Pensions,Workforce Group,CAPITA TP NATWEST,Commercial,Funding to pay Teachers' Pensions,1001441,18069606.93
Department for Education,TEACHERS PENSION SCHEME,14/02/2013,Funding to Pay Teachers' Pensions,Workforce Group,CAPITA TP HSBC,Commercial,Funding to pay Teachers' Pensions,1001442,605540.93
Department for Education,TEACHERS PENSION SCHEME,14/02/2013,Funding to Pay Teachers' Pensions,Workforce Group,CAPITA TP NATWEST,Commercial,Funding to pay Teachers' Pensions,1001443,17255269
Department for Education,TEACHERS PENSION SCHEME,14/02/2013,Funding to Pay Teachers' Pensions,Workforce Group,CAPITA TP NATWEST,Commercial,Funding to pay Teachers' Pensions,1001444,18272627.67
Department for Education,TEACHERS PENSION SCHEME,15/02/2013,Funding to Pay Teachers' Pensions,Workforce Group,CAPITA TP HSBC,Commercial,Funding to pay Teachers' Pensions,1001445,144682.76
Department for Education,TEACHERS PENSION SCHEME,15/02/2013,Funding to Pay Teachers' Pensions,Workforce Group,CAPITA TP NATWEST,Commercial,Funding to pay Teachers' Pensions,1001446,18327056.26
Department for Education,TEACHERS PENSION SCHEME,19/02/2013,Funding to Pay Teachers' Pensions,Workforce Group,CAPITA TP HSBC,Commercial,Funding to pay Teachers' Pensions,1001447,220061.62
Department for Education,TEACHERS PENSION SCHEME,19/02/2013,Funding to Pay Teachers' Pensions,Workforce Group,CAPITA TP NATWEST,Commercial,Funding to pay Teachers' Pensions,1001448,21338899.55
Department for Education,TEACHERS PENSION SCHEME,19/02/2013,Funding to Pay Teachers' Pensions,Workforce Group,CAPITA TP HSBC,Commercial,Funding to pay Teachers' Pensions,1001449,206272.4
Department for Education,TEACHERS PENSION SCHEME,19/02/2013,Funding to Pay Teachers' Pensions,Workforce Group,CAPITA TP NATWEST,Commercial,Funding to pay Teachers' Pensions,1001450,51125056.93
Department for Education,TEACHERS PENSION SCHEME,20/02/2013,Funding to Pay Teachers' Pensions,Workforce Group,CAPITA TP HSBC,Commercial,Funding to pay Teachers' Pensions,1001451,124165.39
Department for Education,TEACHERS PENSION SCHEME,20/02/2013,Funding to Pay Teachers' Pensions,Workforce Group,CAPITA TP NATWEST,Commercial,Funding to pay Teachers' Pensions,1001452,17864678.22
Department for Education,TEACHERS PENSION SCHEME,21/02/2013,Funding to Pay Teachers' Pensions,Workforce Group,CAPITA TP HSBC,Commercial,Funding to pay Teachers' Pensions,1001453,186444.98
Department for Education,TEACHERS PENSION SCHEME,21/02/2013,Funding to Pay Teachers' Pensions,Workforce Group,CAPITA TP NATWEST,Commercial,Funding to pay Teachers' Pensions,1001454,17556520.89
Department for Education,TEACHERS PENSION SCHEME,22/02/2013,Funding to Pay Teachers' Pensions,Workforce Group,CAPITA TP HSBC,Commercial,Funding to pay Teachers' Pensions,1001455,158374.66
Department for Education,TEACHERS PENSION SCHEME,22/02/2013,Funding to Pay Teachers' Pensions,Workforce Group,CAPITA TP NATWEST,Commercial,Funding to pay Teachers' Pensions,1001456,18261688.35
Department for Education,TEACHERS PENSION SCHEME,22/02/2013,Funding to Pay Teachers' Pensions,Workforce Group,CAPITA TP NATWEST,Commercial,Funding to pay Teachers' Pensions,1001457,56435683.14
Department for Education,TEACHERS PENSION SCHEME,26/02/2013,Funding to Pay Teachers' Pensions,Workforce Group,CAPITA TP HSBC,Commercial,Funding to pay Teachers' Pensions,1001458,1503857.47
Department for Education,TEACHERS PENSION SCHEME,26/02/2013,Funding to Pay Teachers' Pensions,Workforce Group,CAPITA TP HSBC,Commercial,Funding to pay Teachers' Pensions,1001459,38900.08
Department for Education,TEACHERS PENSION SCHEME,26/02/2013,Funding to Pay Teachers' Pensions,Workforce Group,CAPITA TP NATWEST,Commercial,Funding to pay Teachers' Pensions,1001460,19930929.36
Department for Education,TEACHERS PENSION SCHEME,26/02/2013,Funding to Pay Teachers' Pensions,Workforce Group,CAPITA TP NATWEST,Commercial,Funding to pay Teachers' Pensions,1001461,132061479.3
Department for Education,TEACHERS PENSION SCHEME,27/02/2013,Funding to Pay Teachers' Pensions,Workforce Group,CAPITA TP HSBC,Commercial,Funding to pay Teachers' Pensions,1001462,640245.74
Department for Education,TEACHERS PENSION SCHEME,27/02/2013,Funding to Pay Teachers' Pensions,Workforce Group,CAPITA TP HSBC,Commercial,Funding to pay Teachers' Pensions,1001463,142506.03
Department for Education,TEACHERS PENSION SCHEME,27/02/2013,Funding to Pay Teachers' Pensions,Workforce Group,CAPITA TP NATWEST,Commercial,Funding to pay Teachers' Pensions,1001464,18359139.52
Department for Education,TEACHERS PENSION SCHEME,27/02/2013,Funding to Pay Teachers' Pensions,Workforce Group,CAPITA TP NATWEST,Commercial,Funding to pay Teachers' Pensions,1001465,17653900.22
Department for Education,TEACHERS PENSION SCHEME,28/02/2013,Funding to Pay Teachers' Pensions,Workforce Group,CAPITA TP NATWEST,Commercial,Funding to pay Teachers' Pensions,1001466,74604739.44
Department for Education,TEACHERS PENSION SCHEME,28/02/2013,Funding to Pay Teachers' Pensions,Workforce Group,CAPITA TP HSBC,Commercial,Funding to pay Teachers' Pensions,1001467,36215.62
Department for Education,DEPARTMENT FOR EDUCATION,11/02/2013,Programme costs,Teachers Group,WELSH ASSEMBLY GOVERNMENT,Central Government,Miscellaneous payments to other government departments,2000727,167897
Department for Education,DEPARTMENT FOR EDUCATION,14/02/2013,Programme costs,Teachers Group,TEACHERS SUPERANN,Public Sector,Pension payments to retired teachers where liability has transferred to SoS,2000728,302998.07
Department for Education,DEPARTMENT FOR EDUCATION,14/02/2013,Programme costs,Teachers Group,TEACHERS SUPERANN,Public Sector,Pension payments to retired teachers where liability has transferred to SoS,2000728,8552.22
Department for Education,DEPARTMENT FOR EDUCATION,14/02/2013,Programme costs,Teachers Group,TEACHERS SUPERANN,Public Sector,Pension payments to retired teachers where liability has transferred to SoS,2000728,705716.08
Department for Education,DEPARTMENT FOR EDUCATION,19/02/2013,Grants,Participation and Vocational Education Group,DEPARTMENT FOR BUSINESS INNOVATION & SKILLS,Central Government,"Grants paid to organisations including agencies, arms length bodies and educational establishments",2000731,25831152
Department for Education,DEPARTMENT FOR EDUCATION,20/02/2013,Grants,Teachers Group,DEPARTMENT FOR BUSINESS INNOVATION & SKILLS,Central Government,Current grant funding to other government departments for DfE's contribution to jointly funded programmes ,2000734,170264.98
Department for Education,DEPARTMENT FOR EDUCATION,20/02/2013,Grants,Teachers Group,DEPARTMENT FOR BUSINESS INNOVATION & SKILLS,Central Government,Current grant funding to other government departments for DfE's contribution to jointly funded programmes ,2000735,7185425.18
Department for Education,DEPARTMENT FOR EDUCATION,01/02/2013,Programme costs,Teachers Group,PARCELFORCE WORLDWIDE,Commercial,Funding to deliver policies (excluding consultancy) paid to third parties via a service delivery contract,4000112796,13.2
Department for Education,DEPARTMENT FOR EDUCATION,04/02/2013,ICT Commodities,Systems and Accountability Family,ATKINS LTD,Commercial,IT Services,4000112985,82187.4
Department for Education,DEPARTMENT FOR EDUCATION,04/02/2013,Professional Services Other,Participation and Vocational Education Group,NFER TRADING LIMITED INV T,Commercial,Research and evaluation activities including contracted out data collation / gathering exercises when there is no analysis or recommendation,4000112992,26324.4
Department for Education,DEPARTMENT FOR EDUCATION,04/02/2013,Programme costs,Participation and Vocational Education Group,DEPARTMENT FOR BUSINESS INNOVATION & SKILLS,Central Government,Funding to deliver policies (excluding consultancy) paid to third parties via a service delivery contract,4000113103,897468
Department for Education,DEPARTMENT FOR EDUCATION,05/02/2013,Programme costs,Curriculum and General Qualifications Reform Group,THE INSTITUTE OF EDUCATION,Public Sector,Funding to deliver policies (excluding consultancy) paid to third parties via a service delivery contract,4000113444,157571.21
Department for Education,DEPARTMENT FOR EDUCATION,05/02/2013,Grants,Curriculum and General Qualifications Reform Group,MYSCIENCE CO LTD,Commercial,Grants to third sector organisations / not for profit organisations,4000113474,146375
Department for Education,DEPARTMENT FOR EDUCATION,05/02/2013,Grants,Curriculum and General Qualifications Reform Group,BCS,Commercial,Grants to third sector organisations / not for profit organisations,4000113486,38000
Department for Education,DEPARTMENT FOR EDUCATION,06/02/2013,Grants,Curriculum and General Qualifications Reform Group,CFBT EDUCATION TRUST,VCS,Grants to third sector organisations / not for profit organisations,4000113646,208300
Department for Education,DEPARTMENT FOR EDUCATION,06/02/2013,Grants,Participation and Vocational Education Group,SWINDON DANCE YOUTH DANCE ACADEMY,Public Sector,Grants to third sector organisations / not for profit organisations,4000113668,31850
Department for Education,DEPARTMENT FOR EDUCATION,06/02/2013,Programme costs,Education Strategy Performance Analysis Group,RESEARCH MACHINES PLC,Commercial,Funding to deliver policies (excluding consultancy) paid to third parties via a service delivery contract,4000113687,475641.6
Department for Education,DEPARTMENT FOR EDUCATION,06/02/2013,Professional Services Other,School Standards Group,NFER TRADING LIMITED INV T,Commercial,Research and evaluation activities including contracted out data collation / gathering exercises when there is no analysis or recommendation,4000113710,20871
Department for Education,DEPARTMENT FOR EDUCATION,06/02/2013,Professional Services Other,Teachers Group,NFER TRADING LIMITED INV T,Commercial,Research and evaluation activities including contracted out data collation / gathering exercises when there is no analysis or recommendation,4000113710,12690
Department for Education,DEPARTMENT FOR EDUCATION,06/02/2013,Grants,Participation and Vocational Education Group,SKILL FORCE DEVELOPMENT,VCS,Grants to third sector organisations / not for profit organisations,4000113740,68000
Department for Education,DEPARTMENT FOR EDUCATION,06/02/2013,Grants,Participation and Vocational Education Group,PSHE ASSOCIATION,VCS,Grants to third sector organisations / not for profit organisations,4000113743,40000
Department for Education,DEPARTMENT FOR EDUCATION,06/02/2013,Programme costs,Participation and Vocational Education Group,RURAL PAYMENTS AGENCY,Central Government,Funding to deliver policies (excluding consultancy) paid to third parties via a service delivery contract,4000113760,47904.65
Department for Education,DEPARTMENT FOR EDUCATION,07/02/2013,Programme costs,Curriculum and General Qualifications Reform Group,TRIBAL EDUCATION LIMITED,Commercial,Funding to deliver policies (excluding consultancy) paid to third parties via a service delivery contract,4000113885,419065.88
Department for Education,DEPARTMENT FOR EDUCATION,08/02/2013,Learning and Development,Systems and Accountability Family,LUMIA DEVELOPMENT,Commercial,Staff training and development including materials and courses,4000114018,21530
Department for Education,DEPARTMENT FOR EDUCATION,08/02/2013,Programme costs,Curriculum and General Qualifications Reform Group,METEOROLOGICAL OFFICE,Central Government,Funding to deliver policies (excluding consultancy) paid to third parties via a service delivery contract,4000114079,46125
Department for Education,DEPARTMENT FOR EDUCATION,08/02/2013,Advertising and Media,Systems and Accountability Family,SCISYS UK LTD,Commercial,Publications and related services,4000114083,39028
Department for Education,DEPARTMENT FOR EDUCATION,08/02/2013,Programme costs,Curriculum and General Qualifications Reform Group,MYSCIENCE CO LTD,Commercial,Funding to deliver policies (excluding consultancy) paid to third parties via a service delivery contract,4000114088,366315.72
Department for Education,DEPARTMENT FOR EDUCATION,11/02/2013,Programme costs,Teachers Group,CAPITA LIFE & PENSIONS SERVICES LTD,Commercial,Funding to deliver policies (excluding consultancy) paid to third parties via a service delivery contract,4000114172,116874.09
Department for Education,DEPARTMENT FOR EDUCATION,11/02/2013,ICT Commodities,Teachers Group,JP MORGAN COMMERCIAL CARDS,Commercial,"Telecommunications including telephone cards, line rental and equipment, cost of maintenance, etc",4000114200,82.53
Department for Education,DEPARTMENT FOR EDUCATION,11/02/2013,Office Solutions,Teachers Group,JP MORGAN COMMERCIAL CARDS,Commercial,"Stationery, IT/office consumables - including ink, toners, storage media - etc.",4000114200,16.5
Department for Education,DEPARTMENT FOR EDUCATION,11/02/2013,Office Solutions,Education Strategy Performance Analysis Group,JP MORGAN COMMERCIAL CARDS,Commercial,General office expenses,4000114200,131
Department for Education,DEPARTMENT FOR EDUCATION,11/02/2013,Office Solutions,School Standards Group,JP MORGAN COMMERCIAL CARDS,Commercial,General office expenses,4000114200,80.16
Department for Education,DEPARTMENT FOR EDUCATION,11/02/2013,Office Solutions,Teachers Group,JP MORGAN COMMERCIAL CARDS,Commercial,General office expenses,4000114200,240
Department for Education,DEPARTMENT FOR EDUCATION,11/02/2013,Office Solutions,Teachers Group,JP MORGAN COMMERCIAL CARDS,Commercial,"Stationery, IT/office consumables - including ink, toners, storage media - etc.",4000114200,33.1
Department for Education,DEPARTMENT FOR EDUCATION,11/02/2013,Office Solutions,Curriculum and General Qualifications Reform Group,JP MORGAN COMMERCIAL CARDS,Commercial,General office expenses,4000114200,60
Department for Education,DEPARTMENT FOR EDUCATION,12/02/2013,Grants,Participation and Vocational Education Group,CSABT LIMITED MUSIC & DANCE SCHEME,Public Sector,Grants to third sector organisations / not for profit organisations,4000114260,300000
Department for Education,DEPARTMENT FOR EDUCATION,12/02/2013,Grants,Participation and Vocational Education Group,SKILL FORCE DEVELOPMENT,VCS,Grants to third sector organisations / not for profit organisations,4000114272,61444.35
Department for Education,DEPARTMENT FOR EDUCATION,12/02/2013,Professional Services Other,Participation and Vocational Education Group,BIS DEPARTMENT FOR BUSINESS INNOVATION & SKILLS,Central Government,Research and evaluation activities including contracted out data collation / gathering exercises when there is no analysis or recommendation,4000114351,39004
Department for Education,DEPARTMENT FOR EDUCATION,12/02/2013,Grants,Teachers Group,COMMUNITY SECURITY TRUST CST,VCS,Grants to third sector organisations / not for profit organisations,4000114413,727667
Department for Education,DEPARTMENT FOR EDUCATION,12/02/2013,Grants,Curriculum and General Qualifications Reform Group,YOUTH SPORT TRUST,VCS,Grants to third sector organisations / not for profit organisations,4000114419,100000
Department for Education,DEPARTMENT FOR EDUCATION,13/02/2013,Professional Services Other,Curriculum and General Qualifications Reform Group,NFER TRADING LIMITED INV T,Commercial,"Research, survey data analysis that will inform policy decision making",4000114586,118280
Department for Education,DEPARTMENT FOR EDUCATION,14/02/2013,ICT Commodities,Systems and Accountability Family,ATKINS LTD,Commercial,IT Services,4000114650,82187.4
Department for Education,DEPARTMENT FOR EDUCATION,14/02/2013,Programme costs,Curriculum and General Qualifications Reform Group,SHEFFIELD HALLAM UNIVERSITY,Public Sector,Funding to deliver policies (excluding consultancy) paid to third parties via a service delivery contract,4000114654,42000.38
Department for Education,DEPARTMENT FOR EDUCATION,14/02/2013,Programme costs,Curriculum and General Qualifications Reform Group,THE OPEN UNIVERSITY,Public Sector,Funding to deliver policies (excluding consultancy) paid to third parties via a service delivery contract,4000114696,36101
Department for Education,DEPARTMENT FOR EDUCATION,14/02/2013,Travel,Systems and Accountability Family,REDFERN TRAVEL LTD,Commercial,"Staff business travel including air, coach, ferry, rail and taxi",4000114781,14043.53
Department for Education,DEPARTMENT FOR EDUCATION,14/02/2013,Travel,Systems and Accountability Family,REDFERN TRAVEL LTD,Commercial,"Staff business travel including air, coach, ferry, rail and taxi to attend training events",4000114781,0.22
Department for Education,DEPARTMENT FOR EDUCATION,14/02/2013,Travel,Teachers Group,REDFERN TRAVEL LTD,Commercial,"Staff business travel including air, coach, ferry, rail and taxi",4000114781,4221.95
Department for Education,DEPARTMENT FOR EDUCATION,14/02/2013,Personnel Related,Teachers Group,REDFERN TRAVEL LTD,Commercial,Subsistence and lodging allowances for official duty,4000114781,4.79
Department for Education,DEPARTMENT FOR EDUCATION,14/02/2013,Travel,Education Strategy Performance Analysis Group,REDFERN TRAVEL LTD,Commercial,"Staff business travel including air, coach, ferry, rail and taxi",4000114781,276.82
Department for Education,DEPARTMENT FOR EDUCATION,14/02/2013,Travel,Education Standards Directorate,REDFERN TRAVEL LTD,Commercial,"Staff business travel including air, coach, ferry, rail and taxi",4000114781,-34.74
Department for Education,DEPARTMENT FOR EDUCATION,14/02/2013,Travel,Education Strategy Performance Analysis Group,REDFERN TRAVEL LTD,Commercial,"Staff business travel including air, coach, ferry, rail and taxi",4000114781,1204.37
Department for Education,DEPARTMENT FOR EDUCATION,14/02/2013,Travel,Education Strategy Performance Analysis Group,REDFERN TRAVEL LTD,Commercial,"Staff business travel including air, coach, ferry, rail and taxi",4000114781,145.88
Department for Education,DEPARTMENT FOR EDUCATION,14/02/2013,Travel,Education Strategy Performance Analysis Group,REDFERN TRAVEL LTD,Commercial,"Staff business travel including air, coach, ferry, rail and taxi",4000114781,247.82
Department for Education,DEPARTMENT FOR EDUCATION,14/02/2013,Travel,Education Strategy Performance Analysis Group,REDFERN TRAVEL LTD,Commercial,"Staff business travel including air, coach, ferry, rail and taxi",4000114781,378.56
Department for Education,DEPARTMENT FOR EDUCATION,14/02/2013,Travel,Education Strategy Performance Analysis Group,REDFERN TRAVEL LTD,Commercial,"Staff business travel including air, coach, ferry, rail and taxi to attend training events",4000114781,0.6
Department for Education,DEPARTMENT FOR EDUCATION,14/02/2013,Travel,Education Strategy Performance Analysis Group,REDFERN TRAVEL LTD,Commercial,"Staff business travel including air, coach, ferry, rail and taxi",4000114781,32.84
Department for Education,DEPARTMENT FOR EDUCATION,14/02/2013,Travel,Education Strategy Performance Analysis Group,REDFERN TRAVEL LTD,Commercial,"Staff business travel including air, coach, ferry, rail and taxi",4000114781,135.89
Department for Education,DEPARTMENT FOR EDUCATION,14/02/2013,Travel,Education Strategy Performance Analysis Group,REDFERN TRAVEL LTD,Commercial,"Staff business travel including air, coach, ferry, rail and taxi",4000114781,231.98
Department for Education,DEPARTMENT FOR EDUCATION,14/02/2013,Travel,Education Strategy Performance Analysis Group,REDFERN TRAVEL LTD,Commercial,"Staff business travel including air, coach, ferry, rail and taxi",4000114781,19.92
Department for Education,DEPARTMENT FOR EDUCATION,14/02/2013,Travel,Education Strategy Performance Analysis Group,REDFERN TRAVEL LTD,Commercial,"Staff business travel including air, coach, ferry, rail and taxi",4000114781,444.72
Department for Education,DEPARTMENT FOR EDUCATION,14/02/2013,Travel,Education Strategy Performance Analysis Group,REDFERN TRAVEL LTD,Commercial,"Staff business travel including air, coach, ferry, rail and taxi",4000114781,149.55
Department for Education,DEPARTMENT FOR EDUCATION,14/02/2013,Travel,Curriculum and General Qualifications Reform Group,REDFERN TRAVEL LTD,Commercial,"Staff business travel including air, coach, ferry, rail and taxi",4000114781,937.06
Department for Education,DEPARTMENT FOR EDUCATION,14/02/2013,Travel,Curriculum and General Qualifications Reform Group,REDFERN TRAVEL LTD,Commercial,"Staff business travel including air, coach, ferry, rail and taxi",4000114781,233.22
Department for Education,DEPARTMENT FOR EDUCATION,14/02/2013,Travel,Curriculum and General Qualifications Reform Group,REDFERN TRAVEL LTD,Commercial,"Staff business travel including air, coach, ferry, rail and taxi",4000114781,4479.36
Department for Education,DEPARTMENT FOR EDUCATION,14/02/2013,Travel,Curriculum and General Qualifications Reform Group,REDFERN TRAVEL LTD,Commercial,"Staff business travel including air, coach, ferry, rail and taxi",4000114781,467.4
Department for Education,DEPARTMENT FOR EDUCATION,14/02/2013,Travel,Participation and Vocational Education Group,REDFERN TRAVEL LTD,Commercial,"Staff business travel including air, coach, ferry, rail and taxi",4000114781,2989.14
Department for Education,DEPARTMENT FOR EDUCATION,14/02/2013,Travel,Education Strategy Performance Analysis Group,REDFERN TRAVEL LTD,Commercial,"Staff business travel including air, coach, ferry, rail and taxi",4000114781,6262.07
Department for Education,DEPARTMENT FOR EDUCATION,14/02/2013,Travel,Curriculum and General Qualifications Reform Group,REDFERN TRAVEL LTD,Commercial,"Staff business travel including air, coach, ferry, rail and taxi",4000114781,2052.58
Department for Education,DEPARTMENT FOR EDUCATION,14/02/2013,Travel,Education Strategy Performance Analysis Group,REDFERN TRAVEL LTD,Commercial,"Staff business travel including air, coach, ferry, rail and taxi",4000114781,1595.72
Department for Education,DEPARTMENT FOR EDUCATION,14/02/2013,Travel,Participation and Vocational Education Group,REDFERN TRAVEL LTD,Commercial,"Staff business travel including air, coach, ferry, rail and taxi",4000114781,4971.82
Department for Education,DEPARTMENT FOR EDUCATION,14/02/2013,Travel,School Standards Group,REDFERN TRAVEL LTD,Commercial,"Staff business travel including air, coach, ferry, rail and taxi",4000114781,10602.86
Department for Education,DEPARTMENT FOR EDUCATION,14/02/2013,Travel,Education Strategy Performance Analysis Group,REDFERN TRAVEL LTD,Commercial,"Staff business travel including air, coach, ferry, rail and taxi",4000114781,127.46
Department for Education,DEPARTMENT FOR EDUCATION,14/02/2013,Travel,Education Strategy Performance Analysis Group,REDFERN TRAVEL LTD,Commercial,"Staff business travel including air, coach, ferry, rail and taxi",4000114781,790.82
Department for Education,DEPARTMENT FOR EDUCATION,14/02/2013,Travel,Education Strategy Performance Analysis Group,REDFERN TRAVEL LTD,Commercial,"Staff business travel including air, coach, ferry, rail and taxi",4000114781,164.18
Department for Education,DEPARTMENT FOR EDUCATION,14/02/2013,Travel,Participation and Vocational Education Group,REDFERN TRAVEL LTD,Commercial,"Staff business travel including air, coach, ferry, rail and taxi",4000114781,461.71
Department for Education,DEPARTMENT FOR EDUCATION,14/02/2013,Travel,Curriculum and General Qualifications Reform Group,REDFERN TRAVEL LTD,Commercial,"Staff business travel including air, coach, ferry, rail and taxi",4000114781,2814.1
Department for Education,DEPARTMENT FOR EDUCATION,14/02/2013,Travel,Participation and Vocational Education Group,REDFERN TRAVEL LTD,Commercial,"Staff business travel including air, coach, ferry, rail and taxi",4000114781,133.93
Department for Education,DEPARTMENT FOR EDUCATION,14/02/2013,Travel,Participation and Vocational Education Group,REDFERN TRAVEL LTD,Commercial,"Staff business travel including air, coach, ferry, rail and taxi",4000114781,3804.36
Department for Education,DEPARTMENT FOR EDUCATION,14/02/2013,Travel,Curriculum and General Qualifications Reform Group,REDFERN TRAVEL LTD,Commercial,"Staff business travel including air, coach, ferry, rail and taxi",4000114781,793.36
Department for Education,DEPARTMENT FOR EDUCATION,14/02/2013,Travel,Participation and Vocational Education Group,REDFERN TRAVEL LTD,Commercial,"Staff business travel including air, coach, ferry, rail and taxi",4000114781,2452.72
Department for Education,DEPARTMENT FOR EDUCATION,14/02/2013,Travel,Participation and Vocational Education Group,REDFERN TRAVEL LTD,Commercial,"Staff business travel including air, coach, ferry, rail and taxi",4000114781,2309.69
Department for Education,DEPARTMENT FOR EDUCATION,14/02/2013,Travel,Teachers Group,REDFERN TRAVEL LTD,Commercial,"Staff business travel including air, coach, ferry, rail and taxi",4000114781,1065.95
Department for Education,DEPARTMENT FOR EDUCATION,14/02/2013,Travel,Teachers Group,REDFERN TRAVEL LTD,Commercial,"Staff business travel including air, coach, ferry, rail and taxi",4000114781,2950.87
Department for Education,DEPARTMENT FOR EDUCATION,14/02/2013,Travel,Teachers Group,REDFERN TRAVEL LTD,Commercial,"Staff business travel including air, coach, ferry, rail and taxi",4000114781,2714.4
Department for Education,DEPARTMENT FOR EDUCATION,14/02/2013,Travel,Teachers Group,REDFERN TRAVEL LTD,Commercial,"Staff business travel including air, coach, ferry, rail and taxi",4000114781,704.05
Department for Education,DEPARTMENT FOR EDUCATION,14/02/2013,Travel,Teachers Group,REDFERN TRAVEL LTD,Commercial,"Staff business travel including air, coach, ferry, rail and taxi",4000114781,-10.39
Department for Education,DEPARTMENT FOR EDUCATION,15/02/2013,Programme costs,Curriculum and General Qualifications Reform Group,MYSCIENCE CO LTD,Commercial,Funding to deliver policies (excluding consultancy) paid to third parties via a service delivery contract,4000114931,78236.84
Department for Education,DEPARTMENT FOR EDUCATION,15/02/2013,ICT Commodities,Education Strategy Performance Analysis Group,ATKINS LTD,Commercial,IT Services,4000114952,139312.67
Department for Education,DEPARTMENT FOR EDUCATION,18/02/2013,Grants,Participation and Vocational Education Group,KNOWSLEY SKILLS ACADEMY,Public Sector,Grants to third sector organisations / not for profit organisations,4000115119,34620.74
Department for Education,DEPARTMENT FOR EDUCATION,18/02/2013,Grants,Participation and Vocational Education Group,COMMANDO JOES,Commercial,Grants to third sector organisations / not for profit organisations,4000115120,57054.05
Department for Education,DEPARTMENT FOR EDUCATION,18/02/2013,Programme costs,Curriculum and General Qualifications Reform Group,THE POETRY ARCHIVE,VCS,Funding to deliver policies (excluding consultancy) paid to third parties via a service delivery contract,4000115159,108000
Department for Education,DEPARTMENT FOR EDUCATION,18/02/2013,Grants,Participation and Vocational Education Group,SKILL FORCE DEVELOPMENT,VCS,Grants to third sector organisations / not for profit organisations,4000115203,49473.87
Department for Education,DEPARTMENT FOR EDUCATION,19/02/2013,Advertising and Media,Systems and Accountability Family,PROLOG,Commercial,Publications and related services,4000115373,11.98
Department for Education,DEPARTMENT FOR EDUCATION,19/02/2013,Advertising and Media,Systems and Accountability Family,PROLOG,Commercial,Digital media and web production,4000115373,7935
Department for Education,DEPARTMENT FOR EDUCATION,19/02/2013,Advertising and Media,Curriculum and General Qualifications Reform Group,PROLOG,Commercial,Publications and related services,4000115373,158.73
Department for Education,DEPARTMENT FOR EDUCATION,19/02/2013,Advertising and Media,Curriculum and General Qualifications Reform Group,PROLOG,Commercial,Publications and related services,4000115373,1252.9
Department for Education,DEPARTMENT FOR EDUCATION,19/02/2013,Advertising and Media,Curriculum and General Qualifications Reform Group,PROLOG,Commercial,Publications and related services,4000115373,3209.15
Department for Education,DEPARTMENT FOR EDUCATION,19/02/2013,Advertising and Media,Curriculum and General Qualifications Reform Group,PROLOG,Commercial,Publications and related services,4000115373,571.85
Department for Education,DEPARTMENT FOR EDUCATION,19/02/2013,Advertising and Media,Teachers Group,PROLOG,Commercial,Publications and related services,4000115373,18.01
Department for Education,DEPARTMENT FOR EDUCATION,19/02/2013,Print and Print Management,Participation and Vocational Education Group,PROLOG,Commercial,Printing and binding services,4000115373,16118.67
Department for Education,DEPARTMENT FOR EDUCATION,19/02/2013,Advertising and Media,Participation and Vocational Education Group,PROLOG,Commercial,Publications and related services,4000115373,54.22
Department for Education,DEPARTMENT FOR EDUCATION,20/02/2013,ICT Commodities,Systems and Accountability Family,DELOITTE,Commercial,IT Services,4000115521,84000
Department for Education,DEPARTMENT FOR EDUCATION,21/02/2013,Grants,Participation and Vocational Education Group,SKILL FORCE DEVELOPMENT,VCS,Grants to third sector organisations / not for profit organisations,4000115898,68351.04
Department for Education,DEPARTMENT FOR EDUCATION,21/02/2013,ICT Commodities,Systems and Accountability Family,SOFTWARE FOR DATA ANALYSIS LTD,Commercial,IT Services,4000115916,80000
Department for Education,DEPARTMENT FOR EDUCATION,21/02/2013,Grants,Curriculum and General Qualifications Reform Group,UNIVERSITY OF CAMBRIDGE,Public Sector,Grants to third sector organisations / not for profit organisations,4000115969,227071
Department for Education,DEPARTMENT FOR EDUCATION,21/02/2013,Travel,Participation and Vocational Education Group,CREATIVE CHOICE,Public Sector,Management of award scheme to reward pupil performance,4000115979,58855.68
Department for Education,DEPARTMENT FOR EDUCATION,21/02/2013,Grants,Curriculum and General Qualifications Reform Group,BRITISH SCIENCE ASSOCIATION,VCS,Grants to third sector organisations / not for profit organisations,4000116000,85764
Department for Education,DEPARTMENT FOR EDUCATION,21/02/2013,Programme costs,Curriculum and General Qualifications Reform Group,EASTERN SHIRES PURCHASING ORGANISATION,Public Sector,Funding to deliver policies (excluding consultancy) paid to third parties via a service delivery contract,4000116004,877319.79
Department for Education,DEPARTMENT FOR EDUCATION,21/02/2013,Programme costs,School Standards Group,BRITISH COUNCIL,VCS,Funding to deliver policies (excluding consultancy) paid to third parties via a service delivery contract,4000116013,62500
Department for Education,DEPARTMENT FOR EDUCATION,22/02/2013,Programme costs,Teachers Group,BABCOCK 4S LTD,Commercial,Funding to deliver policies (excluding consultancy) paid to third parties via a service delivery contract,4000116203,36464.7
Department for Education,DEPARTMENT FOR EDUCATION,25/02/2013,ICT Commodities,Systems and Accountability Family,CAPGEMINI UK PLC,Commercial,IT Services,4000116318,110723.2
Department for Education,DEPARTMENT FOR EDUCATION,25/02/2013,Programme costs,Curriculum and General Qualifications Reform Group,MANCHESTER METRO UNIVERSITY,Public Sector,Funding to deliver policies (excluding consultancy) paid to third parties via a service delivery contract,4000116386,44628.88
Department for Education,DEPARTMENT FOR EDUCATION,25/02/2013,Grants,Participation and Vocational Education Group,CSABT LIMITED MUSIC & DANCE SCHEME,Public Sector,Grants to third sector organisations / not for profit organisations,4000116389,100000
Department for Education,DEPARTMENT FOR EDUCATION,26/02/2013,Programme costs,Curriculum and General Qualifications Reform Group,UNIVERSITY OF NORTHAMPTON,Public Sector,Funding to deliver policies (excluding consultancy) paid to third parties via a service delivery contract,4000116418,132862
Department for Education,DEPARTMENT FOR EDUCATION,26/02/2013,Programme costs,Curriculum and General Qualifications Reform Group,EDGE HILL UNIVERSITY,Public Sector,Funding to deliver policies (excluding consultancy) paid to third parties via a service delivery contract,4000116452,109390.49
Department for Education,DEPARTMENT FOR EDUCATION,26/02/2013,Grants,Participation and Vocational Education Group,THE SCHOOL FOOD TRUST,VCS,Grants to third sector organisations / not for profit organisations,4000116453,89789
Department for Education,DEPARTMENT FOR EDUCATION,27/02/2013,Grants,Curriculum and General Qualifications Reform Group,MYSCIENCE CO LTD,Commercial,Grants to third sector organisations / not for profit organisations,4000116581,77700
Department for Education,DEPARTMENT FOR EDUCATION,28/02/2013,Grants,Education Strategy Performance Analysis Group,NATIONAL ASSOCIATION OF HEAD TEACHERS,Public Sector,Grants to third sector organisations / not for profit organisations,4000116791,72408
Department for Education,DEPARTMENT FOR EDUCATION,28/02/2013,ICT Commodities,Systems and Accountability Family,VODAFONE CORPORATE,Commercial,"Fixed and mobile telecoms including call charges, line rental and equipment for mobile phones and pagers",4000116814,251.56
Department for Education,DEPARTMENT FOR EDUCATION,28/02/2013,ICT Commodities,Teachers Group,VODAFONE CORPORATE,Commercial,"Fixed and mobile telecoms including call charges, line rental and equipment for mobile phones and pagers",4000116814,279.08
Department for Education,DEPARTMENT FOR EDUCATION,28/02/2013,ICT Commodities,Education Strategy Performance Analysis Group,VODAFONE CORPORATE,Commercial,"Fixed and mobile telecoms including call charges, line rental and equipment for mobile phones and pagers",4000116814,19.5
Department for Education,DEPARTMENT FOR EDUCATION,28/02/2013,ICT Commodities,Education Standards Directorate,VODAFONE CORPORATE,Commercial,"Fixed and mobile telecoms including call charges, line rental and equipment for mobile phones and pagers",4000116814,19.5
Department for Education,DEPARTMENT FOR EDUCATION,28/02/2013,ICT Commodities,Education Strategy Performance Analysis Group,VODAFONE CORPORATE,Commercial,"Fixed and mobile telecoms including call charges, line rental and equipment for mobile phones and pagers",4000116814,7.32
Department for Education,DEPARTMENT FOR EDUCATION,28/02/2013,ICT Commodities,Education Strategy Performance Analysis Group,VODAFONE CORPORATE,Commercial,"Fixed and mobile telecoms including call charges, line rental and equipment for mobile phones and pagers",4000116814,19.2
Department for Education,DEPARTMENT FOR EDUCATION,28/02/2013,ICT Commodities,Education Strategy Performance Analysis Group,VODAFONE CORPORATE,Commercial,"Fixed and mobile telecoms including call charges, line rental and equipment for mobile phones and pagers",4000116814,19.2
Department for Education,DEPARTMENT FOR EDUCATION,28/02/2013,ICT Commodities,Curriculum and General Qualifications Reform Group,VODAFONE CORPORATE,Commercial,"Fixed and mobile telecoms including call charges, line rental and equipment for mobile phones and pagers",4000116814,287.35
Department for Education,DEPARTMENT FOR EDUCATION,28/02/2013,ICT Commodities,Curriculum and General Qualifications Reform Group,VODAFONE CORPORATE,Commercial,"Fixed and mobile telecoms including call charges, line rental and equipment for mobile phones and pagers",4000116814,19.5
Department for Education,DEPARTMENT FOR EDUCATION,28/02/2013,ICT Commodities,Participation and Vocational Education Group,VODAFONE CORPORATE,Commercial,"Fixed and mobile telecoms including call charges, line rental and equipment for mobile phones and pagers",4000116814,161.33
Department for Education,DEPARTMENT FOR EDUCATION,28/02/2013,ICT Commodities,Education Strategy Performance Analysis Group,VODAFONE CORPORATE,Commercial,"Fixed and mobile telecoms including call charges, line rental and equipment for mobile phones and pagers",4000116814,221.09
Department for Education,DEPARTMENT FOR EDUCATION,28/02/2013,ICT Commodities,Curriculum and General Qualifications Reform Group,VODAFONE CORPORATE,Commercial,"Fixed and mobile telecoms including call charges, line rental and equipment for mobile phones and pagers",4000116814,123.31
Department for Education,DEPARTMENT FOR EDUCATION,28/02/2013,ICT Commodities,School Standards Group,VODAFONE CORPORATE,Commercial,"Fixed and mobile telecoms including call charges, line rental and equipment for mobile phones and pagers",4000116814,6.9
Department for Education,DEPARTMENT FOR EDUCATION,28/02/2013,ICT Commodities,Education Strategy Performance Analysis Group,VODAFONE CORPORATE,Commercial,"Fixed and mobile telecoms including call charges, line rental and equipment for mobile phones and pagers",4000116814,136.5
Department for Education,DEPARTMENT FOR EDUCATION,28/02/2013,ICT Commodities,Participation and Vocational Education Group,VODAFONE CORPORATE,Commercial,"Fixed and mobile telecoms including call charges, line rental and equipment for mobile phones and pagers",4000116814,145.42
Department for Education,DEPARTMENT FOR EDUCATION,28/02/2013,ICT Commodities,School Standards Group,VODAFONE CORPORATE,Commercial,"Fixed and mobile telecoms including call charges, line rental and equipment for mobile phones and pagers",4000116814,324.92
Department for Education,DEPARTMENT FOR EDUCATION,28/02/2013,ICT Commodities,Education Strategy Performance Analysis Group,VODAFONE CORPORATE,Commercial,"Fixed and mobile telecoms including call charges, line rental and equipment for mobile phones and pagers",4000116814,19.5
Department for Education,DEPARTMENT FOR EDUCATION,28/02/2013,ICT Commodities,Participation and Vocational Education Group,VODAFONE CORPORATE,Commercial,"Fixed and mobile telecoms including call charges, line rental and equipment for mobile phones and pagers",4000116814,19.2
Department for Education,DEPARTMENT FOR EDUCATION,28/02/2013,ICT Commodities,Participation and Vocational Education Group,VODAFONE CORPORATE,Commercial,"Fixed and mobile telecoms including call charges, line rental and equipment for mobile phones and pagers",4000116814,19.5
Department for Education,DEPARTMENT FOR EDUCATION,28/02/2013,ICT Commodities,Curriculum and General Qualifications Reform Group,VODAFONE CORPORATE,Commercial,"Fixed and mobile telecoms including call charges, line rental and equipment for mobile phones and pagers",4000116814,136.45
Department for Education,DEPARTMENT FOR EDUCATION,28/02/2013,ICT Commodities,Participation and Vocational Education Group,VODAFONE CORPORATE,Commercial,"Fixed and mobile telecoms including call charges, line rental and equipment for mobile phones and pagers",4000116814,32.7
Department for Education,DEPARTMENT FOR EDUCATION,28/02/2013,ICT Commodities,Participation and Vocational Education Group,VODAFONE CORPORATE,Commercial,"Fixed and mobile telecoms including call charges, line rental and equipment for mobile phones and pagers",4000116814,148.95
Department for Education,DEPARTMENT FOR EDUCATION,28/02/2013,ICT Commodities,Participation and Vocational Education Group,VODAFONE CORPORATE,Commercial,"Fixed and mobile telecoms including call charges, line rental and equipment for mobile phones and pagers",4000116814,84.6
Department for Education,DEPARTMENT FOR EDUCATION,28/02/2013,ICT Commodities,Participation and Vocational Education Group,VODAFONE CORPORATE,Commercial,"Fixed and mobile telecoms including call charges, line rental and equipment for mobile phones and pagers",4000116814,164.72
Department for Education,DEPARTMENT FOR EDUCATION,28/02/2013,ICT Commodities,Teachers Group,VODAFONE CORPORATE,Commercial,"Fixed and mobile telecoms including call charges, line rental and equipment for mobile phones and pagers",4000116814,351.16
Department for Education,DEPARTMENT FOR EDUCATION,28/02/2013,ICT Commodities,Teachers Group,VODAFONE CORPORATE,Commercial,"Fixed and mobile telecoms including call charges, line rental and equipment for mobile phones and pagers",4000116814,95.62
Department for Education,DEPARTMENT FOR EDUCATION,28/02/2013,ICT Commodities,Teachers Group,VODAFONE CORPORATE,Commercial,"Fixed and mobile telecoms including call charges, line rental and equipment for mobile phones and pagers",4000116814,59.1
Department for Education,DEPARTMENT FOR EDUCATION,28/02/2013,ICT Commodities,Teachers Group,VODAFONE CORPORATE,Commercial,"Fixed and mobile telecoms including call charges, line rental and equipment for mobile phones and pagers",4000116814,167.59
Department for Education,DEPARTMENT FOR EDUCATION,28/02/2013,ICT Commodities,Teachers Group,VODAFONE CORPORATE,Commercial,"Fixed and mobile telecoms including call charges, line rental and equipment for mobile phones and pagers",4000116814,19.2
Department for Education,DEPARTMENT FOR EDUCATION,28/02/2013,Programme costs,Curriculum and General Qualifications Reform Group,TRIBAL EDUCATION LIMITED,Commercial,Funding to deliver policies (excluding consultancy) paid to third parties via a service delivery contract,4000116962,226431.85
Department for Education,DEPARTMENT FOR EDUCATION,01/02/2013,Professional Services Consultancy and Contingent Labour,Finance and Commercial Group,CAPITA RESOURCING LTD,Commercial,Costs related to temporary workers,4000112799,22829.49
Department for Education,DEPARTMENT FOR EDUCATION,04/02/2013,Energy and Fuels,Property Asset Management,AMAS LTD,Commercial,Electricity supply,4000112987,30808.43
Department for Education,DEPARTMENT FOR EDUCATION,04/02/2013,Facilities,Property Asset Management,MANCHESTER CITY COUNCIL,Public Sector,Business rates,4000113085,29604
Department for Education,DEPARTMENT FOR EDUCATION,05/02/2013,Energy and Fuels,Property Asset Management,EDF ENERGY LTD,Commercial,Electricity supply,4000113457,116484.95
Department for Education,DEPARTMENT FOR EDUCATION,11/02/2013,Professional Services Consultancy and Contingent Labour,Property Asset Management,JP MORGAN COMMERCIAL CARDS,Commercial,"Advisory services including fees, travel and expenses",4000114200,145.5
Department for Education,DEPARTMENT FOR EDUCATION,11/02/2013,Office Solutions,Finance and Commercial Group,JP MORGAN COMMERCIAL CARDS,Commercial,General office expenses,4000114200,19520
Department for Education,DEPARTMENT FOR EDUCATION,11/02/2013,Office Solutions,Finance and Commercial Group,JP MORGAN COMMERCIAL CARDS,Commercial,General office expenses,4000114200,417
Department for Education,DEPARTMENT FOR EDUCATION,13/02/2013,Facilities,Property Asset Management,INTERSERVE FACILITIES MANAGEMENT LTD,Commercial,"Building maintenance and repair, including repainting, replacing flooring, etc.",4000114603,342986.66
Department for Education,DEPARTMENT FOR EDUCATION,13/02/2013,Facilities,Property Asset Management,INTERSERVE FACILITIES MANAGEMENT LTD,Commercial,"Building maintenance and repair, including repainting, replacing flooring, etc.",4000114603,38259.71
Department for Education,DEPARTMENT FOR EDUCATION,13/02/2013,Facilities,Property Asset Management,INTERSERVE FACILITIES MANAGEMENT LTD,Commercial,"Building maintenance and repair, including repainting, replacing flooring, etc.",4000114603,16766.11
Department for Education,DEPARTMENT FOR EDUCATION,14/02/2013,Travel,Property Asset Management,REDFERN TRAVEL LTD,Commercial,"Staff business travel including air, coach, ferry, rail and taxi",4000114781,44.95
Department for Education,DEPARTMENT FOR EDUCATION,14/02/2013,Travel,Property Asset Management,REDFERN TRAVEL LTD,Commercial,"Staff business travel including air, coach, ferry, rail and taxi",4000114781,11515.01
Department for Education,DEPARTMENT FOR EDUCATION,14/02/2013,Travel,Finance and Commercial Group,REDFERN TRAVEL LTD,Commercial,"Staff business travel including air, coach, ferry, rail and taxi",4000114781,33595.09
Department for Education,DEPARTMENT FOR EDUCATION,14/02/2013,Personnel Related,Finance and Commercial Group,REDFERN TRAVEL LTD,Commercial,Subsistence and lodging allowances for official duty,4000114781,1.74
Department for Education,DEPARTMENT FOR EDUCATION,14/02/2013,Travel,Finance and Commercial Group,REDFERN TRAVEL LTD,Commercial,"Staff business travel including air, coach, ferry, rail and taxi",4000114781,375.51
Department for Education,DEPARTMENT FOR EDUCATION,14/02/2013,Travel,Finance and Commercial Group,REDFERN TRAVEL LTD,Commercial,"Staff business travel including air, coach, ferry, rail and taxi",4000114781,9220.7
Department for Education,DEPARTMENT FOR EDUCATION,19/02/2013,Energy and Fuels,Property Asset Management,EDF ENERGY LTD,Commercial,Electricity supply,4000115227,68302.81
Department for Education,DEPARTMENT FOR EDUCATION,19/02/2013,Facilities,Property Asset Management,DEPARTMENT OF HEALTH,Central Government,Rent,4000115366,328200
Department for Education,DEPARTMENT FOR EDUCATION,22/02/2013,Print and Print Management,Property Asset Management,THE DANWOOD GROUP LTD,Commercial,"Reprographic, photo and design goods and services (excluding photocopiers, multifunctional devices and printers)",4000116167,22436.28
Department for Education,DEPARTMENT FOR EDUCATION,28/02/2013,ICT Commodities,Finance and Commercial Group,VODAFONE CORPORATE,Commercial,"Fixed and mobile telecoms including call charges, line rental and equipment for mobile phones and pagers",4000116814,6.9
Department for Education,DEPARTMENT FOR EDUCATION,28/02/2013,ICT Commodities,Property Asset Management,VODAFONE CORPORATE,Commercial,"Fixed and mobile telecoms including call charges, line rental and equipment for mobile phones and pagers",4000116814,19.2
Department for Education,DEPARTMENT FOR EDUCATION,28/02/2013,ICT Commodities,Property Asset Management,VODAFONE CORPORATE,Commercial,"Fixed and mobile telecoms including call charges, line rental and equipment for mobile phones and pagers",4000116814,20.48
Department for Education,DEPARTMENT FOR EDUCATION,28/02/2013,ICT Commodities,Property Asset Management,VODAFONE CORPORATE,Commercial,"Fixed and mobile telecoms including call charges, line rental and equipment for mobile phones and pagers",4000116814,38.4
Department for Education,DEPARTMENT FOR EDUCATION,28/02/2013,ICT Commodities,Property Asset Management,VODAFONE CORPORATE,Commercial,"Fixed and mobile telecoms including call charges, line rental and equipment for mobile phones and pagers",4000116814,39
Department for Education,DEPARTMENT FOR EDUCATION,28/02/2013,ICT Commodities,Property Asset Management,VODAFONE CORPORATE,Commercial,"Fixed and mobile telecoms including call charges, line rental and equipment for mobile phones and pagers",4000116814,19.5
Department for Education,DEPARTMENT FOR EDUCATION,28/02/2013,ICT Commodities,Property Asset Management,VODAFONE CORPORATE,Commercial,"Fixed and mobile telecoms including call charges, line rental and equipment for mobile phones and pagers",4000116814,489.71
Department for Education,DEPARTMENT FOR EDUCATION,28/02/2013,ICT Commodities,Property Asset Management,VODAFONE CORPORATE,Commercial,"Fixed and mobile telecoms including call charges, line rental and equipment for mobile phones and pagers",4000116814,6.9
Department for Education,DEPARTMENT FOR EDUCATION,28/02/2013,ICT Commodities,Finance and Commercial Group,VODAFONE CORPORATE,Commercial,"Fixed and mobile telecoms including call charges, line rental and equipment for mobile phones and pagers",4000116814,39.75
Department for Education,DEPARTMENT FOR EDUCATION,28/02/2013,ICT Commodities,Finance and Commercial Group,VODAFONE CORPORATE,Commercial,"Fixed and mobile telecoms including call charges, line rental and equipment for mobile phones and pagers",4000116814,19.2
Department for Education,DEPARTMENT FOR EDUCATION,28/02/2013,ICT Commodities,Finance and Commercial Group,VODAFONE CORPORATE,Commercial,"Fixed and mobile telecoms including call charges, line rental and equipment for mobile phones and pagers",4000116814,19.5
Department for Education,DEPARTMENT FOR EDUCATION,28/02/2013,ICT Commodities,Finance and Commercial Group,VODAFONE CORPORATE,Commercial,"Fixed and mobile telecoms including call charges, line rental and equipment for mobile phones and pagers",4000116814,1702.29
Department for Education,DEPARTMENT FOR EDUCATION,28/02/2013,ICT Commodities,Finance and Commercial Group,VODAFONE CORPORATE,Commercial,"Fixed and mobile telecoms including call charges, line rental and equipment for mobile phones and pagers",4000116814,19.5
Department for Education,DEPARTMENT FOR EDUCATION,28/02/2013,ICT Commodities,Finance and Commercial Group,VODAFONE CORPORATE,Commercial,"Fixed and mobile telecoms including call charges, line rental and equipment for mobile phones and pagers",4000116814,6.9
Department for Education,DEPARTMENT FOR EDUCATION,28/02/2013,ICT Commodities,Property Asset Management,VODAFONE CORPORATE,Commercial,"Fixed and mobile telecoms including call charges, line rental and equipment for mobile phones and pagers",4000116814,11.44
Department for Education,DEPARTMENT FOR EDUCATION,28/02/2013,ICT Commodities,Finance and Commercial Group,VODAFONE CORPORATE,Commercial,"Fixed and mobile telecoms including call charges, line rental and equipment for mobile phones and pagers",4000116814,163.9
Department for Education,DEPARTMENT FOR EDUCATION,01/02/2013,Grants,Academies Delivery Group,PARK SCHOOL,Public Sector,"Grants paid to organisations including agencies, arms length bodies and educational establishments",1000978,25000
Department for Education,DEPARTMENT FOR EDUCATION,01/02/2013,Grants,Academies Delivery Group,MILLBROOK PRIMARY SCHOOL,Public Sector,"Grants paid to organisations including agencies, arms length bodies and educational establishments",1000979,25000
Department for Education,DEPARTMENT FOR EDUCATION,01/02/2013,Grants,Academies Delivery Group,PRESTON MANOR SCHOOL,Public Sector,"Grants paid to organisations including agencies, arms length bodies and educational establishments",1000980,25000
Department for Education,DEPARTMENT FOR EDUCATION,01/02/2013,Grants,Academies Delivery Group,OLD CLEE PRIMARY SCHOOL,Public Sector,"Grants paid to organisations including agencies, arms length bodies and educational establishments",1000981,25000
Department for Education,DEPARTMENT FOR EDUCATION,01/02/2013,Grants,Academies Delivery Group,TUXFORD PRIMARY SCHOOL & EARLY YEARS CENTRE,Public Sector,"Grants paid to organisations including agencies, arms length bodies and educational establishments",1000982,25000
Department for Education,DEPARTMENT FOR EDUCATION,01/02/2013,Grants,Academies Delivery Group,THE PASTURES PRIMARY SCHOOL,Public Sector,"Grants paid to organisations including agencies, arms length bodies and educational establishments",1000983,25000
Department for Education,DEPARTMENT FOR EDUCATION,01/02/2013,Grants,Academies Delivery Group,GREAT DALBY PRIMARY SCHOOL,Public Sector,"Grants paid to organisations including agencies, arms length bodies and educational establishments",1000984,25000
Department for Education,DEPARTMENT FOR EDUCATION,01/02/2013,Grants,Academies Delivery Group,ASFORDBY HILL PRIMARY SCHOOL,Public Sector,"Grants paid to organisations including agencies, arms length bodies and educational establishments",1000985,25000
Department for Education,DEPARTMENT FOR EDUCATION,01/02/2013,Grants,Academies Delivery Group,SWOLLOWDALE PRIMARY SCHOOL,Public Sector,"Grants paid to organisations including agencies, arms length bodies and educational establishments",1000986,25000
Department for Education,DEPARTMENT FOR EDUCATION,01/02/2013,Grants,Academies Delivery Group,RICKLEY PARK PRIMARY SCHOOL,Public Sector,"Grants paid to organisations including agencies, arms length bodies and educational establishments",1000987,25000
Department for Education,DEPARTMENT FOR EDUCATION,04/02/2013,Grants,Free School Group,HARRIS FEDERATION OF SOUTH LONDON SCHOOLS,Public Sector,"Grants paid to organisations including agencies, arms length bodies and educational establishments",1001054,120932
Department for Education,DEPARTMENT FOR EDUCATION,06/02/2013,Grants,Free School Group,THE EDUCATION VILLAGE ACADEMY TRUST,Public Sector,"Grants paid to organisations including agencies, arms length bodies and educational establishments",1001055,132000
Department for Education,DEPARTMENT FOR EDUCATION,08/02/2013,Grants,Free School Group,RIVERVIEW FREE SCHOOL,Public Sector,"Grants paid to organisations including agencies, arms length bodies and educational establishments",1001057,100000
Department for Education,DEPARTMENT FOR EDUCATION,11/02/2013,Grants,Free School Group,UTC BLUEWATER,Public Sector,"Grants paid to organisations including agencies, arms length bodies and educational establishments",1001058,120000
Department for Education,DEPARTMENT FOR EDUCATION,28/02/2013,Grants,Academies Delivery Group,CWA ACADEMY TRUST,Public Sector,"Grants paid to organisations including agencies, arms length bodies and educational establishments",1001061,100000
Department for Education,DEPARTMENT FOR EDUCATION,28/02/2013,Grants,Academies Delivery Group,LDBS FRAYS ACADEMY TRUST,Public Sector,"Grants paid to organisations including agencies, arms length bodies and educational establishments",1001062,120000
Department for Education,DEPARTMENT FOR EDUCATION,08/02/2013,Grants,System Reform Group,DEPARTMENT FOR COMMUNTIES & LOCAL GOVERNMENT,Central Government,Current grant funding to other government departments for DfE's contribution to jointly funded programmes ,2000725,3933833
Department for Education,DEPARTMENT FOR EDUCATION,01/02/2013,Grants,Academies Delivery Group,GOTHIC MEDE LOWER SCHOOL,Public Sector,"Grants paid to organisations including agencies, arms length bodies and educational establishments",4000112734,25000
Department for Education,DEPARTMENT FOR EDUCATION,01/02/2013,Grants,Academies Delivery Group,MANOR LEAS JUNIOR SCHOOL,Public Sector,"Grants paid to organisations including agencies, arms length bodies and educational establishments",4000112735,25000
Department for Education,DEPARTMENT FOR EDUCATION,01/02/2013,Grants,Academies Delivery Group,PENDLE EDUCATION TRUST,Public Sector,"Grants paid to organisations including agencies, arms length bodies and educational establishments",4000112736,90000
Department for Education,DEPARTMENT FOR EDUCATION,01/02/2013,Grants,Academies Delivery Group,ST PAULS CE PRIMARY SCHOOL TIPTON,Public Sector,"Grants paid to organisations including agencies, arms length bodies and educational establishments",4000112737,25000
Department for Education,DEPARTMENT FOR EDUCATION,01/02/2013,Grants,Office of the Schools Commissioner Group,ORCHARD HILL COLLEGE,Public Sector,"Grants paid to organisations including agencies, arms length bodies and educational establishments",4000112744,117000
Department for Education,DEPARTMENT FOR EDUCATION,01/02/2013,Grants,Academies Delivery Group,OAK WOOD SECONDARY SCHOOL,Public Sector,"Grants paid to organisations including agencies, arms length bodies and educational establishments",4000112745,25000
Department for Education,DEPARTMENT FOR EDUCATION,01/02/2013,Grants,Academies Delivery Group,GREAT BRIDGE PRIMARY SCHOOL,Public Sector,"Grants paid to organisations including agencies, arms length bodies and educational establishments",4000112746,25000
